Workbook

Sheet Portugal (hidden)
A1: Portugal | E1: 1989 | F1: 1993 | G1: 1995 | H1: 1997 | I1: 1999 | J1: 2003 | K1: 2005 | L1: 2007 | M1: 2009 | N1: 2013 | O1: 2016 | P1: 2019
A2: EXPLORAÇÕES (nº)
A3: Portugal | E3: 598742 | F3: 489011 | G3: 450635 | H3: 416689 | I3: 415969 | J3: 359248 | K3: 323920 | L3: 275085 | M3: 305266 | N3: 264419 | O3: 258983 | P3: 290229
A4: Continente | E4: 550879 | F4: 446145 | G4: 412065 | H4: 381794 | I4: 382163 | J4: 330619 | K4: 297046 | L4: 251548 | M4: 278114 | N4: 240527 | O4: 235774 | P4: 266039
A5: Entre Douro e Minho | E5: 111505 | F5: 86967 | G5: 79916 | H5: 73048 | I5: 67546 | J5: 58757 | K5: 52696 | L5: 45848 | M5: 49037 | N5: 41601 | O5: 39651 | P5: 44560
A6: Trás-os-Montes | E6: 80551 | F6: 75678 | G6: 72248 | H6: 70098 | I6: 70006 | J6: 64963 | K6: 61649 | L6: 56339 | M6: 61804 | N6: 57224 | O6: 56228 | P6: 65211
A7: Beira Litoral | E7: 125307 | F7: 97459 | G7: 88547 | H7: 80217 | I7: 79806 | J7: 66060 | K7: 58823 | L7: 47542 | M7: 49424 | N7: 38356 | O7: 39462 | P7: 44245
A8: Beira Interior | E8: 60386 | F8: 49533 | G8: 45878 | H8: 42841 | I8: 48313 | J8: 40788 | K8: 35749 | L8: 30357 | M8: 33763 | N8: 30862 | O8: 29065 | P8: 33617
A9: Ribatejo e Oeste | E9: 99938 | F9: 78609 | G9: 71430 | H9: 64874 | I9: 61615 | J9: 52339 | K9: 43850 | L9: 33225 | M9: 39875 | N9: 31450 | O9: 31217 | P9: 34486
A10: Alentejo | E10: 47049 | F10: 37491 | G10: 36114 | H10: 34722 | I10: 35906 | J10: 31830 | K10: 29558 | L10: 26032 | M10: 31828 | N10: 29478 | O10: 28424 | P10: 31131
A11: Algarve | E11: 26143 | F11: 20409 | G11: 17931 | H11: 15993 | I11: 18971 | J11: 15883 | K11: 14721 | L11: 12204 | M11: 12383 | N11: 11556 | O11: 11728 | P11: 12789
A12: Açores | E12: 24706 | F12: 21998 | G12: 20141 | H12: 18056 | I12: 19280 | J12: 16191 | K12: 15285 | L12: 13155 | M12: 13541 | N12: 11825 | O12: 11580 | P12: 10656
A13: Madeira | E13: 23157 | F13: 20868 | G13: 18430 | H13: 16839 | I13: 14526 | J13: 12437 | K13: 11589 | L13: 10382 | M13: 13611 | N13: 12068 | O13: 11628 | P13: 13534
A15: Explorações por Classe de SAU (nº)
A16: > 0 a <5 ha | E16: 488075 | F16: 380765 | G16: 344412 | H16: 316069 | I16: 324432 | J16: 273172 | K16: 241019 | L16: 198688 | M16: 229526 | N16: 190305 | O16: 183881 | P16: 208961
A17: 5 a 50 ha | E17: 97107 | F17: 97441 | G17: 95228 | H17: 90037 | I17: 78275 | J17: 74166 | K17: 71280 | L17: 65678 | M17: 63881 | N17: 62568 | O17: 62941 | P17: 64614
A18: > 50 ha | E18: 9236 | F18: 9470 | G18: 9799 | H18: 9592 | I18: 9905 | J18: 9729 | K18: 10318 | L18: 9828 | M18: 10460 | N18: 10702 | O18: 10915 | P18: 12616
A20: SUPERFÍCIE TOTAL DAS EXPLORAÇÕES (ha)
A21: Portugal | E21: 5316160 | F21: 5158217 | G21: 5084776 | H21: 4949393 | I21: 5188938 | J21: 4888500 | K21: 4779428 | L21: 4408426 | M21: 4709131 | N21: 4625696 | O21: 4663173 | P21: 5121412.68
A22: Superfície agrícola utilizada | E22: 4005573 | F22: 3949550 | G22: 3924621 | H22: 3822125 | I22: 3863094 | J22: 3725190 | K22: 3679587 | L22: 3472939 | M22: 3668145 | N22: 3641592 | O22: 3641691 | P22: 3963944.56
A23: Matas e florestas sem culturas sob-coberto | E23: 978259 | F23: 880552 | G23: 816364 | H23: 815214 | I23: 1008374 | J23: 891520 | K23: 851027 | L23: 721828 | M23: 842208 | N23: 807638 | O23: 837067 | P23: 966077.11
A24: Superfície agrícola não utilizada | E24: 245110 | F24: 224720 | G24: 220425 | H24: 210017 | I24: 202898 | J24: 182369 | K24: 160689 | L24: 136409 | M24: 127691 | N24: 100959 | O24: 98452 | P24: 91781.03
A25: Outras superfícies | E25: 87219 | F25: 103395 | G25: 123366 | H25: 102037 | I25: 114573 | J25: 89421 | K25: 88125 | L25: 77250 | M25: 71087 | N25: 75507 | O25: 85962 | P25: 99609.88
A27: SAU (ha)
A28: Portugal | E28: 4005573 | F28: 3949550 | G28: 3924621 | H28: 3822125 | I28: 3863094 | J28: 3725190 | K28: 3679587 | L28: 3472939 | M28: 3668145 | N28: 3641592 | O28: 3641691 | P28: 3963944.56
A29: Continente | E29: 3879579 | F29: 3821319 | G29: 3800379 | H29: 3700161 | I29: 3736140 | J29: 3578034 | K29: 3552347 | L29: 3357019 | M29: 3542305 | N29: 3517740 | O29: 3513006 | P29: 3838708.11
A30: Entre Douro e Minho | E30: 289624 | F30: 257684 | G30: 239465 | H30: 243450 | I30: 215675 | J30: 233702 | K30: 232260 | L30: 220371 | M30: 211154 | N30: 214554 | O30: 198415 | P30: 212639.49
A31: Trás-os-Montes | E31: 489133 | F31: 493229 | G31: 495965 | H31: 462230 | I31: 457881 | J31: 467158 | K31: 473530 | L31: 474617 | M31: 432873 | N31: 432056 | O31: 454719 | P31: 450701.26
A32: Beira Litoral | E32: 231458 | F32: 220532 | G32: 205702 | H32: 179896 | I32: 169779 | J32: 154781 | K32: 151949 | L32: 135986 | M32: 125436 | N32: 117387 | O32: 122929 | P32: 129847.61
A33: Beira Interior | E33: 433947 | F33: 443745 | G33: 441138 | H33: 435052 | I33: 418977 | J33: 390252 | K33: 384005 | L33: 352257 | M33: 337031 | N33: 341976 | O33: 356488 | P33: 391753.98
A34: Ribatejo e Oeste | E34: 456544 | F34: 498887 | G34: 483831 | H34: 494427 | I34: 447853 | J34: 381558 | K34: 412093 | L34: 349237 | M34: 391006 | N34: 370390 | O34: 378010 | P34: 409094.61
A35: Alentejo | E35: 1842094 | F35: 1766678 | G35: 1800535 | H35: 1757360 | I35: 1924043 | J35: 1836215 | K35: 1792285 | L35: 1721795 | M35: 1956508 | N35: 1949142 | O35: 1906874 | P35: 2144066.33
A36: Algarve | E36: 136779 | F36: 140565 | G36: 133743 | H36: 127745 | I36: 101932 | J36: 114368 | K36: 106225 | L36: 102756 | M36: 88297 | N36: 92234 | O36: 95570 | P36: 100604.83
A37: Açores | E37: 118983 | F37: 120223 | G37: 116882 | H37: 114649 | I37: 121308 | J37: 142054 | K37: 122783 | L37: 112054 | M37: 120412 | N37: 118589 | O37: 123793 | P37: 120632.09
A38: Madeira | E38: 7012 | F38: 8007 | G38: 7360 | H38: 7315 | I38: 5645 | J38: 5102 | K38: 4458 | L38: 3865 | M38: 5428 | N38: 5262 | O38: 4893 | P38: 4604.36
A40: SAU por Classe de SAU
A41: <5 ha | E41: 757844 | F41: 649459 | G41: 596920 | H41: 548113 | I41: 532868 | J41: 480022 | K41: 416675 | L41: 348663 | M41: 397027 | N41: 339046 | O41: 330987 | P41: 365566.03
A42: 5 a 50 ha | E42: 1168502 | F42: 1214021 | G42: 1205545 | H42: 1145960 | I42: 1007435 | J42: 971139 | K42: 935434 | L42: 875723 | M42: 850361 | N42: 872231 | O42: 873819 | P42: 893520.57
A43: > 50 ha | E43: 2079228 | F43: 2086070 | G43: 2122156 | H43: 2128051 | I43: 2322791 | J43: 2274029 | K43: 2327478 | L43: 2248552 | M43: 2420757 | N43: 2430314 | O43: 2436885 | P43: 2704857.96
A45: Composição da SAU
A46: Terras aráveis | E46: 2345656 | F46: 2273617 | G46: 2125450 | H46: 2096286 | I46: 1740016 | J46: 1528307 | K46: 1240701 | L46: 1077704 | M46: 1173127 | N46: 1100861 | O46: 1043298 | P46: 1036681.61
A47: Horta familiar | E47: 32488 | F47: 30683 | G47: 27826 | H47: 26141 | I47: 21606 | J47: 19972 | K47: 21408 | L47: 18410 | M47: 19695 | N47: 15381 | O47: 16331 | P47: 16152.4
A48: Culturas permanentes | E48: 789415 | F48: 756882 | G48: 746972 | H48: 707865 | I48: 711628 | J48: 682597 | K48: 648863 | L48: 596246 | M48: 690725 | N48: 708765 | O48: 705120 | P48: 860662.61
A49: Pastagens permanentes | E49: 838015 | F49: 888368 | G49: 1024373 | H49: 991832 | I49: 1389844 | J49: 1494314 | K49: 1768616 | L49: 1780579 | M49: 1784598 | N49: 1816585 | O49: 1876943 | P49: 2050447.94
A50: Das quais Pobres: | E50: 350343 | F50: 300950 | G50: 323422 | H50: 373744 | I50: 879592 | J50: 1048207 | K50: 1253239 | L50: 1274245 | M50: 1331198 | N50: 1280628 | O50: 1391293 | P50: 1464534.05
A51: Cultura temporárias(1) (ha)
A52: Total | E52: 1895293 | F52: 1690480 | G52: 1621049 | H52: 1504730 | I52: 1399335 | J52: 1197622 | K52: 1008690 | L52: 875324 | M52: 948470 | N52: 864900 | O52: 882270 | P52: 888383.64
A53: Cereais para grão | E53: 900878 | F53: 705470 | G53: 677560 | H53: 651130 | I53: 602270 | J53: 480160 | K53: 384452 | L53: 303751 | M53: 345941 | N53: 305900 | O53: 255189 | P53: 234598.69
A54: Leguminosas secas para grão | E54: 81976 | F54: 42572 | G54: 39060 | H54: 28999 | I54: 25724 | J54: 21915 | K54: 14033 | L54: 15577 | M54: 13239 | N54: 9318 | O54: 18084 | P54: 18695.98
A55: Prados temporários | E55: 74231 | F55: 48134 | G55: 45791 | H55: 43576 | I55: 37250 | J55: 45280 | K55: 49219 | L55: 64720 | M55: 31661 | N55: 35576 | O55: 99676 | P55: 120575.71
A56: Culturas forrageiras | E56: 578458 | F56: 652701 | G56: 635145 | H56: 601532 | I56: 542120 | J56: 501964 | K56: 478095 | L56: 401585 | M56: 462703 | N56: 433258 | O56: 423670 | P56: 433043.64
A57: Batata | E57: 107187 | F57: 85240 | G57: 80747 | H57: 58613 | I57: 50173 | J57: 38911 | K57: 26223 | L57: 22356 | M57: 18745 | N57: 13031 | O57: 11749 | P57: 13382.68
A58: Beterraba sacarina | E58: 256 | F58: 483 | G58: 584 | H58: 239 | I58: 7695 | J58: 5233 | K58: 7166 | L58: 2317 | M58: 139 | N58: 547 | O58: 99
A59: Culturas industriais | E59: 64203 | F59: 83651 | G59: 77184 | H59: 57282 | I59: 74537 | J59: 51074 | K59: 9020 | L59: 17590 | M59: 24923 | N59: 19239 | O59: 20035 | P59: 10692
A60: Culturas hortícolas | E60: 62819 | F60: 52307 | G60: 55510 | H60: 51220 | I60: 50772 | J60: 43658 | K60: 36976 | L60: 38489 | M60: 48002 | N60: 42645 | O60: 48579 | P60: 51995.54
A61: Flores e plantas ornamentais | E61: 670 | F61: 900 | G61: 855 | H61: 1126 | I61: 1116 | J61: 1424 | K61: 1565 | L61: 1768 | M61: 1643 | N61: 2733 | O61: 1353 | P61: 1922.42
A62: Outras culturas temporárias | E62: 24614 | F62: 19023 | G62: 8614 | H62: 11012 | I62: 7673 | J62: 8005 | K62: 1943 | L62: 7171 | M62: 1472 | N62: 2651 | O62: 3837 | P62: 3476.98
A64: Pousio (ha) | E64: 830335 | F64: 921988 | G64: 809337 | H64: 859019 | I64: 562717 | J64: 518007 | K64: 373703 | L64: 325062 | M64: 341534 | N64: 333072 | O64: 251759 | P64: 224399.37
A65: Superfície cultivada | E65: =+E28-E50-E64 -> 2824895 | F65: =+F28-F50-F64 -> 2726612 | G65: 2791862 | H65: 2589362 | I65: 2420785 | J65: 2158976 | K65: 2052645 | L65: 1873632 | M65: 1995413 | N65: 2027892 | O65: 1998639 | P65: 2275011.14
A67: CULTURAS PERMANENTES (ha)
A68: Frutos frescos (excepto citrinos) | E68: 76266 | F68: 76780 | G68: 70990 | H68: 62914 | I68: 52746 | J68: 46753 | K68: 40507 | L68: 37014 | M68: 40127 | N68: 43060 | O68: 47040 | P68: 51674.45
A69: Citrinos | E69: 26759 | F69: 26363 | G69: 24965 | H69: 24582 | I69: 23453 | J69: 21111 | K69: 19906 | L69: 18603 | M69: 16930 | N69: 17972 | O69: 18233 | P69: 19613.23
A70: Frutos sub-tropicais | E70: 3047 | F70: 3226 | G70: 2826 | H70: 2771 | I70: 2612 | J70: 2210 | K70: 2493 | L70: 2529 | M70: 3048 | N70: 3790 | O70: 4871 | P70: 7702.28
A71: Frutos de casca rija | E71: 73860 | F71: 70151 | G71: 71534 | H71: 74874 | I71: 80470 | J71: 73005 | K71: 71243 | L71: 69033 | M71: 115150 | N71: 139981 | O71: 142797 | P71: 228707.24
A72: Olival | E72: 340514 | F72: 321675 | G72: 330337 | H72: 308731 | I72: 335028 | J72: 324061 | K72: 317046 | L72: 292162 | M72: 335841 | N72: 340284 | O72: 325755 | P72: 377234.45
A73: Vinha | E73: 266326 | F73: 256090 | G73: 243877 | H73: 231413 | I73: 215041 | J73: 213149 | K73: 195595 | L73: 174559 | M73: 177831 | N73: 162208 | O73: 162673 | P73: 173254.06
A74: Outras culturas permanentes | E74: 2643 | F74: 2597 | G74: 2444 | H74: 2580 | I74: 2277 | J74: 2306 | K74: 2074 | L74: 2345 | M74: 1799 | N74: 1470 | O74: 3751 | P74: 2476.9
A76: PRADOS E PASTAGENS PERMANENTES (2) (ha) | E76: 856334 | F76: 912462 | G76: 1052793 | H76: 1018960 | I76: 1436823 | J76: 1545470 | K76: 1815704 | L76: 1823588 | M76: 1827899 | N76: 1872252 | O76: 1927983 | P76: 2094289.41
A77: (1) Inclui culturas sucessivas e sob coberto de permanentes | B77: (1) Inclui culturas sucessivas e sob coberto de permanentes | C77: (1) Inclui culturas sucessivas e sob coberto de permanentes | D77: (1) Inclui culturas sucessivas e sob coberto de permanentes
A78: (2) inclui pastagens sob coberto de permanentes | B78: (2) inclui pastagens sob coberto de permanentes | C78: (2) inclui pastagens sob coberto de permanentes | D78: (2) inclui pastagens sob coberto de permanentes
E80: 1989 | F80: 1993 | G80: 1995 | H80: 1997 | I80: 1999 | J80: 2003 | K80: 2005 | L80: 2007 | M80: 2009 | N80: 2013 | O80: 2016 | P80: 2019
A81: Superfície Irrigável
A82: Portugal | E82: 877695 | F82: 834254 | G82: 796538 | H82: 798274 | I82: 791986 | J82: n.d | K82: 616982 | L82: 583736 | M82: 540593 | N82: 551427 | O82: 547838 | P82: 630517.13
A83: Continente | E83: 871590 | F83: 826628 | G83: 789727 | H83: 791355 | I83: 787236 | J83: n.d | K83: 613209 | L83: 580164 | M83: 536127 | N83: 547119 | O83: 543745 | P83: 626820.29
A84: Entre Douro e Minho | E84: 225517 | F84: 206876 | G84: 189320 | H84: 186069 | I84: 148305 | J84: n.d | K84: 118667 | L84: 115633 | M84: 94829 | N84: 106476 | O84: 90938 | P84: 91281
A85: Trás-os-Montes | E85: 99854 | F85: 115563 | G85: 113943 | H85: 112582 | I85: 93101 | J85: n.d | K85: 67215 | L85: 53153 | M85: 46666 | N85: 46675 | O85: 43953 | P85: 42658.36
A86: Beira Litoral | E86: 143821 | F86: 137292 | G86: 121984 | H86: 108008 | I86: 104609 | J86: n.d | K86: 82996 | L86: 76595 | M86: 61116 | N86: 57133 | O86: 56385 | P86: 55614.54
A87: Beira Interior | E87: 112734 | F87: 95693 | G87: 84986 | H87: 88021 | I87: 92717 | J87: n.d | K87: 69918 | L87: 61928 | M87: 49580 | N87: 38008 | O87: 45571 | P87: 55897.01
A88: Ribatejo e Oeste | E88: 144692 | F88: 143313 | G88: 145815 | H88: 146604 | I88: 154509 | J88: n.d | K88: 109076 | L88: 116336 | M88: 112539 | N88: 111985 | O88: 114330 | P88: 126083.9
A89: Alentejo | E89: 110753 | F89: 93551 | G89: 99870 | H89: 115652 | I89: 163983 | J89: n.d | K89: 140376 | L89: 136856 | M89: 155123 | N89: 169573 | O89: 175410 | P89: 232627.36
A90: Algarve | E90: 34218 | F90: 34340 | G90: 33809 | H90: 34419 | I90: 30012 | J90: n.d | K90: 24962 | L90: 19663 | M90: 16274 | N90: 17269 | O90: 17158 | P90: 22658.12
A91: Açores | E91: 0 | F91: 0 | G91: 0 | H91: 0 | I91: 0 | J91: n.d | K91: 0 | L91: 0 | M91: 0 | N91: 0 | O91: 0 | P91: 0
A92: Madeira | E92: 6105 | F92: 7626 | G92: 6811 | H92: 6918 | I92: 4750 | J92: n.d | K92: 3773 | L92: 3572 | M92: 4466 | N92: 4308 | O92: 4092 | P92: 3696.84
E94: 1989 | F94: 1993 | G94: 1995 | H94: 1997 | I94: 1999 | J94: 2003 | K94: 2005 | L94: 2007 | M94: 2009 | N94: 2013 | O94: 2016 | P94: 2019
A95: Efetivos (Cabeças Normais)
A96: Portugal | E96: 2432246 | F96: 2366259 | G96: 2355441 | H96: 2337712 | I96: 2551317 | J96: 2354641 | K96: 2069793 | L96: 2014854 | M96: 2205950 | N96: 2035510 | O96: 2223716 | P96: 2503692.673
A97: Continente | E97: 2244750 | F97: 2172008 | G97: 2153381 | H97: 2137756 | I97: 2326716 | J97: 2141186 | K97: 1870284 | L97: 1818513 | M97: 1986998 | N97: 1821369 | O97: 2003127 | P97: 2267449.14
A98: Entre Douro e Minho | E98: 388240 | F98: 362528 | G98: 370666 | H98: 355515 | I98: 338093 | J98: 312049 | K98: 264036 | L98: 252849 | M98: 262882 | N98: 250374 | O98: 250272 | P98: 237875.624
A99: Trás-os-Montes | E99: 171436 | F99: 149289 | G99: 155925 | H99: 156310 | I99: 146251 | J99: 128966 | K99: 113109 | L99: 111591 | M99: 105501 | N99: 100703 | O99: 131956 | P99: 94805.581
A100: Beira Litoral | E100: 451737 | F100: 429439 | G100: 420307 | H100: 409316 | I100: 421915 | J100: 377544 | K100: 347084 | L100: 322546 | M100: 340199 | N100: 276747 | O100: 323201 | P100: 418733.806
A101: Beira Interior | E101: 153055 | F101: 141195 | G101: 144140 | H101: 146145 | I101: 139043 | J101: 131171 | K101: 112322 | L101: 106514 | M101: 107103 | N101: 103087 | O101: 108232 | P101: 132886.875
A102: Ribatejo e Oeste | E102: 578619 | F102: 613489 | G102: 566832 | H102: 557618 | I102: 660006 | J102: 585432 | K102: 441481 | L102: 437883 | M102: 510485 | N102: 456473 | O102: 506302 | P102: 658866.772
A103: Alentejo | E103: 446631 | F103: 437198 | G103: 458583 | H103: 477532 | I103: 581052 | J103: 569037 | K103: 566410 | L103: 561773 | M103: 641608 | N103: 614835 | O103: 664301 | P103: 707170.209
A104: Algarve | E104: 55033 | F104: 38870 | G104: 36926 | H104: 35320 | I104: 40358 | J104: 36983 | K104: 25841 | L104: 25357 | M104: 19222 | N104: 19149 | O104: 18863 | P104: 17110.273
A105: Açores | E105: 170555 | F105: 175784 | G105: 185651 | H105: 182623 | I105: 208608 | J105: 200649 | K105: 186288 | L105: 185120 | M105: 205684 | N105: 204774 | O105: 211877 | P105: 226222.651
A106: Madeira | E106: 16942 | F106: 18467 | G106: 16408 | H106: 17331 | I106: 15992 | J106: 12806 | K106: 13220 | L106: 11223 | M106: 13271 | N106: 9368 | O106: 8714 | P106: 10020.882
E108: 1989 | F108: 1993 | G108: 1995 | H108: 1997 | I108: 1999 | J108: 2003 | K108: 2005 | L108: 2007 | M108: 2009 | N108: 2013 | O108: 2016 | P108: 2019
A109: CN
A110: Por Espécie | E110: =SUM(E111:E117) -> 2432246 | F110: =SUM(F111:F117) -> 2366259 | G110: 2355441 | H110: 2337712 | I110: 2551317 | J110: 2354641 | K110: 2069793 | L110: 2014854 | M110: 2205950 | N110: 2035510 | O110: 2223716 | P110: 2503692.673
A111: Equideos | E111: 120712 | F111: 95144 | G111: 87072 | H111: 79787 | I111: 77177 | J111: 64590 | K111: 49564 | L111: 41981 | M111: 44811 | N111: 39131 | O111: 34228 | P111: 31575.2
A112: Bovinos | E112: 1021766 | F112: 936287 | G112: 1022773 | H112: 989503 | I112: 1029179 | J112: 1011073 | K112: 950168 | L112: 943203 | M112: 1029905 | N112: 1007666 | O112: 1116355 | P112: 1116399
A113: Ovinos | E113: 292628 | F113: 278592 | G113: 277994 | H113: 273710 | I113: 292977 | J113: 268459 | K113: 253287 | L113: 233961 | M113: 221964 | N113: 206723 | O113: 219966 | P113: 218201.6
A114: Caprinos | E114: 72052 | F114: 61635 | G114: 58585 | H114: 55129 | I114: 53724 | J114: 44203 | K114: 44373 | L114: 38915 | M114: 42071 | N114: 38303 | O114: 39046 | P114: 37234.1
A115: Aves | E115: 336742 | F115: 344860 | G115: 322187 | H115: 334289 | I115: 490911 | J115: 435677 | K115: 311863 | L115: 322745 | M115: 403047 | N115: 310192 | O115: 377552 | P115: 576143.395
A116: Suínos | E116: 578740 | F116: 641470 | G116: 579077 | H116: 598546 | I116: 600582 | J116: 524415 | K116: 455210 | L116: 429200 | M116: 458806 | N116: 430119 | O116: 434426 | P116: 520758.738
A117: Coelhos | E117: 9606 | F117: 8271 | G117: 7753 | H117: 6748 | I117: 6767 | J117: 6224 | K117: 5328 | L117: 4849 | M117: 5346 | N117: 3376 | O117: 2143 | P117: 3380.64
E119: 1989 | F119: 1993 | G119: 1995 | H119: 1997 | I119: 1999 | J119: 2003 | K119: 2005 | L119: 2007 | M119: 2009 | N119: 2013 | O119: 2016 | P119: 2019
A120: VOLUME DE TRABALHO (UTA)
A121: Portugal | E121: 850031 | F121: 611502 | G121: 587367 | H121: 523569 | I121: 526145 | J121: 457647 | K121: 400021 | L121: 339894 | M121: 367393 | N121: 328658 | O121: 318292 | P121: 314508.9422
A122: Continente | E122: 810005 | F122: 576661 | G122: 551197 | H122: 492999 | I122: 497537 | J122: 431521 | K122: 376370 | L122: 319369 | M122: 341502 | N122: 304677 | O122: 295316 | P122: 293236.3622
A123: Entre Douro e Minho | E123: 218450 | F123: 153824 | G123: 150023 | H123: 127545 | I123: 122487 | J123: 103124 | K123: 88050 | L123: 74273 | M123: 78758 | N123: 68404 | O123: 58000 | P123: 56657.89889
A124: Trás-os-Montes | E124: 99162 | F124: 81023 | G124: 81412 | H124: 73226 | I124: 81566 | J124: 77400 | K124: 67260 | L124: 65072 | M124: 69330 | N124: 68998 | O124: 71193 | P124: 62773.63167
A125: Beira Litoral | E125: 188075 | F125: 127288 | G125: 121948 | H125: 105164 | I125: 107553 | J125: 88993 | K125: 79738 | L125: 59518 | M125: 65502 | N125: 48669 | O125: 46289 | P125: 47052.79945
A126: Beira Interior | E126: 85447 | F126: 52671 | G126: 47625 | H126: 46443 | I126: 49193 | J126: 44165 | K126: 42588 | L126: 33624 | M126: 33552 | N126: 30355 | O126: 26215 | P126: 27098.37111
A127: Ribatejo e Oeste | E127: 126898 | F127: 93835 | G127: 89504 | H127: 83768 | I127: 75630 | J127: 63629 | K127: 50047 | L127: 42447 | M127: 47269 | N127: 40832 | O127: 38663 | P127: 41751.75389
A128: Alentejo | E128: 61913 | F128: 48043 | G128: 43524 | H128: 42942 | I128: 44162 | J128: 40862 | K128: 35491 | L128: 32918 | M128: 35659 | N128: 35617 | O128: 41838 | P128: 44182.09333
A129: Algarve | E129: 30061 | F129: 19976 | G129: 17161 | H129: 13911 | I129: 16946 | J129: 13348 | K129: 13197 | L129: 11515 | M129: 11432 | N129: 11801 | O129: 13117 | P129: 13719.81389
A130: Açores | E130: 20344 | F130: 16876 | G130: 16036 | H130: 14821 | I130: 15452 | J130: 13827 | K130: 12423 | L130: 11494 | M130: 11532 | N130: 11206 | O130: 12183 | P130: 10594.11
A131: Madeira | E131: 19681 | F131: 17965 | G131: 20134 | H131: 15749 | I131: 13156 | J131: 12299 | K131: 11228 | L131: 9032 | M131: 14360 | N131: 12775 | O131: 10793 | P131: 10678.47
A133: Tipo de Mão-de-Obra
A134: Mão-de-obra agrícola familiar | E134: 720876 | F134: 513767 | G134: 490281 | H134: 431414 | I134: 431632 | J134: 374112 | K134: 329688 | L134: 277064 | M134: 294415 | N134: 250059 | O134: 229952 | P134: 213983.875
A135: Produtor | E135: 329559 | F135: 248381 | G135: 237999 | H135: 214743 | I135: 219568 | J135: 193616 | K135: 175503 | L135: 148680 | M135: 160354 | N135: 135105 | O135: 126540 | P135: 120212.5
A136: Mão-de-obra agrícola não familiar | E136: 129155 | F136: 97734 | G136: 97087 | H136: 92154 | I136: 94513 | J136: 83535 | K136: 70333 | L136: 62830 | M136: 72978 | N136: 78599 | O136: 88340 | P136: 100525.0672
A137: Permanente | E137: 62861 | F137: 50199 | G137: 47884 | H137: 45184 | I137: 47219 | J137: 43895 | K137: 40944 | L137: 38252 | M137: 41369 | N137: 48493 | O137: 57027 | P137: 59807.75
A138: Eventual | E138: 63166 | F138: 45123 | G138: 46911 | H138: 44871 | I138: 44363 | J138: 37141 | K138: 27441 | L138: 22726 | M138: 27621 | N138: 24918 | O138: 27202 | P138: 30350.12889
A140: POPULAÇÃO AGRÍCOLA FAMILIAR (nº)
A141: Portugal | E141: 1974808 | F141: 1558036 | G141: 1393426 | H141: 1252513 | I141: 1236214 | J141: 1025218 | K141: 869311 | L141: 726290 | M141: 793169 | N141: 674573 | O141: 627825 | P141: 665571
A142: Continente | E142: 1799736 | F142: 1408613 | G142: 1261088 | H142: 1133401 | I142: 1123418 | J142: 935316 | K142: 787102 | L142: 656296 | M142: 709928 | N142: 604926 | O142: 564670 | P142: 599497
A143: Entre Douro e Minho | E143: 466783 | F143: 345726 | G143: 306268 | H143: 274338 | I143: 248443 | J143: 203845 | K143: 175226 | L143: 145511 | M143: 150588 | N143: 124339 | O143: 110068 | P143: 114401
A144: Trás-os-Montes | E144: 255688 | F144: 227653 | G144: 212261 | H144: 198007 | I144: 196960 | J144: 174969 | K144: 155729 | L144: 138630 | M144: 151529 | N144: 138731 | O144: 132411 | P144: 143317
A145: Beira Litoral | E145: 426328 | F145: 325453 | G145: 286032 | H145: 251190 | I145: 246329 | J145: 197024 | K145: 168002 | L145: 133515 | M145: 134174 | N145: 106486 | O145: 103862 | P145: 106829
A146: Beira Interior | E146: 163719 | F146: 129743 | G146: 118858 | H146: 109048 | I146: 121920 | J146: 101031 | K146: 83230 | L146: 68638 | M146: 78470 | N146: 73147 | O146: 65889 | P146: 72361
A147: Ribatejo e Oeste | E147: 295495 | F147: 229219 | G147: 202173 | H147: 176355 | I147: 170116 | J147: 140110 | K147: 106022 | L147: 84673 | M147: 96111 | N147: 76290 | O147: 70309 | P147: 76016
A148: Alentejo | E148: 121804 | F148: 95794 | G148: 88222 | H148: 83601 | I148: 91678 | J148: 79884 | K148: 65591 | L148: 57425 | M148: 69849 | N148: 61473 | O148: 56795 | P148: 59051
A149: Algarve | E149: 69919 | F149: 55025 | G149: 47274 | H149: 40861 | I149: 47972 | J149: 38453 | K149: 33302 | L149: 27904 | M149: 29207 | N149: 24460 | O149: 25336 | P149: 27522
A150: Açores | E150: 92351 | F150: 80338 | G150: 72289 | H150: 64008 | I150: 68340 | J150: 53674 | K150: 49514 | L150: 41070 | M150: 42481 | N150: 34670 | O150: 28094 | P150: 29143
A151: Madeira | E151: 82721 | F151: 69085 | G151: 60049 | H151: 55103 | I151: 44456 | J151: 36229 | K151: 32695 | L151: 28924 | M151: 40760 | N151: 34977 | O151: 35061 | P151: 36931
A153: PRODUTORES AGRÍCOLAS (nº)
A154: Homem | E154: 501978 | F154: 401786 | G154: 365663 | H154: 332801 | I154: 314254 | J154: 269471 | K154: 235465 | L154: 197352 | M154: 204511 | N154: 173204 | O154: 162850 | P154: 183916
A155: Mulher | E155: 91612 | F155: 82100 | G155: 79520 | H155: 78039 | I155: 95054 | J155: 83320 | K155: 81610 | L155: 71214 | M155: 92870 | N155: 80289 | O155: 83299 | P155: 90332
A157: Nível etário do Produtor
A158: 15 a 44 anos | E158: 118986 | F158: 81305 | G158: 70383 | H158: 59150 | I158: 63791 | J158: 41942 | K158: 34074 | L158: 25567 | M158: 29806 | N158: 21783 | O158: 17541 | P158: 28220
A159: 45 a 64 anos | E159: 303740 | F159: 241108 | G159: 217809 | H159: 196718 | I159: 190919 | J159: 147000 | K159: 132873 | L159: 113376 | M159: 125658 | N159: 99849 | O159: 94098 | P159: 101962
A160: 65 e mais anos | E160: 170864 | F160: 161472 | G160: 156991 | H160: 154974 | I160: 154598 | J160: 163850 | K160: 150129 | L160: 129623 | M160: 141917 | N160: 131861 | O160: 134510 | P160: 144066
A162: Nível de escolaridade do produtor
A163: Nenhum | E163: 279917 | F163: 210453 | G163: 182488 | H163: 161379 | I163: 140706 | J163: 115378 | K163: 92794 | L163: 68263 | M163: 65691 | N163: 47154 | O163: 40090 | P163: 29036
A164: Básico | E164: 289512 | F164: 251559 | G164: 248154 | H164: 234718 | I164: 249281 | J164: 218571 | K164: 206237 | L164: 184128 | M164: 206156 | N164: 177468 | O164: 175848 | P164: 192367
A165: Secundário | E165: 17743 | F165: 15004 | G165: 6636 | H165: 7192 | I165: 8929 | J165: 8735 | K165: 7883 | L165: 7096 | M165: 12446 | N165: 14815 | O165: 15939 | P165: 27203
A166: Superior | E166: 6418 | F166: 6871 | G166: 7904 | H166: 7552 | I166: 10392 | J166: 10105 | K166: 10161 | L166: 9080 | M166: 13088 | N166: 14056 | O166: 14273 | P166: 25642
A168: Formação agrícola do Produtor
A169: Exclusivamente prática | E169: n.d. | F169: 471249 | G169: 431636 | H169: 394348 | I169: 385824 | J169: 322764 | K169: 282414 | L169: 235646 | M169: 265121 | N169: 214539 | O169: 134062 | P169: 145391
A170: Curso F.Prof. relacionados c/ activ. agrícola | E170: n.d. | F170: 11038 | G170: 11886 | H170: 14804 | I170: 20604 | J170: 27181 | K170: 31852 | L170: 30616 | M170: 29322 | N170: 35477 | O170: 108949 | P170: 123958
A171: Completa (secundário ou superior agrícola) | E171: n.d. | F171: 1598 | G171: 1661 | H171: 1688 | I171: 2880 | J171: 2846 | K171: 2809 | L171: 2304 | M171: 2938 | N171: 3477 | O171: 3138 | P171: 4899
A172: (1) Inclui culturas sucessivas e sob coberto de permanentes
A173: (2) inclui pastagens sob coberto de permanentes

Sheet Indice
B10: Evolução Estrutural das Explorações Agrícolas do Continente 1989 - 2019
M13: Acesso aos dados:
A30: Fonte
B32: Recenseamento Agrícola 1989, 1999, 2009, 2019
B33: Inquérito à Estrutura das Explorações Agrícolas 1993, 1995, 1997, 2003, 2005, 2007, 2013, 2016

Sheet Continente (hidden)
A1: Continente | E1: 1989 | F1: 1993 | G1: 1995 | H1: 1997 | I1: 1999 | J1: 2003 | K1: 2005 | L1: 2007 | M1: 2009 | N1: 2013 | O1: 2016 | P1: 2019
A2: EXPLORAÇÕES (nº)
A3: Continente | E3: 550879 | F3: 446146 | G3: 412064 | H3: 381793 | I3: 382163 | J3: 330656 | K3: 297046 | L3: 251547 | M3: 278114 | N3: 240527 | O3: 235774 | P3: 266039
A4: Entre Douro e Minho | E4: 111505 | F4: 86967 | G4: 79916 | H4: 73048 | I4: 67546 | J4: 58757 | K4: 52696 | L4: 45848 | M4: 49037 | N4: 41601 | O4: 39651 | P4: 44560
A5: Trás-os-Montes | E5: 80551 | F5: 75678 | G5: 72248 | H5: 70098 | I5: 70006 | J5: 64963 | K5: 61649 | L5: 56339 | M5: 61804 | N5: 57224 | O5: 56228 | P5: 65211
A6: Beira Litoral | E6: 125307 | F6: 97459 | G6: 88547 | H6: 80217 | I6: 79806 | J6: 66060 | K6: 58823 | L6: 47542 | M6: 49424 | N6: 38356 | O6: 39462 | P6: 44245
A7: Beira Interior | E7: 60386 | F7: 49533 | G7: 45878 | H7: 42841 | I7: 48313 | J7: 40788 | K7: 35749 | L7: 30357 | M7: 33763 | N7: 30862 | O7: 29065 | P7: 33617
A8: Ribatejo e Oeste | E8: 99938 | F8: 78609 | G8: 71430 | H8: 64874 | I8: 61615 | J8: 52375 | K8: 43850 | L8: 33225 | M8: 39875 | N8: 31450 | O8: 31217 | P8: 34486
A9: Alentejo | E9: 47049 | F9: 37491 | G9: 36114 | H9: 34722 | I9: 35906 | J9: 31830 | K9: 29558 | L9: 26032 | M9: 31828 | N9: 29478 | O9: 28424 | P9: 31131
A10: Algarve | E10: 26143 | F10: 20409 | G10: 17931 | H10: 15993 | I10: 18971 | J10: 15883 | K10: 14721 | L10: 12204 | M10: 12383 | N10: 11556 | O10: 11728 | P10: 12789
A12: Explorações por Classe de SAU (nº)
A13: > 0 a <5 ha | E13: 446184 | F13: 343780 | G13: 311525 | H13: 286550 | I13: 296010 | J13: 249826 | K13: 218948 | L13: 179656 | M13: 207062 | N13: 170929 | O13: 165331 | P13: 189254
A14: 5 a 50 ha | E14: 91424 | F14: 91810 | G14: 89783 | H14: 84931 | I14: 73258 | J14: 69253 | K14: 66865 | L14: 61534 | M14: 59667 | N14: 58536 | O14: 58861 | P14: 60776
A15: > 50 ha | E15: 9050 | F15: 9287 | G15: 9601 | H15: 9340 | I15: 9612 | J15: 9393 | K15: 9971 | L15: 9485 | M15: 10047 | N15: 10249 | O15: 10395 | P15: 12084
A17: SUPERFÍCIE TOTAL DAS EXPLORAÇÕES (ha)
A18: Continente | E18: 5157213 | F18: 4999731 | G18: 4929405 | H18: 4800054 | I18: 5039569 | J18: 4719438 | K18: 4632024 | L18: 4272503 | M18: 4571531 | N18: 4492242 | O18: 4515890 | P18: 4987658
A19: Superfície agrícola utilizada | E19: 3879579 | F19: 3821319 | G19: 3800379 | H19: 3700161 | I19: 3736140 | J19: 3578034 | K19: 3552347 | L19: 3357019 | M19: 3542305 | N19: 3517740 | O19: 3513006 | P19: 3838708
A20: Matas e florestas sem culturas sob-coberto | E20: 965676 | F20: 867336 | G20: 803967 | H20: 801053 | I20: 997497 | J20: 878078 | K20: 838801 | L20: 707750 | M20: 837431 | N20: 800482 | O20: 822722 | P20: 960040
A21: Superfície agrícola não utilizada | E21: 243534 | F21: 215329 | G21: 218610 | H21: 208216 | I21: 201084 | J21: 180743 | K21: 158346 | L21: 134587 | M21: 125283 | N21: 99394 | O21: 96491 | P21: 90171
A22: Outras superfícies | E22: 68425 | F22: 95747 | G22: 106448 | H22: 90624 | I22: 104848 | J22: 82584 | K22: 82531 | L22: 73146 | M22: 66512 | N22: 74626 | O22: 83671 | P22: 98739
A24: SAU (ha)
A25: Continente | E25: 3879579 | F25: 3821319 | G25: 3800379 | H25: 3700161 | I25: 3736140 | J25: 3578034 | K25: 3552347 | L25: 3357019 | M25: 3542305 | N25: 3517740 | O25: 3513006 | P25: 3838708
A26: Entre Douro e Minho | E26: 289624 | F26: 257684 | G26: 239465 | H26: 243450 | I26: 215675 | J26: 233702 | K26: 232260 | L26: 220371 | M26: 211154 | N26: 214554 | O26: 198415 | P26: 212639
A27: Trás-os-Montes | E27: 489133 | F27: 493229 | G27: 495965 | H27: 462230 | I27: 457881 | J27: 467158 | K27: 473530 | L27: 474617 | M27: 432873 | N27: 432056 | O27: 454719 | P27: 450701
A28: Beira Litoral | E28: 231458 | F28: 220532 | G28: 205702 | H28: 179896 | I28: 169779 | J28: 154781 | K28: 151949 | L28: 135986 | M28: 125436 | N28: 117387 | O28: 122929 | P28: 129848
A29: Beira Interior | E29: 433947 | F29: 443745 | G29: 441138 | H29: 435052 | I29: 418977 | J29: 390252 | K29: 384005 | L29: 352257 | M29: 337031 | N29: 341976 | O29: 356488 | P29: 391754
A30: Ribatejo e Oeste | E30: 456544 | F30: 498887 | G30: 483831 | H30: 494427 | I30: 447853 | J30: 381558 | K30: 412093 | L30: 349237 | M30: 391006 | N30: 370390 | O30: 378010 | P30: 409095
A31: Alentejo | E31: 1842094 | F31: 1766678 | G31: 1800535 | H31: 1757360 | I31: 1924043 | J31: 1836215 | K31: 1792285 | L31: 1721795 | M31: 1956508 | N31: 1949142 | O31: 1906874 | P31: 2144066
A32: Algarve | E32: 136779 | F32: 140565 | G32: 133743 | H32: 127745 | I32: 101932 | J32: 114368 | K32: 106225 | L32: 102756 | M32: 88297 | N32: 92234 | O32: 95570 | P32: 100605
A34: SAU por Classe de SAU
A35: <5 ha | E35: 731458 | F35: 625118 | G35: 574760 | H35: 527529 | I35: 513791 | J35: 463738 | K35: 401651 | L35: 335945 | M35: 382341 | N35: 325926 | O35: 318159 | P35: 353291
A36: 5 a 50 ha | E36: 1090803 | F36: 1133878 | G36: 1126281 | H36: 1070249 | I36: 928258 | J36: 891107 | K36: 860460 | L36: 805855 | M36: 777505 | N36: 797420 | O36: 798835 | P36: 823120
A37: > 50 ha | E37: 2057316 | F37: 2062323 | G37: 2099337 | H37: 2102382 | I37: 2294091 | J37: 2223188 | K37: 2290236 | L37: 2215219 | M37: 2382459 | N37: 2394395 | O37: 2396012 | P37: 2662297
A39: Composição da SAU
A40: Terras aráveis | E40: 2330327 | F40: 2258395 | G40: 2111584 | H40: 2082578 | I40: 1725887 | J40: 1513900 | K40: 1228939 | L40: 1066583 | M40: 1158805 | N40: 1081311 | O40: 1019186 | P40: 1007264
A41: Horta familiar | E41: 31765 | F41: 29826 | G41: 27176 | H41: 25574 | I41: 20965 | J41: 19274 | K41: 20712 | L41: 17830 | M41: 18991 | N41: 14473 | O41: 15690 | P41: 15719
A42: Culturas permanentes | E42: 780966 | F42: 748594 | G42: 739153 | H42: 700068 | I42: 705232 | J42: 676598 | K42: 643520 | L42: 592393 | M42: 686221 | N42: 704302 | O42: 700353 | P42: 855767
A43: Pastagens permanentes | E43: 736521 | F43: 784504 | G43: 922465 | H43: 891940 | I43: 1284056 | J43: 1368262 | K43: 1659175 | L43: 1680214 | M43: 1678288 | N43: 1717653 | O43: 1777776 | P43: 1959958
A44: Das quais Pobres: | E44: 343025 | F44: 294075 | G44: 317110 | H44: 364843 | I44: 872378 | J44: 1041709 | K44: 1251051 | L44: 1266034 | M44: 1315241 | N44: 1267891 | O44: 1381157 | P44: 1455897
A46: Cultura temporárias(1) (ha)
A47: Total | E47: 1869929 | F47: 1667685 | G47: 1600085 | H47: 1483750 | I47: 1378415 | J47: 1177310 | K47: 992324 | L47: 859525 | M47: 923537 | N47: 840993 | O47: 853885 | P47: 843477
A48: Cereais para grão | E48: 896507 | F48: 702538 | G48: 675457 | H48: 649423 | I48: 601003 | J48: 479372 | K48: 383912 | L48: 303307 | M48: 345556 | N48: 305390 | O48: 254957 | P48: 234530
A49: Leguminosas secas para grão | E49: 80711 | F49: 41902 | G49: 38484 | H49: 28508 | I49: 25246 | J49: 21684 | K49: 13858 | L49: 15467 | M49: 13152 | N49: 9257 | O49: 18043 | P49: 18666
A50: Prados temporários | E50: 73865 | F50: 47210 | G50: 45348 | H50: 43112 | I50: 37246 | J50: 45280 | K50: 49219 | L50: 64718 | M50: 31652 | N50: 35532 | O50: 91874 | P50: 105802
A51: Culturas forrageiras | E51: 565460 | F51: 641601 | G51: 623571 | H51: 589063 | I51: 528049 | J51: 487696 | K51: 466300 | L51: 389993 | M51: 442320 | N51: 414201 | O51: 406626 | P51: 406264
A52: Batata | E52: 103652 | F52: 81496 | G52: 77462 | H52: 55454 | I52: 47313 | J52: 36561 | K52: 24356 | L52: 20685 | M52: 17331 | N52: 11879 | O52: 10953 | P52: 12586
A53: Beterraba sacarina | E53: 39 | F53: 0 | G53: 0 | H53: 0 | I53: 7551 | J53: 5115 | K53: 7012 | L53: 2108 | M53: 0 | N53: 0 | O53: 0
A54: Culturas industriais | E54: 63960 | F54: 83433 | G54: 76965 | H54: 57082 | I54: 74400 | J54: 50964 | K54: 8880 | L54: 17473 | M54: 24764 | N54: 19007 | O54: 19837 | P54: 10507
A55: Culturas hortícolas | E55: 61709 | F55: 51305 | G55: 54492 | H55: 50161 | I55: 49708 | J55: 42286 | K55: 36000 | L55: 37519 | M55: 46367 | N55: 41205 | O55: 47268 | P55: 50509
A56: Flores e plantas ornamentais | E56: 633 | F56: 841 | G56: 813 | H56: 1077 | I56: 1004 | J56: 1195 | K56: 1375 | L56: 1614 | M56: 1525 | N56: 2588 | O56: 1265 | P56: 1828
A57: Outras culturas temporárias | E57: 23393 | F57: 17358 | G57: 7491 | H57: 9870 | I57: 6889 | J57: 7157 | K57: 1413 | L57: 6641 | M57: 870 | N57: 1934 | O57: 3063 | P57: 2786
A59: Pousio (ha) | E59: 830303 | F59: 921836 | G59: 809120 | H59: 858969 | I59: 562646 | J59: 517973 | K59: 373654 | L59: 325044 | M59: 341465 | N59: 333031 | O59: 251744 | P59: 224368
A60: Superfície cultivada | E60: =+E19-E44-E59 -> 2706251 | F60: =+F19-F44-F59 -> 2605408 | G60: =+G19-G44-G59 -> 2674149 | H60: 2476349 | I60: 2301116 | J60: 2018352 | K60: 1927642 | L60: 1765941 | M60: 1885599 | N60: 1916818 | O60: 1880105 | P60: =+P19-P44-P59 -> 2158443
A62: CULTURAS PERMANENTES (ha) | E62: =SUM(E63:E69) -> 780966 | F62: =SUM(F63:F69) -> 748595 | G62: 739153 | H62: 700067 | I62: 705232 | J62: 676599 | K62: 643519 | L62: 592392 | M62: 686221 | N62: 704303 | O62: 700351 | P62: 855767
A63: Frutos frescos (excepto citrinos) | E63: 75715 | F63: 76218 | G63: 70493 | H63: 62439 | I63: 52342 | J63: 46465 | K63: 40230 | L63: 36800 | M63: 39746 | N63: 42667 | O63: 46515 | P63: 51292
A64: Citrinos | E64: 25598 | F64: 25089 | G64: 23890 | H64: 23557 | I64: 22428 | J64: 19802 | K64: 19101 | L64: 18083 | M64: 16389 | N64: 17424 | O64: 17709 | P64: 19146
A65: Frutos sub-tropicais | E65: 1042 | F65: 1297 | G65: 1122 | H65: 1094 | I65: 1197 | J65: 1038 | K65: 1390 | L65: 1469 | M65: 1764 | N65: 2412 | O65: 3525 | P65: 6145
A66: Frutos de casca rija | E66: 73738 | F66: 69964 | G66: 71345 | H66: 74698 | I66: 80281 | J66: 72820 | K66: 70951 | L66: 68877 | M66: 114980 | N66: 139750 | O66: 142523 | P66: 228487
A67: Olival | E67: 340514 | F67: 321675 | G67: 330337 | H67: 308731 | I67: 335028 | J67: 324061 | K67: 317046 | L67: 292162 | M67: 335841 | N67: 340284 | O67: 325755 | P67: 377234
A68: Vinha | E68: 262025 | F68: 252015 | G68: 239722 | H68: 227375 | I68: 211821 | J68: 210314 | K68: 192846 | L68: 172765 | M68: 175773 | N68: 160424 | O68: 160674 | P68: 171111
A69: Outras culturas permanentes | E69: 2334 | F69: 2337 | G69: 2244 | H69: 2173 | I69: 2135 | J69: 2099 | K69: 1955 | L69: 2236 | M69: 1728 | N69: 1342 | O69: 3650 | P69: 2351
A71: PRADOS E PASTAGENS PERMANENTES (2) (ha) | E71: 754825 | F71: 808586 | G71: 950879 | H71: 919058 | I71: 1331033 | J71: 1419417 | K71: 1706263 | L71: 1723221 | M71: 1721587 | N71: 1773304 | O71: 1828714 | P71: 2003795
A72: (1) Inclui culturas sucessivas e sob coberto de permanentes
A73: (2) inclui pastagens sob coberto de permanentes
A75: Sueprfície irrigável | E75: 1989 | F75: 1993 | G75: 1995 | H75: 1997 | I75: 1999 | J75: 2003 | K75: 2005 | L75: 2007 | M75: 2009 | N75: 2013 | O75: 2016 | P75: 2019
A76: Continente | E76: 871590 | F76: 826628 | G76: 789727 | H76: 791355 | I76: 787236 | K76: 613209 | L76: 580164 | M76: 536127 | N76: 547119 | O76: 543745 | P76: 626820
A77: Entre Douro e Minho | E77: 225517 | F77: 206876 | G77: 189320 | H77: 186069 | I77: 148305 | K77: 118667 | L77: 115633 | M77: 94829 | N77: 106476 | O77: 90938 | P77: 91281
A78: Trás-os-Montes | E78: 99854 | F78: 115563 | G78: 113943 | H78: 112582 | I78: 93101 | K78: 67215 | L78: 53153 | M78: 46666 | N78: 46675 | O78: 43953 | P78: 42658
A79: Beira Litoral | E79: 143821 | F79: 137292 | G79: 121984 | H79: 108008 | I79: 104609 | K79: 82996 | L79: 76595 | M79: 61116 | N79: 57133 | O79: 56385 | P79: 55615
A80: Beira Interior | E80: 112734 | F80: 95693 | G80: 84986 | H80: 88021 | I80: 92717 | K80: 69918 | L80: 61928 | M80: 49580 | N80: 38008 | O80: 45571 | P80: 55897
A81: Ribatejo e Oeste | E81: 144692 | F81: 143313 | G81: 145815 | H81: 146604 | I81: 154509 | K81: 109076 | L81: 116336 | M81: 112539 | N81: 111985 | O81: 114330 | P81: 126084
A82: Alentejo | E82: 110753 | F82: 93551 | G82: 99870 | H82: 115652 | I82: 163983 | K82: 140376 | L82: 136856 | M82: 155123 | N82: 169573 | O82: 175410 | P82: 232627
A83: Algarve | E83: 34218 | F83: 34340 | G83: 33809 | H83: 34419 | I83: 30012 | K83: 24962 | L83: 19663 | M83: 16274 | N83: 17269 | O83: 17158 | P83: 22658
A85: Efetivos (Cabeças Normais)
A86: Continente | E86: 2244750 | F86: 2172008 | G86: 2153381 | H86: 2137756 | I86: 2326716 | J86: 2141186 | K86: 1870284 | L86: 1818513 | M86: 1986998 | N86: 1821369 | O86: 2003127 | P86: 2267450
A87: Entre Douro e Minho | E87: 388240 | F87: 362528 | G87: 370666 | H87: 355515 | I87: 338093 | J87: 312049 | K87: 264036 | L87: 252849 | M87: 262882 | N87: 250374 | O87: 250272 | P87: 237876
A88: Trás-os-Montes | E88: 171436 | F88: 149289 | G88: 155925 | H88: 156310 | I88: 146251 | J88: 128966 | K88: 113109 | L88: 111591 | M88: 105501 | N88: 100703 | O88: 131956 | P88: 94804
A89: Beira Litoral | E89: 451737 | F89: 429439 | G89: 420307 | H89: 409316 | I89: 421915 | J89: 377544 | K89: 347084 | L89: 322546 | M89: 340199 | N89: 276747 | O89: 323201 | P89: 418735
A90: Beira Interior | E90: 153055 | F90: 141195 | G90: 144140 | H90: 146145 | I90: 139043 | J90: 131171 | K90: 112322 | L90: 106514 | M90: 107103 | N90: 103087 | O90: 108232 | P90: 132886
A91: Ribatejo e Oeste | E91: 578619 | F91: 613489 | G91: 566832 | H91: 557618 | I91: 660006 | J91: 585432 | K91: 441481 | L91: 437883 | M91: 510485 | N91: 456473 | O91: 506302 | P91: 658868
A92: Alentejo | E92: 446631 | F92: 437198 | G92: 458583 | H92: 477532 | I92: 581052 | J92: 569037 | K92: 566410 | L92: 561773 | M92: 641608 | N92: 614835 | O92: 664301 | P92: 707171
A93: Algarve | E93: 55033 | F93: 38870 | G93: 36926 | H93: 35320 | I93: 40358 | J93: 36983 | K93: 25841 | L93: 25357 | M93: 19222 | N93: 19149 | O93: 18863 | P93: 17112
A96: Efetivos (Cabeças Normais)
A97: Continente | E97: 2244750 | F97: 2172008 | G97: 2153381 | H97: 2137756 | I97: 2326716 | J97: 2141186 | K97: 1870284 | L97: 1818513 | M97: 1986998 | N97: 1821369 | O97: 2003127 | P97: 2267450
A98: Por Espécie
A99: Equideos | E99: 112690 | F99: 88753 | G99: 81551 | H99: 75016 | I99: 72435 | J99: 60874 | K99: 46866 | L99: 39804 | M99: 42594 | N99: 36843 | O99: 32460 | P99: 30384
A100: Bovinos | E100: 869750 | F100: 782593 | G100: 858047 | H100: 825150 | I100: 845530 | J100: 835827 | K100: 783377 | L100: 776740 | M100: 840627 | N100: 816716 | O100: 917913 | P100: 906929
A101: Ovinos | E101: 291204 | F101: 276866 | G101: 276623 | H101: 272575 | I101: 291772 | J101: 267620 | K101: 252600 | L101: 233457 | M101: 221117 | N101: 205730 | O101: 219001 | P101: 217175
A102: Caprinos | E102: 69747 | F102: 59248 | G102: 56611 | H102: 53442 | I102: 51902 | J102: 42583 | K102: 43191 | L102: 37950 | M102: 40563 | N102: 36943 | O102: 37850 | P102: 35946
A103: Aves | E103: 326654 | F103: 332315 | G103: 310583 | H103: 323692 | I103: 478407 | J103: 423382 | K103: 301785 | L103: 311728 | M103: 392820 | N103: 301723 | O103: 368668 | P103: 566045
A104: Suínos | E104: 565212 | F104: 624125 | G104: 562408 | H104: 581231 | I104: 579978 | J104: 504746 | K104: 437229 | L104: 414078 | M104: 444066 | N104: 420122 | O104: 425140 | P104: 507671
A105: Coelhos | E105: 9493 | F105: 8108 | G105: 7558 | H105: 6650 | I105: 6692 | J105: 6154 | K105: 5236 | L105: 4756 | M105: 5211 | N105: 3292 | O105: 2095 | P105: 3300
E107: 1989 | F107: 1993 | G107: 1995 | H107: 1997 | I107: 1999 | J107: 2003 | K107: 2005 | L107: 2007 | M107: 2009 | N107: 2013 | O107: 2016 | P107: 2019
A108: VOLUME DE TRABALHO (UTA)
A109: Continente | E109: 810005 | F109: 576661 | G109: 551197 | H109: 492999 | I109: 497537 | J109: 431521 | K109: 376370 | L109: 319369 | M109: 341502 | N109: 304677 | O109: 295316 | P109: 293236
A110: Entre Douro e Minho | E110: 218450 | F110: 153824 | G110: 150023 | H110: 127545 | I110: 122487 | J110: 103124 | K110: 88050 | L110: 74273 | M110: 78758 | N110: 68404 | O110: 58000 | P110: 56658
A111: Trás-os-Montes | E111: 99162 | F111: 81023 | G111: 81412 | H111: 73226 | I111: 81566 | J111: 77400 | K111: 67260 | L111: 65072 | M111: 69330 | N111: 68998 | O111: 71193 | P111: 62774
A112: Beira Litoral | E112: 188075 | F112: 127288 | G112: 121948 | H112: 105164 | I112: 107553 | J112: 88993 | K112: 79738 | L112: 59518 | M112: 65502 | N112: 48669 | O112: 46289 | P112: 47053
A113: Beira Interior | E113: 85447 | F113: 52671 | G113: 47625 | H113: 46443 | I113: 49193 | J113: 44165 | K113: 42588 | L113: 33624 | M113: 33552 | N113: 30355 | O113: 26215 | P113: 27098
A114: Ribatejo e Oeste | E114: 126898 | F114: 93835 | G114: 89504 | H114: 83768 | I114: 75630 | J114: 63629 | K114: 50047 | L114: 42447 | M114: 47269 | N114: 40832 | O114: 38663 | P114: 41752
A115: Alentejo | E115: 61913 | F115: 48043 | G115: 43524 | H115: 42942 | I115: 44162 | J115: 40862 | K115: 35491 | L115: 32918 | M115: 35659 | N115: 35617 | O115: 41838 | P115: 44182
A116: Algarve | E116: 30061 | F116: 19976 | G116: 17161 | H116: 13911 | I116: 16946 | J116: 13348 | K116: 13197 | L116: 11515 | M116: 11432 | N116: 11801 | O116: 13117 | P116: 13720
A118: Tipo de Mão-de-Obra
A119: Mão-de-obra agrícola familiar | E119: 687485 | F119: 484712 | G119: 460220 | H119: 406351 | I119: 408224 | J119: 352376 | K119: 309759 | L119: 260110 | M119: 272783 | N119: 230012 | O119: 212771 | P119: 196990
A120: Produtor | E120: 311206 | F120: 231524 | G120: 221960 | H120: 200648 | I120: 206241 | J120: 180870 | K120: 163899 | L120: 138618 | M120: 147342 | N120: 123072 | O120: 116335 | P120: 109949
A121: Mão-de-obra agrícola não familiar | E121: 122520 | F121: 91948 | G121: 90977 | H121: 86647 | I121: 89313 | J121: 79145 | K121: 66611 | L121: 59258 | M121: 68718 | N121: 74664 | O121: 82545 | P121: 96246
A122: Permanente | E122: 58932 | F122: 46524 | G122: 44232 | H122: 41976 | I122: 43962 | J122: 40758 | K122: 38402 | L122: 35820 | M122: 38960 | N122: 46010 | O122: 52488 | P122: 57110
A123: Eventual | E123: 60565 | F123: 43112 | G123: 44590 | H123: 42655 | I123: 42525 | J123: 35967 | K123: 26351 | L123: 21677 | M123: 26000 | N123: 23795 | O123: 26093 | P123: 28990
A125: POPULAÇÃO AGRÍCOLA (nº)
A126: Continente | E126: 1799736 | F126: 1408613 | G126: 1261088 | H126: 1133401 | I126: 1123418 | J126: 935316 | K126: 787102 | L126: 656296 | M126: 709928 | N126: 604926 | O126: 564670 | P126: 599497
A127: Entre Douro e Minho | E127: 466783 | F127: 345726 | G127: 306268 | H127: 274338 | I127: 248443 | J127: 203845 | K127: 175226 | L127: 145511 | M127: 150588 | N127: 124339 | O127: 110068 | P127: 114401
A128: Trás-os-Montes | E128: 255688 | F128: 227653 | G128: 212261 | H128: 198007 | I128: 196960 | J128: 174969 | K128: 155729 | L128: 138630 | M128: 151529 | N128: 138731 | O128: 132411 | P128: 143317
A129: Beira Litoral | E129: 426328 | F129: 325453 | G129: 286032 | H129: 251190 | I129: 246329 | J129: 197024 | K129: 168002 | L129: 133515 | M129: 134174 | N129: 106486 | O129: 103862 | P129: 106829
A130: Beira Interior | E130: 163719 | F130: 129743 | G130: 118858 | H130: 109048 | I130: 121920 | J130: 101031 | K130: 83230 | L130: 68638 | M130: 78470 | N130: 73147 | O130: 65889 | P130: 72361
A131: Ribatejo e Oeste | E131: 295495 | F131: 229219 | G131: 202173 | H131: 176355 | I131: 170116 | J131: 140110 | K131: 106022 | L131: 84673 | M131: 96111 | N131: 76290 | O131: 70309 | P131: 76016
A132: Alentejo | E132: 121804 | F132: 95794 | G132: 88222 | H132: 83601 | I132: 91678 | J132: 79884 | K132: 65591 | L132: 57425 | M132: 69849 | N132: 61473 | O132: 56795 | P132: 59051
A133: Algarve | E133: 69919 | F133: 55025 | G133: 47274 | H133: 40861 | I133: 47972 | J133: 38453 | K133: 33302 | L133: 27904 | M133: 29207 | N133: 24460 | O133: 25336 | P133: 27522
A135: PRODUTORES AGRÍCOLAS (nº)
A136: Homem | E136: 462535 | F136: 368061 | G136: 335627 | H136: 306245 | I136: 289291 | J136: 248858 | K136: 216600 | L136: 180885 | M136: 186194 | N136: 156995 | O136: 147962 | P136: 168459
A137: Mulher | E137: 83534 | F137: 73350 | G137: 71413 | H137: 70052 | I137: 86647 | J137: 75665 | K137: 73896 | L137: 64395 | M137: 84313 | N137: 72973 | O137: 75543 | P137: 82156
A139: Nível etário do Produtor
A140: 15 a 44 anos | E140: 107122 | F140: 72074 | G140: 62146 | H140: 51852 | I140: 55538 | J140: 35871 | K140: 29417 | L140: 21858 | M140: 24403 | N140: 17842 | O140: 14914 | P140: 24151
A141: 45 a 64 anos | E141: 282161 | F141: 222105 | G141: 201020 | H141: 181582 | I141: 176575 | J141: 134653 | K141: 120906 | L141: 102461 | M141: 112932 | N141: 88447 | O141: 83576 | P141: 90767
A142: 65 e mais anos | E142: 156786 | F142: 147232 | G142: 143874 | H142: 142863 | I142: 143825 | J142: 154000 | K142: 140172 | L142: 120960 | M142: 133172 | N142: 123680 | O142: 125015 | P142: 135697
A144: Nível de escolaridade do produtor
A145: Nenhum | E145: 255187 | F145: 190085 | G145: 165348 | H145: 146863 | I145: 129360 | J145: 105666 | K145: 84731 | L145: 61900 | M145: 60040 | N145: 43102 | O145: 36127 | P145: 26704
A146: Básico | E146: 268772 | F146: 231253 | G146: 228016 | H146: 215583 | I146: 228474 | J146: 201224 | K146: 188739 | L146: 168350 | M146: 186768 | N146: 159711 | O146: 158991 | P146: 174793
A147: Secundário/Pós-secundário | E147: 16041 | F147: 13567 | G147: 6143 | H147: 6635 | I147: 8230 | J147: 7980 | K147: 7338 | L147: 6476 | M147: 11361 | N147: 13784 | O147: 14755 | P147: 25017
A148: Superior | E148: 6069 | F148: 6507 | G148: 7533 | H148: 7216 | I148: 9874 | J148: 9653 | K148: 9687 | L148: 8554 | M148: 12338 | N148: 13372 | O148: 13633 | P148: 24101
A150: Formação agrícola do Produtor
A151: Exclusivamente prática | E151: n.d. | F151: 429831 | G151: 394406 | H151: 360809 | I151: 353898 | J151: 295947 | K151: 257273 | L151: 213773 | M151: 240285 | N151: 194177 | O151: 118615 | P151: 131980
A152: Curso F.Prof. relacionados c/ activ. agrícola | E152: n.d. | F152: 10069 | G152: 11031 | H152: 13838 | I152: 19273 | J152: 25820 | K152: 30494 | L152: 29272 | M152: 27400 | N152: 32515 | O152: 101819 | P152: 113974
A153: Completa (secundário ou superior agrícola) | E153: n.d. | F153: 1511 | G153: 1603 | H153: 1650 | I153: 2767 | J153: 2756 | K153: 2729 | L153: 2234 | M153: 2822 | N153: 3277 | O153: 3073 | P153: 4661
A154: (1) Inclui culturas sucessivas e sob coberto de permanentes
A155: (2) inclui pastagens sob coberto de permanentes
E156: =+(E147+E148)/SUM(E145:E148)*100 -> 4.04893887
E157: =+(E147+E148)/E3*100 -> 4.013585561

Sheet 1989 (hidden)
A1: 1989 | C1: Continente | D1: EDM | E1: TM | F1: BL | G1: BI | H1: LVT | I1: ALE | J1: ALG
A2: EXPLORAÇÕES (nº) | C2: 550879 | D2: 111505 | E2: 80551 | F2: 125307 | G2: 60386 | H2: 99938 | I2: 47049 | J2: 26143
A3: Explorações por Classe de SAU (nº)
A4: > 0 a <5 ha | C4: 446184 | D4: 101131 | E4: 52952 | F4: 118763 | G4: 45225 | H4: 83508 | I4: 24909 | J4: 19696
A5: 5 a 50 ha | C5: 91424 | D5: 9925 | E5: 26845 | F5: 6156 | G5: 14065 | H5: 14154 | I5: 14286 | J5: 5993
A6: > 50 ha | C6: 9050 | D6: 128 | E6: 660 | F6: 62 | G6: 1030 | H6: 912 | I6: 6039 | J6: 219
A7: SUPERFÍCIE TOTAL DAS EXPLORAÇÕES (ha) | C7: 5157213 | D7: 464133 | E7: 646279 | F7: 425922 | G7: 654570 | H7: 684184 | I7: 2007281 | J7: 274845
A8: Superfície agrícola utilizada | C8: 3879579 | D8: 289624 | E8: 489133 | F8: 231458 | G8: 433947 | H8: 456544 | I8: 1842094 | J8: 136779
A9: Matas e florestas sem culturas sob-coberto | C9: 965676 | D9: 160966 | E9: 73494 | F9: 180590 | G9: 168428 | H9: 200065 | I9: 124548 | J9: 57585
A10: Superfície agrícola não utilizada | C10: 243534 | D10: 6418 | E10: 70570 | F10: 7357 | G10: 47225 | H10: 16262 | I10: 17216 | J10: 78486
A11: Outras superfícies | C11: 68425 | D11: 7126 | E11: 13082 | F11: 6517 | G11: 4970 | H11: 11313 | I11: 23423 | J11: 1995
A12: SAU (ha) | C12: 3879579 | D12: 289624 | E12: 489133 | F12: 231458 | G12: 433947 | H12: 456544 | I12: 1842094 | J12: 136779
A13: SAU por Classe de SAU
A14: <5 ha | C14: 731458 | D14: 161763 | E14: 106275 | F14: 167716 | G14: 85372 | H14: 128885 | I14: 47458 | J14: 33989
A15: 5 a 50 ha | C15: 1090803 | D15: 81260 | E15: 322576 | F15: 55156 | G15: 173795 | H15: 160121 | I15: 226550 | J15: 71347
A16: > 50 ha | C16: 2057316 | D16: 46600 | E16: 60282 | F16: 8587 | G16: 174780 | H16: 167538 | I16: 1568086 | J16: 31444
A17: Composição da SAU
A18: Terras aráveis | C18: 2330327 | D18: 176575 | E18: 222025 | F18: 153148 | G18: 215620 | H18: 221287 | I18: 1278436 | J18: 63237
A19: Horta familiar | C19: 31765 | D19: 3816 | E19: 8003 | F19: 6505 | G19: 5938 | H19: 3593 | I19: 2562 | J19: 1348
A20: Culturas permanentes | C20: 780966 | D20: 45160 | E20: 178449 | F20: 56460 | G20: 100177 | H20: 171795 | I20: 169037 | J20: 59888
A21: Pastagens permanentes | C21: 736521 | D21: 64072 | E21: 80656 | F21: 15345 | G21: 112212 | H21: 59870 | I21: 392059 | J21: 12306
A22: Das quais Pobres: | C22: 343025 | D22: 39897 | E22: 24813 | F22: 5652 | G22: 76852 | H22: 16894 | I22: 172627 | J22: 6288
A24: CULTURAS TEMPORÁRIAS(1) (ha)
A25: Total | C25: 1869929 | D25: 349411 | E25: 184551 | F25: 233010 | G25: 189099 | H25: 213333 | I25: 660920 | J25: 39606
A26: Cereais para grão | C26: 896507 | D26: 86367 | E26: 110916 | F26: 82590 | G26: 81866 | H26: 86699 | I26: 424335 | J26: 23734
A27: Leguminosas secas para grão | C27: 80711 | D27: 36503 | E27: 2662 | F27: 18789 | G27: 8797 | H27: 4804 | I27: 6215 | J27: 2942
A28: Prados temporários | C28: 73865 | D28: 17200 | E28: 1974 | F28: 2806 | G28: 10970 | H28: 10646 | I28: 28544 | J28: 1725
A29: Culturas forrageiras | C29: 565460 | D29: 164798 | E29: 42634 | F29: 96883 | G29: 70781 | H29: 59329 | I29: 127413 | J29: 3622
A30: Batata | C30: 103652 | D30: 19266 | E30: 25778 | F30: 26106 | G30: 14276 | H30: 14918 | I30: 1742 | J30: 1566
A31: Beterraba sacarina | C31: 39 | D31: 0 | E31: 0 | F31: 1 | G31: 3 | H31: 34 | I31: 0 | J31: 0
A32: Culturas industriais | C32: 63960 | D32: 68 | E32: 100 | F32: 384 | G32: 1075 | H32: 3267 | I32: 58997 | J32: 70
A33: Culturas hortícolas | C33: 61709 | D33: 4304 | E33: 438 | F33: 4429 | G33: 881 | H33: 32789 | I33: 13136 | J33: 5733
A34: Flores e plantas ornamentais | C34: 633 | D34: 144 | E34: 2 | F34: 65 | G34: 7 | H34: 342 | I34: 5 | J34: 68
A35: Outras culturas temporárias | C35: 23393 | D35: 20760 | E35: 48 | F35: 956 | G35: 444 | H35: 504 | I35: 533 | J35: 147
A36: Pousio (ha) | C36: 830303 | D36: 495 | E36: 61746 | F36: 4209 | G36: 58943 | H36: 31129 | I36: 645844 | J36: 27938
A37: SUPERFÚICIE CULTIVADA | C37: =+C8-C22-C36 -> 2706251 | D37: =+D8-D22-D36 -> 249232 | E37: 402574 | F37: 221597 | G37: 298152 | H37: 408521 | I37: 1023623 | J37: 102553
A39: CULTURAS PERMANENTES (ha)
A40: Frutos frescos (excepto citrinos) | C40: 75715 | D40: 2709 | E40: 7985 | F40: 4457 | G40: 10215 | H40: 38857 | I40: 5275 | J40: 6217
A41: Citrinos | C41: 25598 | D41: 937 | E41: 483 | F41: 851 | G41: 593 | H41: 4391 | I41: 3560 | J41: 14783
A42: Frutos sub-tropicais | C42: 1042 | D42: 621 | E42: 5 | F42: 138 | G42: 30 | H42: 62 | I42: 58 | J42: 128
A43: Frutos de casca rija | C43: 73738 | D43: 297 | E43: 38399 | F43: 876 | G43: 5065 | H43: 605 | I43: 1886 | J43: 26610
A44: Olival | C44: 340514 | D44: 2660 | E44: 61744 | F44: 15439 | G44: 59300 | H44: 48725 | I44: 144957 | J44: 7689
A45: Vinha | C45: 262025 | D45: 37809 | E45: 69743 | F45: 33558 | G45: 24865 | H45: 78826 | I45: 12777 | J45: 4448
A46: Outras culturas permanentes | C46: 2334 | D46: 128 | E46: 90 | F46: 1142 | G46: 109 | H46: 328 | I46: 525 | J46: 13
A47: PRADOS E PASTAGENS PERMANENTES (2) (ha) | C47: 754825 | D47: 65233 | E47: 82171 | F47: 16207 | G47: 113429 | H47: 65049 | I47: 398617 | J47: 14120
A48: SUPERFÍCIE IRRIGÁVEL | C48: 871590 | D48: 225517 | E48: 99854 | F48: 143821 | G48: 112734 | H48: 144692 | I48: 110753 | J48: 34218
A50: Efetivos (Cabeças Normais) | C50: 2244750 | D50: 388240 | E50: 171436 | F50: 451737 | G50: 153055 | H50: 578619 | I50: 446631 | J50: 55033
A51: Por Espécie
A52: Equideos | C52: 112690 | D52: 4096 | E52: 39131 | F52: 12770 | G52: 22747 | H52: 13334 | I52: 12979 | J52: 7632
A53: Bovinos | C53: 869750 | D53: 277599 | E53: 66415 | F53: 162070 | G53: 48806 | H53: 117524 | I53: 181308 | J53: 16029
A54: Ovinos | C54: 291204 | D54: 13369 | E54: 28970 | F54: 19594 | G54: 36636 | H54: 35207 | I54: 150531 | J54: 6897
A55: Caprinos | C55: 69747 | D55: 8006 | E55: 11637 | F55: 11099 | G55: 13954 | H55: 8198 | I55: 14061 | J55: 2792
A56: Aves | C56: 326654 | D56: 45834 | E56: 7988 | F56: 121503 | G56: 10989 | H56: 127110 | I56: 8070 | J56: 5160
A57: Suínos | C57: 565212 | D57: 36559 | E57: 16522 | F57: 122197 | G57: 19253 | H57: 275019 | I57: 79325 | J57: 16337
A58: Coelhos | C58: 9493 | D58: 2777 | E58: 773 | F58: 2504 | G58: 670 | H58: 2227 | I58: 357 | J58: 186
A60: VOLUME DE TRABALHO (UTA) | C60: 810005 | D60: 218450 | E60: 99162 | F60: 188075 | G60: 85447 | H60: 126898 | I60: 61913 | J60: 30061
A61: Tipo de Mão-de-Obra
A62: Mão-de-obra agrícola familiar | C62: 687485 | D62: 199995 | E62: 79175 | F62: 174620 | G62: 76041 | H62: 97431 | I62: 34695 | J62: 25529
A63: Produtor | C63: 311206 | D63: 77518 | E63: 39038 | F63: 71686 | G63: 37326 | H63: 50633 | I63: 20764 | J63: 14240
A64: Mão-de-obra agrícola não familiar | C64: 122520 | D64: 18455 | E64: 19987 | F64: 13454 | G64: 9406 | H64: 29467 | I64: 27218 | J64: 4533
A65: Permanente | C65: 58932 | D65: 8791 | E65: 6992 | F65: 5213 | G65: 3057 | H65: 15072 | I65: 16894 | J65: 2913
A66: Eventual | C66: 60565 | D66: 9149 | E66: 12318 | F66: 7763 | G66: 6078 | H66: 13893 | I66: 9852 | J66: 1512
A67: POPULAÇÃO AGRÍCOLA (nº) | C67: 1799736 | D67: 466783 | E67: 255688 | F67: 426328 | G67: 163719 | H67: 295495 | I67: 121804 | J67: 69919
A68: PRODUTORES AGRÍCOLAS (nº)
A69: Homem | C69: 462535 | D69: 84012 | E69: 67120 | F69: 107945 | G69: 51559 | H69: 89002 | I69: 40660 | J69: 22237
A70: Mulher | C70: 83534 | D70: 26802 | E70: 12934 | F70: 17034 | G70: 8576 | H70: 9498 | I70: 5046 | J70: 3644
A71: Nível etário do Produtor
A72: 15 a 44 anos | C72: 107122 | D72: 26302 | E72: 15660 | F72: 27835 | G72: 8216 | H72: 18524 | I72: 7603 | J72: 2982
A73: 45 a 64 anos | C73: 282161 | D73: 58131 | E73: 40492 | F73: 67177 | G73: 28148 | H73: 52932 | I73: 22913 | J73: 12368
A74: 65 e mais anos | C74: 156786 | D74: 26381 | E74: 23902 | F74: 29967 | G74: 23771 | H74: 27044 | I74: 15190 | J74: 10531
A75: Nível de escolaridade do produtor
A76: Nenhum | C76: 255187 | D76: 54217 | E76: 39205 | F76: 51342 | G76: 31037 | H76: 42312 | I76: 22884 | J76: 14190
A77: Básico | C77: 268772 | D77: 53391 | E77: 37143 | F77: 69879 | G77: 26847 | H77: 51420 | I77: 19758 | J77: 10334
A78: Secundário/Pós-secundário | C78: 16041 | D78: 2191 | E78: 2556 | F78: 2919 | G78: 1587 | H78: 3622 | I78: 2145 | J78: 1021
A79: Superior | C79: 6069 | D79: 1015 | E79: 1150 | F79: 839 | G79: 664 | H79: 1146 | I79: 919 | J79: 336
A80: Formação agrícola do Produtor
A81: Exclusivamente prática | C81: n.d. | D81: n.d. | E81: n.d. | F81: n.d. | G81: n.d. | H81: n.d. | I81: n.d. | J81: n.d.
A82: Curso F.Prof. relacionados c/ activ. agrícola | C82: n.d. | D82: n.d. | E82: n.d. | F82: n.d. | G82: n.d. | H82: n.d. | I82: n.d. | J82: n.d.
A83: Completa (secundário ou superior agrícola) | C83: n.d. | D83: n.d. | E83: n.d. | F83: n.d. | G83: n.d. | H83: n.d. | I83: n.d. | J83: n.d.
A84: (1) Inclui culturas sucessivas e sob coberto de permanentes
A85: (2) inclui pastagens sob coberto de permanentes

Sheet 1999 (hidden)
A1: 1999 | C1: Continente | D1: EDM | E1: TM | F1: BL | G1: BI | H1: LVT | I1: ALE | J1: ALG
A2: EXPLORAÇÕES (nº) | C2: 382163 | D2: 67546 | E2: 70006 | F2: 79806 | G2: 48313 | H2: 61615 | I2: 35906 | J2: 18971
A3: Explorações por Classe de SAU (nº)
A4: > 0 a <5 ha | C4: 296010 | D4: 60380 | E4: 46124 | F4: 74145 | G4: 36091 | H4: 48148 | I4: 17140 | J4: 13982
A5: 5 a 50 ha | C5: 73258 | D5: 6830 | E5: 22984 | F5: 5061 | G5: 10857 | H5: 11370 | I5: 11529 | J5: 4627
A6: > 50 ha | C6: 9612 | D6: 152 | E6: 722 | F6: 88 | G6: 1231 | H6: 1027 | I6: 6205 | J6: 187
A7: SUPERFÍCIE TOTAL DAS EXPLORAÇÕES (ha) | C7: 5039569 | D7: 374832 | E7: 637104 | F7: 316646 | G7: 618526 | H7: 706000 | I7: 2158882 | J7: 227578
A8: Superfície agrícola utilizada | C8: 3736140 | D8: 215675 | E8: 457881 | F8: 169779 | G8: 418977 | H8: 447853 | I8: 1924043 | J8: 101932
A9: Matas e florestas sem culturas sob-coberto | C9: 997497 | D9: 133236 | E9: 101797 | F9: 131795 | G9: 160471 | H9: 220126 | I9: 189789 | J9: 60284
A10: Superfície agrícola não utilizada | C10: 201084 | D10: 7745 | E10: 61925 | F10: 8142 | G10: 31543 | H10: 15374 | I10: 14158 | J10: 62196
A11: Outras superfícies | C11: 104848 | D11: 18176 | E11: 15501 | F11: 6930 | G11: 7535 | H11: 22647 | I11: 30892 | J11: 3166
A12: SAU (ha) | C12: 3736140 | D12: 215675 | E12: 457881 | F12: 169779 | G12: 418977 | H12: 447853 | I12: 1924043 | J12: 101932
A13: SAU por Classe de SAU
A14: <5 ha | C14: 513791 | D14: 97140 | E14: 96078 | F14: 111917 | G14: 65446 | H14: 84106 | I14: 33707 | J14: 25397
A15: 5 a 50 ha | C15: 928258 | D15: 64978 | E15: 287293 | F15: 50293 | G15: 144511 | H15: 136405 | I15: 190137 | J15: 54642
A16: > 50 ha | C16: 2294091 | D16: 53557 | E16: 74510 | F16: 7569 | G16: 209020 | H16: 227342 | I16: 1700200 | J16: 21893
A17: Composição da SAU
A18: Terras aráveis | C18: 1725887 | D18: 106780 | E18: 152660 | F18: 99158 | G18: 152390 | H18: 204970 | I18: 975840 | J18: 34090
A19: Horta familiar | C19: 20965 | D19: 2627 | E19: 5473 | F19: 4479 | G19: 3585 | H19: 2750 | I19: 1265 | J19: 788
A20: Culturas permanentes | C20: 705232 | D20: 35529 | E20: 192795 | F20: 48292 | G20: 93058 | H20: 117592 | I20: 161657 | J20: 56309
A21: Pastagens permanentes | C21: 1284056 | D21: 70739 | E21: 106953 | F21: 17850 | G21: 169945 | H21: 122542 | I21: 785282 | J21: 10746
A22: Das quais Pobres: | C22: 872378 | D22: 60529 | E22: 48793 | F22: 8266 | G22: 130180 | H22: 29986 | I22: 585295 | J22: 9328
A24: CULTURAS TEMPORÁRIAS(1) (ha)
A25: Total | C25: 1378415 | D25: 201585 | E25: 115365 | F25: 144367 | G25: 149942 | H25: 182744 | I25: 564221 | J25: 20190
A26: Cereais para grão | C26: 601003 | D26: 44914 | E26: 57288 | F26: 51856 | G26: 41645 | H26: 70617 | I26: 325832 | J26: 8852
A27: Leguminosas secas para grão | C27: 25246 | D27: 5274 | E27: 1153 | F27: 6390 | G27: 1641 | H27: 1940 | I27: 8031 | J27: 817
A28: Prados temporários | C28: 37246 | D28: 7910 | E28: 2608 | F28: 2620 | G28: 2332 | H28: 8214 | I28: 12756 | J28: 807
A29: Culturas forrageiras | C29: 528049 | D29: 126449 | E29: 40588 | F29: 67414 | G29: 96213 | H29: 55044 | I29: 136253 | J29: 6087
A30: Batata | C30: 47313 | D30: 7096 | E30: 13094 | F30: 11490 | G30: 4733 | H30: 9377 | I30: 863 | J30: 660
A31: Beterraba sacarina | C31: 7551 | D31: 0 | E31: 0 | F31: 211 | G31: 2 | H31: 4333 | I31: 2906 | J31: 100
A32: Culturas industriais | C32: 74400 | D32: 31 | E32: 58 | F32: 377 | G32: 2793 | H32: 3727 | I32: 67301 | J32: 113
A33: Culturas hortícolas | C33: 49708 | D33: 3726 | E33: 516 | F33: 3504 | G33: 501 | H33: 28920 | I33: 9975 | J33: 2566
A34: Flores e plantas ornamentais | C34: 1004 | D34: 225 | E34: 45 | F34: 171 | G34: 5 | H34: 370 | I34: 122 | J34: 66
A35: Outras culturas temporárias | C35: 6889 | D35: 5955 | E35: 16 | F35: 332 | G35: 77 | H35: 203 | I35: 181 | J35: 125
A36: Pousio (ha) | C36: 562646 | D36: 459 | E36: 50162 | F36: 2874 | G36: 30744 | H36: 33820 | I36: 429328 | J36: 15259
A37: SUPERFÚICIE CULTIVADA | C37: =+C8-C22-C36 -> 2301116 | D37: =+D8-D22-D36 -> 154687 | E37: 358926 | F37: 158639 | G37: 258053 | H37: 384047 | I37: 909420 | J37: 77345
A39: CULTURAS PERMANENTES (ha)
A40: Frutos frescos (excepto citrinos) | C40: 52342 | D40: 1868 | E40: 9051 | F40: 3563 | G40: 6769 | H40: 24614 | I40: 2686 | J40: 3791
A41: Citrinos | C41: 22428 | D41: 696 | E41: 585 | F41: 631 | G41: 415 | H41: 2789 | I41: 2188 | J41: 15124
A42: Frutos sub-tropicais | C42: 1197 | D42: 780 | E42: 4 | F42: 173 | G42: 4 | H42: 12 | I42: 7 | J42: 217
A43: Frutos de casca rija | C43: 80281 | D43: 674 | E43: 46334 | F43: 996 | G43: 4276 | H43: 746 | I43: 1997 | J43: 25258
A44: Olival | C44: 335028 | D44: 1126 | E44: 72288 | F44: 17585 | G44: 60325 | H44: 36829 | I44: 138084 | J44: 8791
A45: Vinha | C45: 211821 | D45: 30231 | E45: 64294 | F45: 24494 | G45: 21148 | H45: 52084 | I45: 16580 | J45: 2991
A46: Outras culturas permanentes | C46: 2135 | D46: 154 | E46: 239 | F46: 850 | G46: 121 | H46: 519 | I46: 115 | J46: 138
A47: PRADOS E PASTAGENS PERMANENTES (2) (ha) | C47: 1331033 | D47: 71533 | E47: 107673 | F47: 19896 | G47: 175831 | H47: 126077 | I47: 818302 | J47: 11721
A48: SUPERFÍCIE IRRIGÁVEL | C48: 787236 | D48: 148305 | E48: 93101 | F48: 104609 | G48: 92717 | H48: 154509 | I48: 163983 | J48: 30012
A50: Efetivos (Cabeças Normais) | C50: 2326716 | D50: 338093 | E50: 146251 | F50: 421915 | G50: 139043 | H50: 660006 | I50: 581052 | J50: 40358
A51: Por Espécie
A52: Equideos | C52: 6692 | D52: 1686 | E52: 837 | F52: 2140 | G52: 585 | H52: 1168 | I52: 200 | J52: 76
A53: Bovinos | C53: 845530 | D53: 239711 | E53: 56678 | F53: 113204 | G53: 41015 | H53: 109057 | I53: 277601 | J53: 8264
A54: Ovinos | C54: 291772 | D54: 14088 | E54: 32552 | F54: 18973 | G54: 45379 | H54: 26324 | I54: 147634 | J54: 6822
A55: Caprinos | C55: 51902 | D55: 6620 | E55: 7352 | F55: 8247 | G55: 10796 | H55: 4656 | I55: 11995 | J55: 2235
A56: Aves | C56: 478407 | D56: 39716 | E56: 8245 | F56: 151940 | G56: 9963 | H56: 245489 | I56: 19904 | J56: 3151
A57: Suínos | C57: 579978 | D57: 30283 | E57: 16149 | F57: 120378 | G57: 18367 | H57: 264957 | I57: 113608 | J57: 16238
A58: Coelhos | C58: 72435 | D58: 5989 | E58: 24438 | F58: 7033 | G58: 12938 | H58: 8355 | I58: 10110 | J58: 3572
A60: VOLUME DE TRABALHO (UTA) | C60: 497537 | D60: 122487 | E60: 81566 | F60: 107553 | G60: 49193 | H60: 75630 | I60: 44162 | J60: 16946
A61: Tipo de Mão-de-Obra
A62: Mão-de-obra agrícola familiar | C62: 408224 | D62: 109319 | E62: 64975 | F62: 98414 | G62: 42453 | H62: 54397 | I62: 25021 | J62: 13644
A63: Produtor | C63: 206241 | D63: 49181 | E63: 32538 | F63: 47351 | G63: 23008 | H63: 30023 | I63: 16051 | J63: 8090
A64: Mão-de-obra agrícola não familiar | C64: 89313 | D64: 13168 | E64: 16591 | F64: 9139 | G64: 6740 | H64: 21233 | I64: 19140 | J64: 3302
A65: Permanente | C65: 43962 | D65: 6661 | E65: 5481 | F65: 4136 | G65: 2476 | H65: 11312 | I65: 11835 | J65: 2061
A66: Eventual | C66: 42525 | D66: 6011 | E66: 10408 | F66: 4626 | G66: 4017 | H66: 9488 | I66: 6825 | J66: 1151
A67: POPULAÇÃO AGRÍCOLA (nº) | C67: 1123418 | D67: 248443 | E67: 196960 | F67: 246329 | G67: 121920 | H67: 170116 | I67: 91678 | J67: 47972
A68: PRODUTORES AGRÍCOLAS (nº)
A69: Homem | C69: 289291 | D69: 43726 | E69: 53202 | F69: 59607 | G69: 37508 | H69: 51358 | I69: 28585 | J69: 15305
A70: Mulher | C70: 86647 | D70: 22854 | E70: 15906 | F70: 19659 | G70: 10431 | H70: 8586 | I70: 5860 | J70: 3351
A71: Nível etário do Produtor
A72: 15 a 44 anos | C72: 55538 | D72: 12072 | E72: 11302 | F72: 11420 | G72: 5351 | H72: 8634 | I72: 5160 | J72: 1599
A73: 45 a 64 anos | C73: 176575 | D73: 32688 | E73: 31594 | F73: 41748 | G73: 19752 | H73: 28663 | I73: 14461 | J73: 7669
A74: 65 e mais anos | C74: 143825 | D74: 21820 | E74: 26212 | F74: 26098 | G74: 22836 | H74: 22647 | I74: 14824 | J74: 9388
A75: Nível de escolaridade do produtor
A76: Nenhum | C76: 129360 | D76: 25418 | E76: 24504 | F76: 24106 | G76: 18637 | H76: 17708 | I76: 11695 | J76: 7292
A77: Básico | C77: 228474 | D77: 38733 | E77: 40869 | F77: 52845 | G77: 27146 | H77: 39050 | I77: 19561 | J77: 10270
A78: Secundário/Pós-secundário | C78: 8230 | D78: 1035 | E78: 1485 | F78: 1130 | G78: 922 | H78: 1708 | I78: 1366 | J78: 584
A79: Superior | C79: 9874 | D79: 1394 | E79: 2250 | F79: 1185 | G79: 1234 | H79: 1478 | I79: 1823 | J79: 510
A80: Formação agrícola do Produtor
A81: Exclusivamente prática | C81: 353898 | D81: 60957 | E81: 65599 | F81: 76051 | G81: 46362 | H81: 55260 | I81: 31948 | J81: 17721
A82: Curso F.Prof. relacionados c/ activ. agrícola | C82: 19273 | D82: 5359 | E82: 3038 | F82: 2980 | G82: 1323 | H82: 4106 | I82: 1670 | J82: 797
A83: Completa (secundário ou superior agrícola) | C83: 2767 | D83: 264 | E83: 471 | F83: 235 | G83: 254 | H83: 578 | I83: 827 | J83: 138
A84: (1) Inclui culturas sucessivas e sob coberto de permanentes
A85: (2) inclui pastagens sob coberto de permanentes

Sheet 2009 (hidden)
A1: 2009 | C1: Continente | D1: EDM | E1: TM | F1: BL | G1: BI | H1: LVT | I1: ALE | J1: ALG
A2: EXPLORAÇÕES (nº) | C2: 278114 | D2: 49037 | E2: 61804 | F2: 49424 | G2: 33763 | H2: 39875 | I2: 31828 | J2: 12383
A3: Explorações por Classe de SAU (nº)
A4: > 0 a <5 ha | C4: 207062 | D4: 42732 | E4: 41227 | F4: 44966 | G4: 24855 | H4: 29979 | I4: 14706 | J4: 8597
A5: 5 a 50 ha | C5: 59667 | D5: 5943 | E5: 19750 | F5: 4094 | G5: 7693 | H5: 8464 | I5: 10184 | J5: 3539
A6: > 50 ha | C6: 10047 | D6: 191 | E6: 735 | F6: 101 | G6: 1179 | H6: 1095 | I6: 6535 | J6: 211
A7: SUPERFÍCIE TOTAL DAS EXPLORAÇÕES (ha) | C7: 4571531 | D7: 312756 | E7: 619172 | F7: 222136 | G7: 503126 | H7: 543222 | I7: 2205930 | J7: 165189
A8: Superfície agrícola utilizada | C8: 3542305 | D8: 211154 | E8: 432873 | F8: 125436 | G8: 337031 | H8: 391006 | I8: 1956508 | J8: 88297
A9: Matas e florestas sem culturas sob-coberto | C9: 837431 | D9: 91139 | E9: 141138 | F9: 87108 | G9: 133621 | H9: 133716 | I9: 204104 | J9: 46605
A10: Superfície agrícola não utilizada | C10: 125283 | D10: 3543 | E10: 40223 | F10: 5822 | G10: 24674 | H10: 8331 | I10: 14593 | J10: 28096
A11: Outras superfícies | C11: 66512 | D11: 6920 | E11: 4937 | F11: 3770 | G11: 7800 | H11: 10169 | I11: 30724 | J11: 2191
A12: SAU (ha) | C12: 3542305 | D12: 211154 | E12: 432873 | F12: 125436 | G12: 337031 | H12: 391006 | I12: 1956508 | J12: 88297
A13: SAU por Classe de SAU
A14: <5 ha | C14: 382341 | D14: 73356 | E14: 88640 | F14: 71587 | G14: 46245 | H14: 56041 | I14: 29656 | J14: 16815
A15: 5 a 50 ha | C15: 777505 | D15: 62390 | E15: 239503 | F15: 44853 | G15: 105715 | H15: 109168 | I15: 170840 | J15: 45036
A16: > 50 ha | C16: 2382459 | D16: 75409 | E16: 104729 | F16: 8995 | G16: 185071 | H16: 225797 | I16: 1756013 | J16: 26446
A17: Composição da SAU
A18: Terras aráveis | C18: 1158805 | D18: 85759 | E18: 101615 | F18: 70547 | G18: 100001 | H18: 166379 | I18: 612176 | J18: 22327
A19: Horta familiar | C19: 18991 | D19: 3181 | E19: 5030 | F19: 4557 | G19: 2476 | H19: 1944 | I19: 1176 | J19: 628
A20: Culturas permanentes | C20: 686221 | D20: 26932 | E20: 191614 | F20: 33979 | G20: 74049 | H20: 93628 | I20: 221013 | J20: 45007
A21: Pastagens permanentes | C21: 1678288 | D21: 95282 | E21: 134614 | F21: 16353 | G21: 160505 | H21: 129055 | I21: 1122142 | J21: 20335
A22: Das quais Pobres: | C22: 1315241 | D22: 82563 | E22: 78774 | F22: 6355 | G22: 122438 | H22: 67575 | I22: 939771 | J22: 17766
A24: CULTURAS TEMPORÁRIAS(1) (ha)
A25: Total | C25: 923537 | D25: 139237 | E25: 66830 | F25: 85425 | G25: 92269 | H25: 139840 | I25: 391742 | J25: 8193
A26: Cereais para grão | C26: 345556 | D26: 28895 | E26: 29404 | F26: 34150 | G26: 16630 | H26: 57035 | I26: 177223 | J26: 2219
A27: Leguminosas secas para grão | C27: 13152 | D27: 1228 | E27: 442 | F27: 1674 | G27: 659 | H27: 944 | I27: 8131 | J27: 73
A28: Prados temporários | C28: 31652 | D28: 7352 | E28: 1129 | F28: 2055 | G28: 4087 | H28: 5595 | I28: 11377 | J28: 57
A29: Culturas forrageiras | C29: 442320 | D29: 96712 | E29: 30413 | F29: 41545 | G29: 68779 | H29: 37842 | I29: 162639 | J29: 4390
A30: Batata | C30: 17331 | D30: 2059 | E30: 4927 | F30: 2923 | G30: 1321 | H30: 5592 | I30: 347 | J30: 162
A31: Beterraba sacarina | C31: 0 | D31: 0 | E31: 0 | F31: 0 | G31: 0 | H31: 0 | I31: 0 | J31: 0
A32: Culturas industriais | C32: 24764 | D32: 22 | E32: 26 | F32: 110 | G32: 383 | H32: 1098 | I32: 23119 | J32: 6
A33: Culturas hortícolas | C33: 46367 | D33: 2542 | E33: 438 | F33: 2749 | G33: 309 | H33: 31089 | I33: 8214 | J33: 1026
A34: Flores e plantas ornamentais | C34: 1525 | D34: 317 | E34: 31 | F34: 142 | G34: 6 | H34: 467 | I34: 414 | J34: 147
A35: Outras culturas temporárias | C35: 870 | D35: 110 | E35: 20 | F35: 77 | G35: 95 | H35: 177 | I35: 278 | J35: 113
A36: Pousio (ha) | C36: 341465 | D36: 3851 | E36: 40585 | F36: 5787 | G36: 18995 | H36: 32180 | I36: 225721 | J36: 14346
A37: SUPERFÚICIE CULTIVADA | C37: =+C8-C22-C36 -> 1885599 | D37: =+D8-D22-D36 -> 124740 | E37: 313514 | F37: 113294 | G37: 195598 | H37: 291251 | I37: 791016 | J37: 56185
A39: CULTURAS PERMANENTES (ha)
A40: Frutos frescos (excepto citrinos) | C40: 39746 | D40: 1666 | E40: 7754 | F40: 1929 | G40: 5999 | H40: 16567 | I40: 2477 | J40: 3355
A41: Citrinos | C41: 16389 | D41: 451 | E41: 472 | F41: 307 | G41: 248 | H41: 1525 | I41: 1852 | J41: 11533
A42: Frutos sub-tropicais | C42: 1764 | D42: 1161 | E42: 8 | F42: 316 | G42: 4 | H42: 8 | I42: 10 | J42: 257
A43: Frutos de casca rija | C43: 114980 | D43: 982 | E43: 46920 | F43: 890 | G43: 4319 | H43: 12295 | I43: 29528 | J43: 20046
A44: Olival | C44: 335841 | D44: 881 | E44: 75266 | F44: 14341 | G44: 47336 | H44: 25540 | I44: 164078 | J44: 8399
A45: Vinha | C45: 175773 | D45: 21708 | E45: 60907 | F45: 15467 | G45: 16076 | H45: 37220 | I45: 22998 | J45: 1396
A46: Outras culturas permanentes | C46: 1728 | D46: 82 | E46: 288 | F46: 728 | G46: 67 | H46: 473 | I46: 69 | J46: 21
A47: PRADOS E PASTAGENS PERMANENTES (2) (ha) | C47: 1721587 | D47: 95992 | E47: 134964 | F47: 17779 | G47: 164528 | H47: 133477 | I47: 1153264 | J47: 21584
A48: SUPERFÍCIE IRRIGÁVEL | C48: 536127 | D48: 94829 | E48: 46666 | F48: 61116 | G48: 49580 | H48: 112539 | I48: 155123 | J48: 16274
A50: Efetivos (Cabeças Normais) | C50: 1986998 | D50: 262882 | E50: 105501 | F50: 340199 | G50: 107103 | H50: 510485 | I50: 641608 | J50: 19222
A51: Por Espécie
A52: Equideos | C52: 42594 | D52: 7350 | E52: 12463 | F52: 2850 | G52: 4952 | H52: 5819 | I52: 7672 | J52: 1488
A53: Bovinos | C53: 840627 | D53: 194015 | E53: 45498 | F53: 66640 | G53: 44718 | H53: 94524 | I53: 389893 | J53: 5338
A54: Ovinos | C54: 221117 | D54: 12915 | E54: 26973 | F54: 14387 | G54: 35920 | H54: 17380 | I54: 109042 | J54: 4501
A55: Caprinos | C55: 40563 | D55: 5482 | E55: 5701 | F55: 6424 | G55: 6617 | H55: 4866 | I55: 9916 | J55: 1558
A56: Aves | C56: 392820 | D56: 27506 | E56: 7224 | F56: 156531 | G56: 6791 | H56: 187136 | I56: 6500 | J56: 1132
A57: Suínos | C57: 444066 | D57: 13830 | E57: 6638 | F57: 91857 | G57: 7737 | H57: 200333 | I57: 118489 | J57: 5183
A58: Coelhos | C58: 5211 | D58: 1784 | E58: 1004 | F58: 1510 | G58: 368 | H58: 427 | I58: 96 | J58: 22
A60: VOLUME DE TRABALHO (UTA) | C60: 341502 | D60: 78758 | E60: 69330 | F60: 65502 | G60: 33552 | H60: 47269 | I60: 35659 | J60: 11432
A61: Tipo de Mão-de-Obra
A62: Mão-de-obra agrícola familiar | C62: 272783 | D62: 70348 | E62: 56740 | F62: 58888 | G62: 29459 | H62: 31174 | I62: 17252 | J62: 8924
A63: Produtor | C63: 147342 | D63: 34818 | E63: 30836 | F63: 30561 | G63: 16238 | H63: 18373 | I63: 11204 | J63: 5314
A64: Mão-de-obra agrícola não familiar | C64: 68718 | D64: 8410 | E64: 12591 | F64: 6614 | G64: 4093 | H64: 16095 | I64: 18407 | J64: 2509
A65: Permanente | C65: 38960 | D65: 5127 | E65: 4641 | F65: 4075 | G65: 1699 | H65: 10268 | I65: 11440 | J65: 1710
A66: Eventual | C66: 26000 | D66: 2929 | E66: 7219 | F66: 2271 | G66: 2215 | H66: 5570 | I66: 5186 | J66: 610
A67: POPULAÇÃO AGRÍCOLA (nº) | C67: 709928 | D67: 150588 | E67: 151529 | F67: 134174 | G67: 78470 | H67: 96111 | I67: 69849 | J67: 29207
A68: PRODUTORES AGRÍCOLAS (nº)
A69: Homem | C69: 186194 | D69: 26733 | E69: 40455 | F69: 32574 | G69: 23423 | H69: 31135 | I69: 22748 | J69: 9126
A70: Mulher | C70: 84313 | D70: 21200 | E70: 20524 | F70: 16187 | G70: 9901 | H70: 6930 | I70: 6544 | J70: 3027
A71: Nível etário do Produtor
A72: 15 a 44 anos | C72: 24403 | D72: 5533 | E72: 6071 | F72: 3422 | G72: 2095 | H72: 3470 | I72: 3150 | J72: 662
A73: 45 a 64 anos | C73: 112932 | D73: 22236 | E73: 26056 | F73: 22363 | G73: 12050 | H73: 15369 | I73: 10956 | J73: 3902
A74: 65 e mais anos | C74: 133172 | D74: 20164 | E74: 28852 | F74: 22976 | G74: 19179 | H74: 19226 | I74: 15186 | J74: 7589
A75: Nível de escolaridade do produtor
A76: Nenhum | C76: 60040 | D76: 12184 | E76: 13661 | F76: 9803 | G76: 8441 | H76: 6280 | I76: 6386 | J76: 3285
A77: Básico | C77: 186768 | D77: 32592 | E77: 41163 | F77: 36276 | G77: 21986 | H77: 28569 | I77: 18448 | J77: 7734
A78: Secundário/Pós-secundário | C78: 11361 | D78: 1434 | E78: 2707 | F78: 1404 | G78: 1353 | H78: 1815 | I78: 2058 | J78: 590
A79: Superior | C79: 12338 | D79: 1723 | E79: 3448 | F79: 1278 | G79: 1544 | H79: 1401 | I79: 2400 | J79: 544
A80: Formação agrícola do Produtor
A81: Exclusivamente prática | C81: 240285 | D81: 42159 | E81: 52780 | F81: 44420 | G81: 30639 | H81: 33040 | I81: 25886 | J81: 11361
A82: Curso F.Prof. relacionados c/ activ. agrícola | C82: 27400 | D82: 5480 | E82: 7656 | F82: 4143 | G82: 2427 | H82: 4523 | I82: 2477 | J82: 694
A83: Completa (secundário ou superior agrícola) | C83: 2822 | D83: 294 | E83: 543 | F83: 198 | G83: 258 | H83: 502 | I83: 929 | J83: 98
A84: (1) Inclui culturas sucessivas e sob coberto de permanentes
A85: (2) inclui pastagens sob coberto de permanentes

Sheet 2013 (hidden)
A1: 2013 | C1: Continente | D1: EDM | E1: TM | F1: BL | G1: BI | H1: LVT | I1: ALE | J1: ALG
A2: EXPLORAÇÕES (nº) | C2: 240527 | D2: 41601 | E2: 57224 | F2: 38356 | G2: 30862 | H2: 31450 | I2: 29478 | J2: 11556
A3: Explorações por Classe de SAU (nº)
A4: > 0 a <5 ha | C4: 170929 | D4: 34958 | E4: 36763 | F4: 33787 | G4: 22572 | H4: 22192 | I4: 13094 | J4: 7563
A5: 5 a 50 ha | C5: 58536 | D5: 6311 | E5: 19446 | F5: 4255 | G5: 6991 | H5: 7880 | I5: 9880 | J5: 3774
A6: > 50 ha | C6: 10249 | D6: 160 | E6: 947 | F6: 127 | G6: 1290 | H6: 1133 | I6: 6386 | J6: 206
A7: SUPERFÍCIE TOTAL DAS EXPLORAÇÕES (ha) | C7: 4492242 | D7: 305920 | E7: 629636 | F7: 201908 | G7: 481700 | H7: 500542 | I7: 2210340 | J7: 162196
A8: Superfície agrícola utilizada | C8: 3517740 | D8: 214554 | E8: 432056 | F8: 117387 | G8: 341976 | H8: 370390 | I8: 1949142 | J8: 92234
A9: Matas e florestas sem culturas sob-coberto | C9: 800482 | D9: 78380 | E9: 161286 | F9: 77716 | G9: 112576 | H9: 110706 | I9: 215120 | J9: 44698
A10: Superfície agrícola não utilizada | C10: 99394 | D10: 5144 | E10: 29164 | F10: 3215 | G10: 19009 | H10: 6334 | I10: 13407 | J10: 23122
A11: Outras superfícies | C11: 74626 | D11: 7842 | E11: 7130 | F11: 3591 | G11: 8139 | H11: 13113 | I11: 32670 | J11: 2141
A12: SAU (ha) | C12: 3517740 | D12: 214554 | E12: 432056 | F12: 117387 | G12: 341976 | H12: 370390 | I12: 1949142 | J12: 92234
A13: SAU por Classe de SAU
A14: <5 ha | C14: 325926 | D14: 61143 | E14: 80763 | F14: 58033 | G14: 41743 | H14: 42278 | I14: 26893 | J14: 15073
A15: 5 a 50 ha | C15: 797420 | D15: 69368 | E15: 258028 | F15: 49189 | G15: 98498 | H15: 105269 | I15: 167569 | J15: 49499
A16: > 50 ha | C16: 2394395 | D16: 84042 | E16: 93265 | F16: 10165 | G16: 201736 | H16: 222843 | I16: 1754681 | J16: 27663
A17: Composição da SAU
A18: Terras aráveis | C18: 1081311 | D18: 82587 | E18: 104999 | F18: 68662 | G18: 85449 | H18: 153181 | I18: 561425 | J18: 25007
A19: Horta familiar | C19: 14473 | D19: 2125 | E19: 4492 | F19: 2442 | G19: 1974 | H19: 1684 | I19: 1297 | J19: 460
A20: Culturas permanentes | C20: 704302 | D20: 26924 | E20: 196735 | F20: 28914 | G20: 75155 | H20: 94697 | I20: 235239 | J20: 46638
A21: Pastagens permanentes | C21: 1717653 | D21: 102918 | E21: 125829 | F21: 17369 | G21: 179399 | H21: 120829 | I21: 1151181 | J21: 20129
A22: Das quais Pobres: | C22: 1267891 | D22: 86289 | E22: 75875 | F22: 7277 | G22: 116156 | H22: 63409 | I22: 901521 | J22: 17364
A24: Cultura temporárias(1) (ha)
A25: Total | C25: 840993 | D25: 130975 | E25: 65703 | F25: 81305 | G25: 70996 | H25: 129301 | I25: 350766 | J25: 11946
A26: Cereais para grão | C26: 305390 | D26: 21966 | E26: 31487 | F26: 28500 | G26: 12508 | H26: 54553 | I26: 154135 | J26: 2240
A27: Leguminosas secas para grão | C27: 9257 | D27: 1091 | E27: 512 | F27: 1159 | G27: 245 | H27: 505 | I27: 5589 | J27: 156
A28: Prados temporários | C28: 35532 | D28: 8171 | E28: 2442 | F28: 3117 | G28: 5029 | H28: 3836 | I28: 9283 | J28: 3655
A29: Culturas forrageiras | C29: 414201 | D29: 94975 | E29: 26571 | F29: 42802 | G29: 51997 | H29: 38184 | I29: 155209 | J29: 4464
A30: Batata | C30: 11879 | D30: 1661 | E30: 3862 | F30: 1883 | G30: 639 | H30: 3612 | I30: 129 | J30: 93
A31: Beterraba sacarina | C31: 0 | D31: 0 | E31: 0 | F31: 0 | G31: 0 | H31: 0 | I31: 0 | J31: 0
A32: Culturas industriais | C32: 19007 | D32: 196 | E32: 39 | F32: 190 | G32: 4 | H32: 612 | I32: 17965 | J32: 0
A33: Culturas hortícolas | C33: 41205 | D33: 2369 | E33: 726 | F33: 3235 | G33: 335 | H33: 26600 | I33: 6983 | J33: 958
A34: Flores e plantas ornamentais | C34: 2588 | D34: 515 | E34: 38 | F34: 336 | G34: 0 | H34: 978 | I34: 455 | J34: 266
A35: Outras culturas temporárias | C35: 1934 | D35: 31 | E35: 27 | F35: 83 | G35: 238 | H35: 422 | I35: 1019 | J35: 114
A36: Pousio (ha) | C36: 333031 | D36: 3242 | E36: 43391 | F36: 7664 | G36: 21553 | H36: 28454 | I36: 215509 | J36: 13218
A37: Superfície cultivada | C37: =+C8-C22-C36 -> 1916818 | D37: =+D8-D22-D36 -> 125023 | E37: 312790 | F37: 102446 | G37: 204267 | H37: 278527 | I37: 832112 | J37: 61652
A39: CULTURAS PERMANENTES (ha)
A40: Frutos frescos (excepto citrinos) | C40: 42667 | D40: 2302 | E40: 10236 | F40: 1656 | G40: 6538 | H40: 15868 | I40: 1624 | J40: 4442
A41: Citrinos | C41: 17424 | D41: 501 | E41: 733 | F41: 288 | G41: 305 | H41: 1532 | I41: 1129 | J41: 12935
A42: Frutos sub-tropicais | C42: 2412 | D42: 1878 | E42: 9 | F42: 352 | G42: 2 | H42: 1 | I42: 0 | J42: 171
A43: Frutos de casca rija | C43: 139750 | D43: 1051 | E43: 48288 | F43: 1445 | G43: 9524 | H43: 15870 | I43: 44308 | J43: 19263
A44: Olival | C44: 340284 | D44: 699 | E44: 77057 | F44: 12499 | G44: 45784 | H44: 30613 | I44: 165092 | J44: 8540
A45: Vinha | C45: 160424 | D45: 20337 | E45: 60330 | F45: 12173 | G45: 12975 | H45: 30390 | I45: 22992 | J45: 1226
A46: Outras culturas permanentes | C46: 1342 | D46: 156 | E46: 82 | F46: 501 | G46: 28 | H46: 421 | I46: 94 | J46: 61
A47: PRADOS E PASTAGENS PERMANENTES (2) (ha) | C47: 1773304 | D47: 103394 | E47: 126891 | F47: 17677 | G47: 185357 | H47: 125259 | I47: 1193821 | J47: 20904
A49: Efetivos (Cabeças Normais)
A50: Portugal | C50: 1821369 | D50: 250374 | E50: 100703 | F50: 276747 | G50: 103087 | H50: 456473 | I50: 614835 | J50: 19149
A51: CN
A52: Por Espécie
A53: Equideos | C53: 36843 | D53: 6650 | E53: 10756 | F53: 2628 | G53: 3947 | H53: 4584 | I53: 6728 | J53: 1551
A54: Bovinos | C54: 816716 | D54: 193870 | E54: 42182 | F54: 60109 | G54: 44317 | H54: 79053 | I54: 389824 | J54: 7361
A55: Ovinos | C55: 205730 | D55: 10633 | E55: 27396 | F55: 12012 | G55: 33025 | H55: 14310 | I55: 104355 | J55: 3998
A56: Caprinos | C56: 36943 | D56: 3576 | E56: 5839 | F56: 5140 | G56: 7142 | H56: 4992 | I56: 8511 | J56: 1743
A57: Aves | C57: 301723 | D57: 24735 | E57: 6450 | F57: 120761 | G57: 5716 | H57: 139295 | I57: 3547 | J57: 1218
A58: Suínos | C58: 420122 | D58: 9725 | E58: 7459 | F58: 75154 | G58: 8678 | H58: 214021 | I58: 101825 | J58: 3260
A59: Coelhos | C59: 3292 | D59: 1185 | E59: 621 | F59: 943 | G59: 262 | H59: 218 | I59: 45 | J59: 18
A61: VOLUME DE TRABALHO (UTA) | C61: 304677 | D61: 68404 | E61: 68998 | F61: 48669 | G61: 30355 | H61: 40832 | I61: 35617 | J61: 11801
A62: Tipo de Mão-de-Obra
A63: Mão-de-obra agrícola familiar | C63: 230012 | D63: 56991 | E63: 55496 | F63: 42261 | G63: 26354 | H63: 22919 | I63: 17836 | J63: 8157
A64: Produtor | C64: 123072 | D64: 27905 | E64: 28757 | F64: 21678 | G64: 14192 | H64: 13422 | I64: 12087 | J64: 5030
A65: Mão-de-obra agrícola não familiar | C65: 74664 | D65: 11413 | E65: 13502 | F65: 6409 | G65: 4001 | H65: 17914 | I65: 17781 | J65: 3644
A66: Permanente | C66: 46010 | D66: 8194 | E66: 6074 | F66: 4260 | G66: 1851 | H66: 11310 | I66: 11645 | J66: 2675
A67: Eventual | C67: 23795 | D67: 2805 | E67: 6195 | F67: 1630 | G67: 1983 | H67: 6254 | I67: 4243 | J67: 684
A68: POPULAÇÃO AGRÍCOLA (nº) | C68: 604926 | D68: 124339 | E68: 138731 | F68: 106486 | G68: 73147 | H68: 76290 | I68: 61473 | J68: 24460
A69: PRODUTORES AGRÍCOLAS (nº)
A70: Homem | C70: 156996 | D70: 22063 | E70: 36440 | F70: 24726 | G70: 21188 | H70: 23642 | I70: 20900 | J70: 8036
A71: Mulher | C71: 72973 | D71: 17778 | E71: 19486 | F71: 12737 | G71: 9111 | H71: 5370 | I71: 5301 | J71: 3189
A72: Nível etário do Produtor
A73: 15 a 44 anos | C73: 17842 | D73: 3378 | E73: 5005 | F73: 2283 | G73: 1828 | H73: 2485 | I73: 2352 | J73: 508
A74: 45 a 64 anos | C74: 88447 | D74: 17231 | E74: 21972 | F74: 15332 | G74: 9617 | H74: 11098 | I74: 10021 | J74: 3175
A75: 65 e mais anos | C75: 123680 | D75: 19232 | E75: 28947 | F75: 19848 | G75: 18855 | H75: 15429 | I75: 13828 | J75: 7542
A76: Nível de escolaridade do produtor
A77: Nenhum | C77: 43102 | D77: 8087 | E77: 11103 | F77: 6563 | G77: 7110 | H77: 3940 | I77: 3916 | J77: 2383
A78: Básico | C78: 159711 | D78: 27986 | E78: 37548 | F78: 27938 | G78: 19331 | H78: 21938 | I78: 17509 | J78: 7460
A79: Secundário/Pós-secundário | C79: 13784 | D79: 1847 | E79: 3677 | F79: 1642 | G79: 1918 | H79: 1648 | I79: 2370 | J79: 682
A80: Superior | C80: 13372 | D80: 1921 | E80: 3598 | F80: 1321 | G80: 1940 | H80: 1486 | I80: 2406 | J80: 700
A81: Formação agrícola do Produtor
A82: Exclusivamente prática | C82: 194177 | D82: 32010 | E82: 46471 | F82: 32253 | G82: 27262 | H82: 23503 | I82: 22501 | J82: 10177
A83: Curso F.Prof. relacionados c/ activ. agrícola | C83: 32515 | D83: 7371 | E83: 8866 | F83: 5029 | G83: 2711 | H83: 4938 | I83: 2682 | J83: 918
A84: Completa (secundário ou superior agrícola) | C84: 3277 | D84: 460 | E84: 589 | F84: 182 | G84: 327 | H84: 570 | I84: 1018 | J84: 130
A85: (1) Inclui culturas sucessivas e sob coberto de permanentes
A86: (2) inclui pastagens sob coberto de permanentes

Sheet Evolução Estrutura (hidden)
B1: Evolução Estrutural das Explorações Agrícolas do Continente
B3: Escolha variável 1 | G3: Escolha variável 2 | M3: Escolha tipo de evolução
B7: =+"Evolução comparativa em " & Sheet1!I69 -> Evolução comparativa em Índice 100 (IND100=1989)
U15: Conceito Variável 1
U16: =+Sheet1!C69& "- " &INDEX(Sheet1!$R$72:$R$135,Sheet1!$D$69) -> Superfície Total Das Explorações- Soma da superfície agrícola utilizada, da superfície das matas e florestas sem culturas sob-coberto, da superfície agrícola não utilizada e das outras superfícies da exploração.
U24: Conceito Variável 2
U25: =+Sheet1!G69& " - " &INDEX(Sheet1!$R$72:$R$135,Sheet1!$H$69) -> Superfície cultivada -
T34: Fonte
U36: Recenseamento Agrícola 1989, 1999, 2009
U37: Inquérito à Estrutura das Explorações Agrícolas 1993, 1995, 1997, 2003, 2005, 2007, 2013, 2016
A39: Nota: | B39: =+INDEX('Evolução Estrutura'!D126:D127,Sheet1!J69) -> A área de Superfície Total Das Explorações (ha) em 2019 era 97% do valor de 1989. A área de Superfície cultivada (ha) em 2019 era 80% do valor de 1989.
D123: 1989 | E123: 1993 | F123: 1995 | G123: 1997 | H123: 1999 | I123: 2003 | J123: 2005 | K123: 2007 | L123: 2009 | M123: 2013 | N123: 2016 | O123: 2019
C124: =+INDEX(C129:C130,Sheet1!$J$69) & " (" & Sheet1!E69 & ")" -> Superfície Total Das Explorações (ha) | D124: =+INDEX(D129:D130,Sheet1!$J$69) -> 100 | E124: =+INDEX(E129:E130,Sheet1!$J$69) -> 96.94637394 | F124: =+INDEX(F129:F130,Sheet1!$J$69) -> 95.58273044 | G124: =+INDEX(G129:G130,Sheet1!$J$69) -> 93.07457342 | H124: =+INDEX(H129:H130,Sheet1!$J$69) -> 97.71884543 | I124: =+INDEX(I129:I130,Sheet1!$J$69) -> 91.51140354 | J124: =+INDEX(J129:J130,Sheet1!$J$69) -> 89.81641829 | K124: =+INDEX(K129:K130,Sheet1!$J$69) -> 82.84519177 | L124: =+INDEX(L129:L130,Sheet1!$J$69) -> 88.64343978 | M124: =+INDEX(M129:M130,Sheet1!$J$69) -> 87.10600086 | N124: =+INDEX(N129:N130,Sheet1!$J$69) -> 87.5645431 | O124: =+INDEX(O129:O130,Sheet1!$J$69) -> 96.71227463
C125: =+INDEX(C131:C132,Sheet1!$J$69) & " (" & Sheet1!F69 & ")" -> Superfície cultivada (ha) | D125: =+INDEX(D131:D132,Sheet1!$J$69) -> 100 | E125: =+INDEX(E131:E132,Sheet1!$J$69) -> 96.27370115 | F125: =+INDEX(F131:F132,Sheet1!$J$69) -> 98.81378335 | G125: =+INDEX(G131:G132,Sheet1!$J$69) -> 91.50477912 | H125: =+INDEX(H131:H132,Sheet1!$J$69) -> 85.02965911 | I125: =+INDEX(I131:I132,Sheet1!$J$69) -> 74.5811087 | J125: =+INDEX(J131:J132,Sheet1!$J$69) -> 71.22923927 | K125: =+INDEX(K131:K132,Sheet1!$J$69) -> 65.25414679 | L125: =+INDEX(L131:L132,Sheet1!$J$69) -> 69.67568788 | M125: =+INDEX(M131:M132,Sheet1!$J$69) -> 70.82927637 | N125: =+INDEX(N131:N132,Sheet1!$J$69) -> 69.47267641 | O125: =+INDEX(O131:O132,Sheet1!$J$69) -> 79.75767954
D126: =+Sheet1!$M$69&" " &C124& " passou de " &+TEXT(D124,"### ### ###")& " " & Sheet1!$E$69& " em 1989 para " &+TEXT(O124,"### ### ###")& " " &Sheet1!$E$69& " em 2019. " & Sheet1!$Q$69&" " &C125& " passou de " &+TEXT(D125,"### ### ###")& " " & Sheet1!$F$69& " em 1989 para " &+TEXT(O125,"### ### ###")& " " &Sheet1!$F$69& " em 2019." -> A área de Superfície Total Das Explorações (ha) passou de 100 ha em 1989 para 97 ha em 2019. A área de Superfície cultivada (ha) passou de 100 ha em 1989 para 80 ha em 2019.
D127: =+Sheet1!$M$69&" " &C124& " em 2019 era " &+TEXT(O124,"### ### ###")& "% do valor de 1989. " & Sheet1!$Q$69&" " &C125& " em 2019 era " &+TEXT(O125,"### ### ###")& "% do valor de 1989." -> A área de Superfície Total Das Explorações (ha) em 2019 era 97% do valor de 1989. A área de Superfície cultivada (ha) em 2019 era 80% do valor de 1989.
D128: 1989 | E128: 1993 | F128: 1995 | G128: 1997 | H128: 1999 | I128: 2003 | J128: 2005 | K128: 2007 | L128: 2009 | M128: 2013 | N128: 2016 | O128: 2019
C129: =+Sheet1!C69 -> Superfície Total Das Explorações | D129: =+INDEX(Sheet1!D$72:D$135,Sheet1!$D$69) -> 5157213 | E129: =+INDEX(Sheet1!E$72:E$135,Sheet1!$D$69) -> 4999731 | F129: =+INDEX(Sheet1!F$72:F$135,Sheet1!$D$69) -> 4929405 | G129: =+INDEX(Sheet1!G$72:G$135,Sheet1!$D$69) -> 4800054 | H129: =+INDEX(Sheet1!H$72:H$135,Sheet1!$D$69) -> 5039569 | I129: =+INDEX(Sheet1!I$72:I$135,Sheet1!$D$69) -> 4719438 | J129: =+INDEX(Sheet1!J$72:J$135,Sheet1!$D$69) -> 4632024 | K129: =+INDEX(Sheet1!K$72:K$135,Sheet1!$D$69) -> 4272503 | L129: =+INDEX(Sheet1!L$72:L$135,Sheet1!$D$69) -> 4571531 | M129: =+INDEX(Sheet1!M$72:M$135,Sheet1!$D$69) -> 4492242 | N129: =+INDEX(Sheet1!N$72:N$135,Sheet1!$D$69) -> 4515890 | O129: =+INDEX(Sheet1!O$72:O$135,Sheet1!$D$69) -> 4987658
C130: =+C129 -> Superfície Total Das Explorações | D130: =+D129/$D129*100 -> 100 | E130: =+E129/$D129*100 -> 96.94637394 | F130: 95.58273044 | G130: 93.07457342 | H130: 97.71884543 | I130: 91.51140354 | J130: 89.81641829 | K130: 82.84519177 | L130: 88.64343978 | M130: 87.10600086 | N130: =+N129/$D129*100 -> 87.5645431 | O130: 96.71227463
C131: =+Sheet1!G69 -> Superfície cultivada | D131: =+INDEX(Sheet1!D$72:D$135,Sheet1!$H$69) -> 2706251 | E131: =+INDEX(Sheet1!E$72:E$135,Sheet1!$H$69) -> 2605408 | F131: =+INDEX(Sheet1!F$72:F$135,Sheet1!$H$69) -> 2674149 | G131: =+INDEX(Sheet1!G$72:G$135,Sheet1!$H$69) -> 2476349 | H131: =+INDEX(Sheet1!H$72:H$135,Sheet1!$H$69) -> 2301116 | I131: =+INDEX(Sheet1!I$72:I$135,Sheet1!$H$69) -> 2018352 | J131: =+INDEX(Sheet1!J$72:J$135,Sheet1!$H$69) -> 1927642 | K131: =+INDEX(Sheet1!K$72:K$135,Sheet1!$H$69) -> 1765941 | L131: =+INDEX(Sheet1!L$72:L$135,Sheet1!$H$69) -> 1885599 | M131: =+INDEX(Sheet1!M$72:M$135,Sheet1!$H$69) -> 1916818 | N131: =+INDEX(Sheet1!N$72:N$135,Sheet1!$H$69) -> 1880105 | O131: =+INDEX(Sheet1!O$72:O$135,Sheet1!$H$69) -> 2158443
C132: =+C131 -> Superfície cultivada | D132: =+D131/$D131*100 -> 100 | E132: =+E131/$D131*100 -> 96.27370115 | F132: 98.81378335 | G132: 91.50477912 | H132: 85.02965911 | I132: 74.5811087 | J132: 71.22923927 | K132: 65.25414679 | L132: 69.67568788 | M132: 70.82927637 | N132: =+N131/$D131*100 -> 69.47267641 | O132: 79.75767954
D134: 1989 | E134: 1993 | F134: 1995 | G134: 1997 | H134: 1999 | I134: 2003 | J134: 2005 | K134: 2007 | L134: 2009 | M134: 2013 | N134: 2016 | O134: 2019
E135: =+E129/$D129*100 -> 96.94637394 | F135: 95.58273044 | G135: 93.07457342 | H135: 97.71884543 | I135: 91.51140354 | J135: 89.81641829 | K135: 82.84519177 | L135: 88.64343978 | M135: 87.10600086 | N135: =+N129/$D129*100 -> 87.5645431 | O135: 96.71227463
E136: =+E131/$D131*100 -> 96.27370115 | F136: 98.81378335 | G136: 91.50477912 | H136: 85.02965911 | I136: 74.5811087 | J136: 71.22923927 | K136: 65.25414679 | L136: 69.67568788 | M136: 70.82927637 | N136: =+N131/$D131*100 -> 69.47267641 | O136: 79.75767954

Sheet 2016 (hidden)
A1: 2016 | C1: Continente | D1: EDM | E1: TM | F1: BL | G1: BI | H1: LVT | I1: ALE | J1: ALG
A2: EXPLORAÇÕES (nº) | C2: 235774 | D2: 39651 | E2: 56228 | F2: 39462 | G2: 29065 | H2: 31217 | I2: 28424 | J2: 11728
A3: Explorações por Classe de SAU (nº)
A4: > 0 a <5 ha | C4: 165331 | D4: 33094 | E4: 34351 | F4: 34558 | G4: 20264 | H4: 22478 | I4: 12428 | J4: 8157
A5: 5 a 50 ha | C5: 58861 | D5: 6146 | E5: 20836 | F5: 4319 | G5: 7444 | H5: 7365 | I5: 9442 | J5: 3310
A6: > 50 ha | C6: 10395 | D6: 197 | E6: 937 | F6: 133 | G6: 1348 | H6: 1149 | I6: 6388 | J6: 243
A7: SUPERFÍCIE TOTAL DAS EXPLORAÇÕES (ha) | C7: 4515890 | D7: 376225 | E7: 594141 | F7: 234215 | G7: 504569 | H7: 493467 | I7: 2142617 | J7: 170655
A8: Superfície agrícola utilizada | C8: 3513006 | D8: 198415 | E8: 454719 | F8: 122929 | G8: 356488 | H8: 378010 | I8: 1906874 | J8: 95570
A9: Matas e florestas sem culturas sob-coberto | C9: 822722 | D9: 162497 | E9: 119425 | F9: 105016 | G9: 110752 | H9: 96072 | I9: 180595 | J9: 48364
A10: Superfície agrícola não utilizada | C10: 96491 | D10: 6743 | E10: 11476 | F10: 2597 | G10: 30031 | H10: 5421 | I10: 15661 | J10: 24563
A11: Outras superfícies | C11: 83671 | D11: 8570 | E11: 8522 | F11: 3673 | G11: 7297 | H11: 13964 | I11: 39487 | J11: 2158
A12: SAU (ha) | C12: 3513006 | D12: 198415 | E12: 454719 | F12: 122929 | G12: 356488 | H12: 378010 | I12: 1906874 | J12: 95570
A13: SAU por Classe de SAU
A14: <5 ha | C14: 318159 | D14: 59634 | E14: 79476 | F14: 59084 | G14: 35827 | H14: 42368 | I14: 25978 | J14: 15791
A15: 5 a 50 ha | C15: 798835 | D15: 71077 | E15: 260182 | F15: 51131 | G15: 113036 | H15: 98359 | I15: 161649 | J15: 43402
A16: > 50 ha | C16: 2396012 | D16: 67705 | E16: 115061 | F16: 12713 | G16: 207626 | H16: 237284 | I16: 1719247 | J16: 36377
A17: Composição da SAU
A18: Terras aráveis | C18: 1019186 | D18: 72909 | E18: 99396 | F18: 72728 | G18: 79580 | H18: 157295 | I18: 510930 | J18: 26349
A19: Horta familiar | C19: 15690 | D19: 2559 | E19: 4466 | F19: 2747 | G19: 2519 | H19: 1580 | I19: 1238 | J19: 581
A20: Culturas permanentes | C20: 700353 | D20: 29177 | E20: 189595 | F20: 28607 | G20: 66727 | H20: 94932 | I20: 243467 | J20: 47847
A21: Pastagens permanentes | C21: 1777776 | D21: 93771 | E21: 161262 | F21: 18847 | G21: 207663 | H21: 124204 | I21: 1151238 | J21: 20792
A22: Das quais Pobres: | C22: 1381157 | D22: 77226 | E22: 116855 | F22: 8878 | G22: 166717 | H22: 71493 | I22: 921643 | J22: 18344
A24: Cultura temporárias(1) (ha)
A25: Total | C25: 853885 | D25: 114173 | E25: 69794 | F25: 85038 | G25: 67826 | H25: 133793 | I25: 371845 | J25: 11416
A26: Cereais para grão | C26: 254957 | D26: 17187 | E26: 25639 | F26: 30616 | G26: 11297 | H26: 44934 | I26: 122365 | J26: 2918
A27: Leguminosas secas para grão | C27: 18043 | D27: 878 | E27: 861 | F27: 1615 | G27: 1452 | H27: 394 | I27: 12693 | J27: 150
A28: Prados temporários | C28: 91874 | D28: 9773 | E28: 7084 | F28: 3937 | G28: 6588 | H28: 5274 | I28: 56132 | J28: 3088
A29: Culturas forrageiras | C29: 406626 | D29: 82244 | E29: 32212 | F29: 43275 | G29: 47238 | H29: 42073 | I29: 155461 | J29: 4124
A30: Batata | C30: 10953 | D30: 1097 | E30: 3191 | F30: 1771 | G30: 784 | H30: 3784 | I30: 197 | J30: 129
A31: Beterraba sacarina
A32: Culturas industriais | C32: 19837 | E32: 50 | F32: 176 | G32: 30 | H32: 3542 | I32: 15996 | J32: 43
A33: Culturas hortícolas | C33: 47268 | D33: 2610 | E33: 446 | F33: 3408 | G33: 358 | H33: 32579 | I33: 7260 | J33: 609
A34: Flores e plantas ornamentais | C34: 1265 | D34: 218 | E34: 30 | F34: 61 | H34: 443 | I34: 409 | J34: 105
A35: Outras culturas temporárias | C35: 3063 | D35: 166 | E35: 283 | F35: 179 | G35: 80 | H35: 771 | I35: 1332 | J35: 251
A36: Pousio (ha) | C36: 251744 | D36: 3749 | E36: 34931 | F36: 8118 | G36: 18808 | H36: 28446 | I36: 142669 | J36: 15023
A37: Superfície cultivada | C37: =+C8-C22-C36 -> 1880105 | D37: =+D8-D22-D36 -> 117440 | E37: 302933 | F37: 105933 | G37: 170963 | H37: 278071 | I37: 842562 | J37: 62203
A39: CULTURAS PERMANENTES (ha) | C39: 700353 | D39: 29177 | E39: 189595 | F39: 28607 | G39: 66727 | H39: 94932 | I39: 243467 | J39: 47847
A40: Frutos frescos (excepto citrinos) | C40: 46515 | D40: 2355 | E40: 9103 | F40: 1955 | G40: 7223 | H40: 19862 | I40: 3389 | J40: 2628
A41: Citrinos | C41: 17709 | D41: 599 | E41: 358 | F41: 234 | G41: 210 | H41: 863 | I41: 1715 | J41: 13731
A42: Frutos sub-tropicais | C42: 3525 | D42: 2259 | E42: 8 | F42: 755 | G42: 0 | H42: 13 | I42: 57 | J42: 433
A43: Frutos de casca rija | C43: 142523 | D43: 1628 | E43: 48793 | F43: 1601 | G43: 4697 | H43: 16637 | I43: 46766 | J43: 22402
A44: Olival | C44: 325755 | D44: 2128 | E44: 71761 | F44: 12142 | G44: 42366 | H44: 24631 | I44: 165237 | J44: 7489
A45: Vinha | C45: 160674 | D45: 19757 | E45: 59390 | F45: 11242 | G45: 12118 | H45: 32009 | I45: 25035 | J45: 1123
A46: Outras culturas permanentes | C46: 3650 | D46: 451 | E46: 182 | F46: 679 | G46: 113 | H46: 916 | I46: 1268 | J46: 42
A47: PRADOS E PASTAGENS PERMANENTES (2) (ha) | C47: 1828714 | D47: 94334 | E47: 161531 | F47: 19955 | G47: 214579 | H47: 127180 | I47: 1189454 | J47: 21682
A49: Efetivos (Cabeças Normais)
A50: Efetivos (Cabeças Normais) | C50: 2003127 | D50: 250272 | E50: 131956 | F50: 323201 | G50: 108232 | H50: 506302 | I50: 664301 | J50: 18863
A51: Por Espécie
A52: Equideos | C52: 32460 | D52: 5813 | E52: 8339 | F52: 2088 | G52: 3970 | H52: 4202 | I52: 5534 | J52: 2513
A53: Bovinos | C53: 917913 | D53: 196884 | E53: 69364 | F53: 53196 | G53: 51518 | H53: 104955 | I53: 436701 | J53: 5295
A54: Ovinos | C54: 219001 | D54: 10619 | E54: 32767 | F54: 11643 | G54: 33935 | H54: 14013 | I54: 111457 | J54: 4566
A55: Caprinos | C55: 37850 | D55: 4958 | E55: 6668 | F55: 5678 | G55: 6718 | H55: 3877 | I55: 8472 | J55: 1479
A56: Aves | C56: 368668 | D56: 21825 | E56: 6445 | F56: 151248 | G56: 4604 | H56: 179265 | I56: 4231 | J56: 1050
A57: Suínos | C57: 425140 | D57: 9486 | E57: 8022 | F57: 98895 | G57: 7281 | H57: 199699 | I57: 97818 | J57: 3939
A58: Coelhos | C58: 2095 | D58: 687 | E58: 351 | F58: 453 | G58: 206 | H58: 291 | I58: 88 | J58: 21
A60: VOLUME DE TRABALHO (UTA) | C60: 295316 | D60: 58000 | E60: 71193 | F60: 46289 | G60: 26215 | H60: 38663 | I60: 41838 | J60: 13117
A61: Tipo de Mão-de-Obra
A62: Mão-de-obra agrícola familiar | C62: 212771 | D62: 47147 | E62: 56690 | F62: 40691 | G62: 21992 | H62: 21053 | I62: 17556 | J62: 7643
A63: Produtor | C63: 116335 | D63: 23512 | E63: 30358 | F63: 21096 | G63: 12345 | H63: 12786 | I63: 11715 | J63: 4523
A64: Mão-de-obra agrícola não familiar | C64: 82545 | D64: 10853 | E64: 14504 | F64: 5598 | G64: 4223 | H64: 17610 | I64: 24283 | J64: 5474
A65: Permanente | C65: 52488 | D65: 7263 | E65: 6819 | F65: 4093 | G65: 2305 | H65: 12335 | I65: 15901 | J65: 3773
A66: Eventual | C66: 26093 | D66: 3277 | E66: 6477 | F66: 1368 | G66: 1751 | H66: 4809 | I66: 6810 | J66: 1601
A67: POPULAÇÃO AGRÍCOLA (nº) | C67: 564670 | D67: 110068 | E67: 132411 | F67: 103862 | G67: 65889 | H67: 70309 | I67: 56795 | J67: 25336
A68: PRODUTORES AGRÍCOLAS (nº)
A69: Homem | C69: 147962 | D69: 21062 | E69: 34434 | F69: 24617 | G69: 18059 | H69: 23068 | I69: 18656 | J69: 8065
A70: Mulher | C70: 75543 | D70: 16326 | E70: 19642 | F70: 13846 | G70: 10239 | H70: 5889 | I70: 6306 | J70: 3295
A71: Nível etário do Produtor
A72: 15 a 44 anos | C72: 14914 | D72: 3239 | E72: 4309 | F72: 1850 | G72: 1064 | H72: 1810 | I72: 2118 | J72: 523
A73: 45 a 64 anos | C73: 83576 | D73: 15330 | E73: 21084 | F73: 14748 | G73: 9099 | H73: 11123 | I73: 8855 | J73: 3339
A74: 65 e mais anos | C74: 125015 | D74: 18819 | E74: 28684 | F74: 21866 | G74: 18135 | H74: 16023 | I74: 13989 | J74: 7499
A75: Nível de escolaridade do produtor
A76: Nenhum | C76: 36127 | D76: 7217 | E76: 8866 | F76: 5158 | G76: 5576 | H76: 3344 | I76: 3928 | J76: 2040
A77: Básico | C77: 158991 | D77: 25708 | E77: 38047 | F77: 30152 | G77: 19693 | H77: 21788 | I77: 15912 | J77: 7691
A78: Secundário/Pós-secundário | C78: 14755 | D78: 2091 | E78: 3644 | F78: 1816 | G78: 1511 | H78: 2300 | I78: 2501 | J78: 893
A79: Superior | C79: 13633 | D79: 2373 | E79: 3520 | F79: 1337 | G79: 1519 | H79: 1525 | I79: 2622 | J79: 736
A80: Formação agrícola do Produtor
A81: Exclusivamente prática | C81: 118615 | D81: 19370 | E81: 26992 | F81: 17287 | G81: 17580 | H81: 12677 | I81: 17107 | J81: 7603
A82: Curso F.Prof. relacionados c/ activ. agrícola | C82: 101819 | D82: 17576 | E82: 26597 | F82: 20989 | G82: 10453 | H82: 15761 | I82: 6837 | J82: 3606
A83: Completa (secundário ou superior agrícola) | C83: 3073 | D83: 443 | E83: 488 | F83: 187 | G83: 267 | H83: 519 | I83: 1018 | J83: 151
A84: (1) Inclui culturas sucessivas e sob coberto de permanentes

Sheet 2019 (hidden)
A1: 2019 | C1: Continente | D1: EDM | E1: TM | F1: BL | G1: BI | H1: LVT | I1: ALE | J1: ALG
A2: EXPLORAÇÕES (nº) | C2: 266039 | D2: 44560 | E2: 65211 | F2: 44245 | G2: 33617 | H2: 34486 | I2: 31131 | J2: 12789
A3: Explorações por Classe de SAU (nº)
A4: > 0 a <5 ha | C4: 189254 | D4: 38052 | E4: 43260 | F4: 38919 | G4: 23484 | H4: 24606 | I4: 12215 | J4: 8718
A5: 5 a 50 ha | C5: 60776 | D5: 5518 | E5: 20624 | F5: 4229 | G5: 8355 | H5: 7950 | I5: 10555 | J5: 3545
A6: > 50 ha | C6: 12084 | D6: 282 | E6: 874 | F6: 187 | G6: 1455 | H6: 1340 | I6: 7672 | J6: 274
A7: SUPERFÍCIE TOTAL DAS EXPLORAÇÕES (ha) | C7: 4987658 | D7: 339921 | E7: 677888 | F7: 226117 | G7: 585281 | H7: 559369 | I7: 2399558 | J7: 199523
A8: Superfície agrícola utilizada | C8: 3838708 | D8: 212639 | E8: 450701 | F8: 129848 | G8: 391754 | H8: 409095 | I8: 2144066 | J8: 100605
A9: Matas e florestas sem culturas sob-coberto | C9: 960040 | D9: 104118 | E9: 199031 | F9: 84483 | G9: 169451 | H9: 129508 | I9: 203428 | J9: 70022
A10: Superfície agrícola não utilizada | C10: 90171 | D10: 4410 | E10: 18093 | F10: 5136 | G10: 16372 | H10: 5531 | I10: 13912 | J10: 26716
A11: Outras superfícies | C11: 98739 | D11: 18754 | E11: 10063 | F11: 6651 | G11: 7704 | H11: 15235 | I11: 38151 | J11: 2180
A12: SAU (ha) | C12: 3838708 | D12: 212639 | E12: 450701 | F12: 129848 | G12: 391754 | H12: 409095 | I12: 2144066 | J12: 100605
A13: SAU por Classe de SAU
A14: <5 ha | C14: 353291 | D14: 63010 | E14: 92818 | F14: 61592 | G14: 46208 | H14: 46683 | I14: 25768 | J14: 17213
A15: 5 a 50 ha | C15: 823120 | D15: 62487 | E15: 253718 | F15: 49925 | G15: 120119 | H15: 106836 | I15: 183631 | J15: 46405
A16: > 50 ha | C16: 2662297 | D16: 87142 | E16: 104166 | F16: 18331 | G16: 225427 | H16: 255575 | I16: 1934668 | J16: 36988
A17: Composição da SAU
A18: Terras aráveis | C18: 1007264 | D18: 69154 | E18: 88830 | F18: 65213 | G18: 87377 | H18: 169307 | I18: 509271 | J18: 18112
A19: Horta familiar | C19: 15719 | D19: 2437 | E19: 4957 | F19: 3344 | G19: 2271 | H19: 1211 | I19: 1045 | J19: 455
A20: Culturas permanentes | C20: 855767 | D20: 33133 | E20: 222821 | F20: 36042 | G20: 83834 | H20: 99448 | I20: 323733 | J20: 56754
A21: Pastagens permanentes | C21: 1959958 | D21: 107915 | E21: 134094 | F21: 25249 | G21: 218272 | H21: 139128 | I21: 1310017 | J21: 25284
A22: Das quais Pobres: | C22: 1455897 | D22: 90707 | E22: 84367 | F22: 13731 | G22: 152929 | H22: 98242 | I22: 995047 | J22: 20871
A24: CULTURAS TEMPORÁRIAS(1) (ha)
A25: Total | C25: 843477 | D25: 100037 | E25: 51070 | F25: 64585 | G25: 73122 | H25: 146221 | I25: 396323 | J25: 12120
A26: Cereais para grão | C26: 234530 | D26: 17439 | E26: 20812 | F26: 26291 | G26: 13195 | H26: 49904 | I26: 104293 | J26: 2596
A27: Leguminosas secas para grão | C27: 18666 | D27: 584 | E27: 1329 | F27: 1225 | G27: 1575 | H27: 1291 | I27: 12556 | J27: 106
A28: Prados temporários | C28: 105802 | D28: 3941 | E28: 2900 | F28: 2803 | G28: 9191 | H28: 7331 | I28: 77978 | J28: 1659
A29: Culturas forrageiras | C29: 406264 | D29: 73342 | E29: 22692 | F29: 28622 | G29: 47943 | H29: 46610 | I29: 180896 | J29: 6158
A30: Batata | C30: 12586 | D30: 1434 | E30: 2355 | F30: 1938 | G30: 745 | H30: 5228 | I30: 803 | J30: 83
A31: Beterraba sacarina
A32: Culturas industriais | C32: 10507 | D32: 112 | E32: 52 | F32: 77 | G32: 62 | H32: 1524 | I32: 8533 | J32: 148
A33: Culturas hortícolas | C33: 50509 | D33: 2767 | E33: 867 | F33: 3355 | G33: 308 | H33: 32534 | I33: 9763 | J33: 915
A34: Flores e plantas ornamentais | C34: 1828 | D34: 345 | E34: 23 | F34: 108 | G34: 10 | H34: 502 | I34: 564 | J34: 276
A35: Outras culturas temporárias | C35: 2786 | D35: 73 | E35: 40 | F35: 166 | G35: 94 | H35: 1298 | I35: 937 | J35: 178
A36: Pousio (ha) | C36: 224368 | D36: 5186 | E36: 38925 | F36: 9606 | G36: 18940 | H36: 28193 | I36: 117489 | J36: 6029
A37: SUPERFÚICIE CULTIVADA | C37: 2158443 | D37: 116746 | E37: 327409 | F37: 106511 | G37: 219885 | H37: 282660 | I37: 1031530 | J37: 73705
A39: CULTURAS PERMANENTES (ha) | C39: 855767 | D39: 33133 | E39: 222821 | F39: 36042 | G39: 83834 | H39: 99448 | I39: 323733 | J39: 56754
A40: Frutos frescos (excepto citrinos) | C40: 51292 | D40: 3404 | E40: 10411 | F40: 2675 | G40: 8804 | H40: 17042 | I40: 5213 | J40: 3744
A41: Citrinos | C41: 19146 | D41: 820 | E41: 438 | F41: 371 | G41: 386 | H41: 1283 | I41: 1898 | J41: 13951
A42: Frutos sub-tropicais | C42: 6145 | D42: 2564 | E42: 55 | F42: 916 | G42: 23 | H42: 295 | I42: 355 | J42: 1937
A43: Frutos de casca rija | C43: 228487 | D43: 1941 | E43: 71907 | F43: 2949 | G43: 11033 | H43: 24680 | I43: 89797 | J43: 26179
A44: Olival | C44: 377234 | D44: 1085 | E44: 81691 | F44: 15440 | G44: 49373 | H44: 22609 | I44: 197628 | J44: 9409
A45: Vinha | C45: 171111 | D45: 23193 | E45: 58218 | F45: 12861 | G45: 14097 | H45: 32933 | I45: 28295 | J45: 1513
A46: Outras culturas permanentes | C46: 2351 | D46: 126 | E46: 100 | F46: 832 | G46: 118 | H46: 606 | I46: 548 | J46: 21
A47: PRADOS E PASTAGENS PERMANENTES (2) (ha) | C47: 2003795 | D47: 108213 | E47: 134164 | F47: 25952 | G47: 223452 | H47: 143450 | I47: 1343020 | J47: 25545
A48: SUPERFÍCIE IRRIGÁVEL | C48: 626820 | D48: 91281 | E48: 42658 | F48: 55615 | G48: 55897 | H48: 126084 | I48: 232627 | J48: 22658
A50: Efetivos (Cabeças Normais) | C50: 2267450 | D50: 237876 | E50: 94804 | F50: 418735 | G50: 132886 | H50: 658868 | I50: 707171 | J50: 17112
A51: Por Espécie
A52: Equideos | C52: 30384 | D52: 5387 | E52: 6430 | F52: 2256 | G52: 3009 | H52: 6782 | I52: 5314 | J52: 1206
A53: Bovinos | C53: 906929 | D53: 180991 | E53: 41409 | F53: 50626 | G53: 59965 | H53: 104359 | I53: 462997 | J53: 6583
A54: Ovinos | C54: 217175 | D54: 9007 | E54: 23638 | F54: 11831 | G54: 34634 | H54: 20082 | I54: 113957 | J54: 4027
A55: Caprinos | C55: 35946 | D55: 4578 | E55: 4861 | F55: 5568 | G55: 5835 | H55: 5106 | I55: 8562 | J55: 1437
A56: Aves | C56: 566045 | D56: 25867 | E56: 10049 | F56: 238399 | G56: 20376 | H56: 266078 | I56: 4494 | J56: 782
A57: Suínos | C57: 507671 | D57: 11041 | E57: 7562 | F57: 109258 | G57: 8806 | H57: 256139 | I57: 111799 | J57: 3066
A58: Coelhos | C58: 3300 | D58: 1005 | E58: 855 | F58: 797 | G58: 261 | H58: 322 | I58: 48 | J58: 11
A60: VOLUME DE TRABALHO (UTA) | C60: 293236 | D60: 56658 | E60: 62774 | F60: 47053 | G60: 27098 | H60: 41752 | I60: 44182 | J60: 13720
A61: Tipo de Mão-de-Obra
A62: Mão-de-obra agrícola familiar | C62: 196990 | D62: 45104 | E62: 48235 | F62: 38928 | G62: 21712 | H62: 20030 | I62: 15847 | J62: 7134
A63: Produtor | C63: 109949 | D63: 23292 | E63: 26734 | F63: 20760 | G63: 12189 | H63: 12153 | I63: 10487 | J63: 4335
A64: Mão-de-obra agrícola não familiar | C64: 96246 | D64: 11554 | E64: 14539 | F64: 8125 | G64: 5386 | H64: 21722 | I64: 28335 | J64: 6586
A65: Permanente | C65: 57110 | D65: 6975 | E65: 5539 | F65: 5493 | G65: 3067 | H65: 14447 | I65: 17833 | J65: 3755
A66: Eventual | C66: 28990 | D66: 3942 | E66: 7244 | F66: 2206 | G66: 1924 | H66: 5773 | I66: 6945 | J66: 958
A67: POPULAÇÃO AGRÍCOLA (nº) | C67: 599497 | D67: 114401 | E67: 143317 | F67: 106829 | G67: 72361 | H67: 76016 | I67: 59051 | J67: 27522
A68: PRODUTORES AGRÍCOLAS (nº)
A69: Homem | C69: 168459 | D69: 24950 | E69: 40517 | F69: 29255 | G69: 21898 | H69: 24188 | I69: 19311 | J69: 8340
A70: Mulher | C70: 82156 | D70: 17095 | E70: 22787 | F70: 13420 | G70: 10526 | H70: 7192 | I70: 7346 | J70: 3790
A71: Nível etário do Produtor
A72: 15 a 44 anos | C72: 24151 | D72: 4754 | E72: 5801 | F72: 3361 | G72: 2493 | H72: 3291 | I72: 3457 | J72: 994
A73: 45 a 64 anos | C73: 90767 | D73: 16852 | E73: 23102 | F73: 15829 | G73: 10387 | H73: 11615 | I73: 9511 | J73: 3471
A74: 65 e mais anos | C74: 135697 | D74: 20439 | E74: 34401 | F74: 23485 | G74: 19544 | H74: 16474 | I74: 13689 | J74: 7665
A75: Nível de escolaridade do produtor
A76: Nenhum | C76: 26704 | D76: 5156 | E76: 7170 | F76: 3771 | G76: 4266 | H76: 2260 | I76: 2519 | J76: 1562
A77: Básico | C77: 174793 | D77: 29872 | E77: 43356 | F77: 32744 | G77: 21771 | H77: 22806 | I77: 16159 | J77: 8085
A78: Secundário/Pós-secundário | C78: 25017 | D78: 3481 | E78: 6245 | F78: 3528 | G78: 3198 | H78: 3590 | I78: 3671 | J78: 1304
A79: Superior | C79: 24101 | D79: 3536 | E79: 6533 | F79: 2632 | G79: 3189 | H79: 2724 | I79: 4308 | J79: 1179
A80: Formação agrícola do Produtor
A81: Exclusivamente prática | C81: 131980 | D81: 19933 | E81: 34851 | F81: 18439 | G81: 20115 | H81: 13734 | I81: 16371 | J81: 8537
A82: Curso F.Prof. relacionados c/ activ. agrícola | C82: 113974 | D82: 21524 | E82: 27625 | F82: 23813 | G82: 11874 | H82: 16850 | I82: 8853 | J82: 3435
A83: Completa (secundário ou superior agrícola) | C83: 4661 | D83: 588 | E83: 828 | F83: 423 | G83: 435 | H83: 796 | I83: 1433 | J83: 158
A84: (1) Inclui culturas sucessivas e sob coberto de permanentes
A85: (2) inclui pastagens sob coberto de permanentes

Sheet Sheet1 (hidden)
D1: 2 | E1: =+F1-1 -> 3 | F1: 4 | H1: 2 | I1: =+J1-1 -> 2 | J1: 3
D2: =+INDEX($S$3:$S$8,D1) -> Superfície Agrícola Útil (Ha) | E2: =+INDEX($X$3:$X$10,F1) -> Beira Litoral | H2: =+INDEX($S$3:$S$8,H1) -> Superfície Agrícola Útil (Ha) | I2: =+INDEX($X$3:$X$10,J1) -> Trás-os-Montes
B3: EXPLORAÇÕES (nº) | D3: 1989 | E3: 1993 | F3: 1995 | G3: 1997 | H3: 1999 | I3: 2003 | J3: 2005 | K3: 2007 | L3: 2009 | M3: 2013 | N3: 2016 | O3: 2019 | S3: Nº de Explorações | W3: 0 | X3: Continente
B4: 1 | C4: 0 | D4: 550879 | E4: 446146 | F4: 412064 | G4: 381793 | H4: 382163 | I4: 330656 | J4: 297046 | K4: 251547 | L4: 278114 | M4: 240527 | N4: 235774 | O4: 266039 | Q4: =+B4&C4 -> 10 | S4: Superfície Agrícola Útil (Ha) | W4: 1 | X4: Entre Douro e Minho
B5: 1 | C5: 1 | D5: 111505 | E5: 86967 | F5: 79916 | G5: 73048 | H5: 67546 | I5: 58757 | J5: 52696 | K5: 45848 | L5: 49037 | M5: 41601 | N5: 39651 | O5: 44560 | Q5: =+B5&C5 -> 11 | S5: Volume de Trabalho (UTA) | W5: 2 | X5: Trás-os-Montes
B6: 1 | C6: 2 | D6: 80551 | E6: 75678 | F6: 72248 | G6: 70098 | H6: 70006 | I6: 64963 | J6: 61649 | K6: 56339 | L6: 61804 | M6: 57224 | N6: 56228 | O6: 65211 | Q6: =+B6&C6 -> 12 | S6: População agrícola (Pessoas) | W6: 3 | X6: Beira Litoral
B7: 1 | C7: 3 | D7: 125307 | E7: 97459 | F7: 88547 | G7: 80217 | H7: 79806 | I7: 66060 | J7: 58823 | K7: 47542 | L7: 49424 | M7: 38356 | N7: 39462 | O7: 44245 | Q7: =+B7&C7 -> 13 | S7: Efetivos (Cabeças Normais) | W7: 4 | X7: Beira Interior
B8: 1 | C8: 4 | D8: 60386 | E8: 49533 | F8: 45878 | G8: 42841 | H8: 48313 | I8: 40788 | J8: 35749 | K8: 30357 | L8: 33763 | M8: 30862 | N8: 29065 | O8: 33617 | Q8: 14 | S8: Superfície Irrigável | W8: 5 | X8: Ribatejo e Oeste
B9: 1 | C9: 5 | D9: 99938 | E9: 78609 | F9: 71430 | G9: 64874 | H9: 61615 | I9: 52375 | J9: 43850 | K9: 33225 | L9: 39875 | M9: 31450 | N9: 31217 | O9: 34486 | Q9: 15 | S9: Pastagens Pobres | W9: 6 | X9: Alentejo
B10: 1 | C10: 6 | D10: 47049 | E10: 37491 | F10: 36114 | G10: 34722 | H10: 35906 | I10: 31830 | J10: 29558 | K10: 26032 | L10: 31828 | M10: 29478 | N10: 28424 | O10: 31131 | Q10: 16 | S10: Superfície cultivada | W10: 7 | X10: Algarve
B11: 1 | C11: 7 | D11: 26143 | E11: 20409 | F11: 17931 | G11: 15993 | H11: 18971 | I11: 15883 | J11: 14721 | K11: 12204 | L11: 12383 | M11: 11556 | N11: 11728 | O11: 12789 | Q11: 17
B12: 2 | C12: 0 | D12: 3879579 | E12: 3821319 | F12: 3800379 | G12: 3700161 | H12: 3736140 | I12: 3578034 | J12: 3552347 | K12: 3357019 | L12: 3542305 | M12: 3517740 | N12: 3513006 | O12: 3838708 | Q12: 20
B13: 2 | C13: 1 | D13: 289624 | E13: 257684 | F13: 239465 | G13: 243450 | H13: 215675 | I13: 233702 | J13: 232260 | K13: 220371 | L13: 211154 | M13: 214554 | N13: 198415 | O13: 212639 | Q13: 21
B14: 2 | C14: 2 | D14: 489133 | E14: 493229 | F14: 495965 | G14: 462230 | H14: 457881 | I14: 467158 | J14: 473530 | K14: 474617 | L14: 432873 | M14: 432056 | N14: 454719 | O14: 450701 | Q14: 22 | S14: Valor Absoluto
B15: 2 | C15: 3 | D15: 231458 | E15: 220532 | F15: 205702 | G15: 179896 | H15: 169779 | I15: 154781 | J15: 151949 | K15: 135986 | L15: 125436 | M15: 117387 | N15: 122929 | O15: 129848 | Q15: 23 | S15: Índice 100 (IND100=1989)
B16: 2 | C16: 4 | D16: 433947 | E16: 443745 | F16: 441138 | G16: 435052 | H16: 418977 | I16: 390252 | J16: 384005 | K16: 352257 | L16: 337031 | M16: 341976 | N16: 356488 | O16: 391754 | Q16: 24 | S16: Índice 100 (IND100=1989)
B17: 2 | C17: 5 | D17: 456544 | E17: 498887 | F17: 483831 | G17: 494427 | H17: 447853 | I17: 381558 | J17: 412093 | K17: 349237 | L17: 391006 | M17: 370390 | N17: 378010 | O17: 409095 | Q17: 25
B18: 2 | C18: 6 | D18: 1842094 | E18: 1766678 | F18: 1800535 | G18: 1757360 | H18: 1924043 | I18: 1836215 | J18: 1792285 | K18: 1721795 | L18: 1956508 | M18: 1949142 | N18: 1906874 | O18: 2144066 | Q18: 26
B19: 2 | C19: 7 | D19: 136779 | E19: 140565 | F19: 133743 | G19: 127745 | H19: 101932 | I19: 114368 | J19: 106225 | K19: 102756 | L19: 88297 | M19: 92234 | N19: 95570 | O19: 100605 | Q19: 27
B20: 3 | C20: 0 | D20: 810005 | E20: 576661 | F20: 551197 | G20: 492999 | H20: 497537 | I20: 431521 | J20: 376370 | K20: 319369 | L20: 341502 | M20: 304677 | N20: 295316 | O20: 293236 | Q20: 30
B21: 3 | C21: 1 | D21: 218450 | E21: 153824 | F21: 150023 | G21: 127545 | H21: 122487 | I21: 103124 | J21: 88050 | K21: 74273 | L21: 78758 | M21: 68404 | N21: 58000 | O21: 56658 | Q21: 31
B22: 3 | C22: 2 | D22: 99162 | E22: 81023 | F22: 81412 | G22: 73226 | H22: 81566 | I22: 77400 | J22: 67260 | K22: 65072 | L22: 69330 | M22: 68998 | N22: 71193 | O22: 62774 | Q22: 32
B23: 3 | C23: 3 | D23: 188075 | E23: 127288 | F23: 121948 | G23: 105164 | H23: 107553 | I23: 88993 | J23: 79738 | K23: 59518 | L23: 65502 | M23: 48669 | N23: 46289 | O23: 47053 | Q23: 33
B24: 3 | C24: 4 | D24: 85447 | E24: 52671 | F24: 47625 | G24: 46443 | H24: 49193 | I24: 44165 | J24: 42588 | K24: 33624 | L24: 33552 | M24: 30355 | N24: 26215 | O24: 27098 | Q24: 34
B25: 3 | C25: 5 | D25: 126898 | E25: 93835 | F25: 89504 | G25: 83768 | H25: 75630 | I25: 63629 | J25: 50047 | K25: 42447 | L25: 47269 | M25: 40832 | N25: 38663 | O25: 41752 | Q25: 35
B26: 3 | C26: 6 | D26: 61913 | E26: 48043 | F26: 43524 | G26: 42942 | H26: 44162 | I26: 40862 | J26: 35491 | K26: 32918 | L26: 35659 | M26: 35617 | N26: 41838 | O26: 44182 | Q26: 36
B27: 3 | C27: 7 | D27: 30061 | E27: 19976 | F27: 17161 | G27: 13911 | H27: 16946 | I27: 13348 | J27: 13197 | K27: 11515 | L27: 11432 | M27: 11801 | N27: 13117 | O27: 13720 | Q27: 37
B28: 4 | C28: 0 | D28: 1799736 | E28: 1408613 | F28: 1261088 | G28: 1133401 | H28: 1123418 | I28: 935316 | J28: 787102 | K28: 656296 | L28: 709928 | M28: 604926 | N28: 564670 | O28: 599497 | Q28: 40
B29: 4 | C29: 1 | D29: 466783 | E29: 345726 | F29: 306268 | G29: 274338 | H29: 248443 | I29: 203845 | J29: 175226 | K29: 145511 | L29: 150588 | M29: 124339 | N29: 110068 | O29: 114401 | Q29: 41
B30: 4 | C30: 2 | D30: 255688 | E30: 227653 | F30: 212261 | G30: 198007 | H30: 196960 | I30: 174969 | J30: 155729 | K30: 138630 | L30: 151529 | M30: 138731 | N30: 132411 | O30: 143317 | Q30: 42
B31: 4 | C31: 3 | D31: 426328 | E31: 325453 | F31: 286032 | G31: 251190 | H31: 246329 | I31: 197024 | J31: 168002 | K31: 133515 | L31: 134174 | M31: 106486 | N31: 103862 | O31: 106829 | Q31: 43
B32: 4 | C32: 4 | D32: 163719 | E32: 129743 | F32: 118858 | G32: 109048 | H32: 121920 | I32: 101031 | J32: 83230 | K32: 68638 | L32: 78470 | M32: 73147 | N32: 65889 | O32: 72361 | Q32: 44
B33: 4 | C33: 5 | D33: 295495 | E33: 229219 | F33: 202173 | G33: 176355 | H33: 170116 | I33: 140110 | J33: 106022 | K33: 84673 | L33: 96111 | M33: 76290 | N33: 70309 | O33: 76016 | Q33: 45
B34: 4 | C34: 6 | D34: 121804 | E34: 95794 | F34: 88222 | G34: 83601 | H34: 91678 | I34: 79884 | J34: 65591 | K34: 57425 | L34: 69849 | M34: 61473 | N34: 56795 | O34: 59051 | Q34: 46
B35: 4 | C35: 7 | D35: 69919 | E35: 55025 | F35: 47274 | G35: 40861 | H35: 47972 | I35: 38453 | J35: 33302 | K35: 27904 | L35: 29207 | M35: 24460 | N35: 25336 | O35: 27522 | Q35: 47
B36: 5 | C36: 0 | D36: 2244750 | E36: 2172008 | F36: 2153381 | G36: 2137756 | H36: 2326716 | I36: 2141186 | J36: 1870284 | K36: 1818513 | L36: 1986998 | M36: 1821369 | N36: 2003127 | O36: 2267450 | Q36: 50
B37: 5 | C37: 1 | D37: 388240 | E37: 362528 | F37: 370666 | G37: 355515 | H37: 338093 | I37: 312049 | J37: 264036 | K37: 252849 | L37: 262882 | M37: 250374 | N37: 250272 | O37: 237876 | Q37: 51
B38: 5 | C38: 2 | D38: 171436 | E38: 149289 | F38: 155925 | G38: 156310 | H38: 146251 | I38: 128966 | J38: 113109 | K38: 111591 | L38: 105501 | M38: 100703 | N38: 131956 | O38: 94804 | Q38: 52
B39: 5 | C39: 3 | D39: 451737 | E39: 429439 | F39: 420307 | G39: 409316 | H39: 421915 | I39: 377544 | J39: 347084 | K39: 322546 | L39: 340199 | M39: 276747 | N39: 323201 | O39: 418735 | Q39: 53
B40: 5 | C40: 4 | D40: 153055 | E40: 141195 | F40: 144140 | G40: 146145 | H40: 139043 | I40: 131171 | J40: 112322 | K40: 106514 | L40: 107103 | M40: 103087 | N40: 108232 | O40: 132886 | Q40: 54
B41: 5 | C41: 5 | D41: 578619 | E41: 613489 | F41: 566832 | G41: 557618 | H41: 660006 | I41: 585432 | J41: 441481 | K41: 437883 | L41: 510485 | M41: 456473 | N41: 506302 | O41: 658868 | Q41: 55
B42: 5 | C42: 6 | D42: 446631 | E42: 437198 | F42: 458583 | G42: 477532 | H42: 581052 | I42: 569037 | J42: 566410 | K42: 561773 | L42: 641608 | M42: 614835 | N42: 664301 | O42: 707171 | Q42: 56
B43: 5 | C43: 7 | D43: 55033 | E43: 38870 | F43: 36926 | G43: 35320 | H43: 40358 | I43: 36983 | J43: 25841 | K43: 25357 | L43: 19222 | M43: 19149 | N43: 18863 | O43: 17112 | Q43: 57
B44: 6 | C44: 0 | D44: 871590 | E44: 826628 | F44: 789727 | G44: 791355 | H44: 787236 | I44: n.d | J44: 613209 | K44: 580164 | L44: 536127 | M44: 547119 | N44: 543745 | O44: 626820 | Q44: 60
B45: 6 | C45: 1 | D45: 225517 | E45: 206876 | F45: 189320 | G45: 186069 | H45: 148305 | I45: n.d | J45: 118667 | K45: 115633 | L45: 94829 | M45: 106476 | N45: 90938 | O45: 91281 | Q45: 61
B46: 6 | C46: 2 | D46: 99854 | E46: 115563 | F46: 113943 | G46: 112582 | H46: 93101 | I46: n.d | J46: 67215 | K46: 53153 | L46: 46666 | M46: 46675 | N46: 43953 | O46: 42658 | Q46: 62
B47: 6 | C47: 3 | D47: 143821 | E47: 137292 | F47: 121984 | G47: 108008 | H47: 104609 | I47: n.d | J47: 82996 | K47: 76595 | L47: 61116 | M47: 57133 | N47: 56385 | O47: 55615 | Q47: 63
B48: 6 | C48: 4 | D48: 112734 | E48: 95693 | F48: 84986 | G48: 88021 | H48: 92717 | I48: n.d | J48: 69918 | K48: 61928 | L48: 49580 | M48: 38008 | N48: 45571 | O48: 55897 | Q48: 64
B49: 6 | C49: 5 | D49: 144692 | E49: 143313 | F49: 145815 | G49: 146604 | H49: 154509 | I49: n.d | J49: 109076 | K49: 116336 | L49: 112539 | M49: 111985 | N49: 114330 | O49: 126084 | Q49: 65
B50: 6 | C50: 6 | D50: 110753 | E50: 93551 | F50: 99870 | G50: 115652 | H50: 163983 | I50: n.d | J50: 140376 | K50: 136856 | L50: 155123 | M50: 169573 | N50: 175410 | O50: 232627 | Q50: 66
B51: 6 | C51: 7 | D51: 34218 | E51: 34340 | F51: 33809 | G51: 34419 | H51: 30012 | I51: n.d | J51: 24962 | K51: 19663 | L51: 16274 | M51: 17269 | N51: 17158 | O51: 22658 | Q51: 67
B52: 7 | C52: 0 | D52: 343025 | E52: 294075 | F52: 317110 | G52: 364843 | H52: 872378 | I52: 1041709 | J52: 1251051 | K52: 1266034 | L52: 1315241 | M52: 1267891 | N52: 1381157 | O52: 1455897 | Q52: 70
B53: 7 | C53: 1 | D53: 39897 | E53: 29386 | F53: 31401 | G53: 48310 | H53: 60529 | I53: 88819 | J53: 92071 | K53: 93390 | L53: 82563 | M53: 86289 | N53: 77226 | O53: 90707 | Q53: 71
B54: 7 | C54: 2 | D54: 24813 | E54: 23331 | F54: 26404 | G54: 20137 | H54: 48793 | I54: 71609 | J54: 99636 | K54: 119069 | L54: 78774 | M54: 75875 | N54: 116855 | O54: 84367 | Q54: 72
B55: 7 | C55: 3 | D55: 5652 | E55: 5378 | F55: 3245 | G55: 3717 | H55: 8266 | I55: 7891 | J55: 8941 | K55: 8139 | L55: 6355 | M55: 7277 | N55: 8878 | O55: 13731 | Q55: 73
B56: 7 | C56: 4 | D56: 76852 | E56: 68511 | F56: 61689 | G56: 79083 | H56: 130180 | I56: 147971 | J56: 151786 | K56: 137056 | L56: 122438 | M56: 116156 | N56: 166717 | O56: 152929 | Q56: 74
B57: 7 | C57: 5 | D57: 16894 | E57: 4284 | F57: 11790 | G57: 42451 | H57: 29986 | I57: 35131 | J57: 78535 | K57: 82488 | L57: 67575 | M57: 63409 | N57: 71493 | O57: 98242 | Q57: 75
B58: 7 | C58: 6 | D58: 172627 | E58: 158962 | F58: 180434 | G58: 166020 | H58: 585295 | I58: 671152 | J58: 803032 | K58: 807809 | L58: 939771 | M58: 901521 | N58: 921643 | O58: 995047 | Q58: 76
B59: 7 | C59: 7 | D59: 6288 | E59: 4223 | F59: 2147 | G59: 5123 | H59: 9328 | I59: 19137 | J59: 17050 | K59: 18081 | L59: 17766 | M59: 17364 | N59: 18344 | O59: 20871 | Q59: 77
B60: 8 | C60: 0 | D60: 2706251 | E60: 2605408 | F60: 2674149 | G60: 2476349 | H60: 2301116 | I60: 2018352 | J60: 1927642 | K60: 1765941 | L60: 1885599 | M60: 1916818 | N60: 1880105 | O60: 2158443 | Q60: 80
B61: 8 | C61: 1 | D61: 249232 | E61: 225709 | F61: 207003 | G61: 194404 | H61: 154687 | I61: 144225 | J61: 139341 | K61: 126069 | L61: 124740 | M61: 125023 | N61: 117440 | O61: 116746 | Q61: 81
B62: 8 | C62: 2 | D62: 402574 | E62: 402131 | F62: 398475 | G62: 381224 | H62: 358926 | I62: 345617 | J62: 324562 | K62: 307987 | L62: 313514 | M62: 312790 | N62: 302933 | O62: 327409 | Q62: 82
B63: 8 | C63: 3 | D63: 221597 | E63: 210342 | F63: 198944 | G63: 173085 | H63: 158639 | I63: 144910 | J63: 138047 | K63: 122083 | L63: 113294 | M63: 102446 | N63: 105933 | O63: 106511 | Q63: 83
B64: 8 | C64: 4 | D64: 298152 | E64: 291024 | F64: 310846 | G64: 285679 | H64: 258053 | I64: 220992 | J64: 214132 | K64: 192061 | L64: 195598 | M64: 204267 | N64: 170963 | O64: 219885 | Q64: 84
B65: 8 | C65: 5 | D65: 408521 | E65: 460522 | F65: 435214 | G65: 407201 | H65: 384047 | I65: 314721 | J65: 299917 | K65: 241068 | L65: 291251 | M65: 278527 | N65: 278071 | O65: 282660 | Q65: 85
B66: 8 | C66: 6 | D66: 1023623 | E66: 921206 | F66: 1033153 | G66: 951285 | H66: 909420 | I66: 777905 | J66: 745666 | K66: 715057 | L66: 791016 | M66: 832112 | N66: 842562 | O66: 1031530 | Q66: 86
B67: 8 | C67: 7 | D67: 102553 | E67: 94474 | F67: 90514 | G67: 83472 | H67: 77345 | I67: 69981 | J67: 65977 | K67: 61618 | L67: 56185 | M67: 61652 | N67: 62203 | O67: 73705 | Q67: 87
C69: =+INDEX($C$72:$C$135,D69) -> Superfície Total Das Explorações | D69: 5 | E69: =+INDEX(B72:B135,D69) -> ha | F69: =+INDEX(B72:B135,H69) -> ha | G69: =+INDEX($C$72:$C$135,H69) -> Superfície cultivada | H69: 30 | I69: =+INDEX(S14:S15,J69) -> Índice 100 (IND100=1989) | J69: 2 | M69: =+INDEX($Q$72:$Q$135,D69) -> A área de | Q69: =+INDEX($Q$72:$Q$135,H69) -> A área de
D71: 1989 | E71: 1993 | F71: 1995 | G71: 1997 | H71: 1999 | I71: 2003 | J71: 2005 | K71: 2007 | L71: 2009 | M71: 2013 | N71: 2016 | O71: 2019
C72: Nº de Explorações | D72: 550879 | E72: 446146 | F72: 412064 | G72: 381793 | H72: 382163 | I72: 330656 | J72: 297046 | K72: 251547 | L72: 278114 | M72: 240527 | N72: 235774 | O72: 266039 | Q72: O | R72: Unidade técnico-económica que utiliza fatores de produção comuns, tais como: mão de obra, máquinas, instalações, terrenos, entre outros, e que deve satisfazer obrigatoriamente as quatro condições seguintes: 1. produzir produtos agrícolas ou manter em boas condições agrícolas e ambientais as terras que já não são utilizadas para fins produtivos; 2. atingir ou ultrapassar uma certa dimensão (área, número de animais); 3. estar submetida a uma gestão única; 4. estar localizada num local bem determinado e identificável.
C73: Nº de Explorações > 0 a <5 ha | D73: 446184 | E73: 343780 | F73: 311525 | G73: 286550 | H73: 296010 | I73: 249826 | J73: 218948 | K73: 179656 | L73: 207062 | M73: 170929 | N73: 165331 | O73: 189254 | Q73: O | R73: Unidade técnico-económica que utiliza fatores de produção comuns, tais como: mão de obra, máquinas, instalações, terrenos, entre outros, e que deve satisfazer obrigatoriamente as quatro condições seguintes: 1. produzir produtos agrícolas ou manter em boas condições agrícolas e ambientais as terras que já não são utilizadas para fins produtivos; 2. atingir ou ultrapassar uma certa dimensão (área, número de animais); 3. estar submetida a uma gestão única; 4. estar localizada num local bem determinado e identificável.
C74: Nº de Explorações 5 a 50 ha | D74: 91424 | E74: 91810 | F74: 89783 | G74: 84931 | H74: 73258 | I74: 69253 | J74: 66865 | K74: 61534 | L74: 59667 | M74: 58536 | N74: 58861 | O74: 60776 | Q74: O | R74: Unidade técnico-económica que utiliza fatores de produção comuns, tais como: mão de obra, máquinas, instalações, terrenos, entre outros, e que deve satisfazer obrigatoriamente as quatro condições seguintes: 1. produzir produtos agrícolas ou manter em boas condições agrícolas e ambientais as terras que já não são utilizadas para fins produtivos; 2. atingir ou ultrapassar uma certa dimensão (área, número de animais); 3. estar submetida a uma gestão única; 4. estar localizada num local bem determinado e identificável.
C75: Nº de Explorações > 50 ha | D75: 9050 | E75: 9287 | F75: 9601 | G75: 9340 | H75: 9612 | I75: 9393 | J75: 9971 | K75: 9485 | L75: 10047 | M75: 10249 | N75: 10395 | O75: 12084 | Q75: O | R75: Unidade técnico-económica que utiliza fatores de produção comuns, tais como: mão de obra, máquinas, instalações, terrenos, entre outros, e que deve satisfazer obrigatoriamente as quatro condições seguintes: 1. produzir produtos agrícolas ou manter em boas condições agrícolas e ambientais as terras que já não são utilizadas para fins produtivos; 2. atingir ou ultrapassar uma certa dimensão (área, número de animais); 3. estar submetida a uma gestão única; 4. estar localizada num local bem determinado e identificável.
B76: ha | C76: Superfície Total Das Explorações | D76: 5157213 | E76: 4999731 | F76: 4929405 | G76: 4800054 | H76: 5039569 | I76: 4719438 | J76: 4632024 | K76: 4272503 | L76: 4571531 | M76: 4492242 | N76: 4515890 | O76: 4987658 | Q76: A área de | R76: Soma da superfície agrícola utilizada, da superfície das matas e florestas sem culturas sob-coberto, da superfície agrícola não utilizada e das outras superfícies da exploração.
B77: ha | C77: Superfície agrícola utilizada | D77: 3879579 | E77: 3821319 | F77: 3800379 | G77: 3700161 | H77: 3736140 | I77: 3578034 | J77: 3552347 | K77: 3357019 | L77: 3542305 | M77: 3517740 | N77: 3513006 | O77: 3838708 | Q77: A área de | R77: Superfície da exploração que inclui: terras aráveis (limpa e sob-coberto de matas e florestas), horta familiar, culturas permanentes e pastagens permanentes.
B78: ha | C78: Superfície de Matas e florestas sem culturas sob-coberto | D78: 965676 | E78: 867336 | F78: 803967 | G78: 801053 | H78: 997497 | I78: 878078 | J78: 838801 | K78: 707750 | L78: 837431 | M78: 800482 | N78: 822722 | O78: 960040 | Q78: A área de | R78: Superfícies cobertas com árvores ou arbustos florestais, incluindo choupais, quer se trate de povoamentos puros (com uma só espécie), quer de povoamentos mistos (com espécies diversas) bem como os viveiros florestais localizados no interior das florestas e que se destinam às necessidades da exploração.
B79: ha | C79: Superfície agrícola não utilizada | D79: 243534 | E79: 215329 | F79: 218610 | G79: 208216 | H79: 201084 | I79: 180743 | J79: 158346 | K79: 134587 | L79: 125283 | M79: 99394 | N79: 96491 | O79: 90171 | Q79: A área de | R79: Superfície da exploração anteriormente utilizada como superfície agrícola, mas que já o não é por razões económicas, sociais ou outras. Não entra em rotações culturais. Pode voltar a ser utilizada com auxílio dos meios geralmente disponíveis na exploração.
B80: ha | C80: Outras superfícies | D80: 68425 | E80: 95747 | F80: 106448 | G80: 90624 | H80: 104848 | I80: 82584 | J80: 82531 | K80: 73146 | L80: 66512 | M80: 74626 | N80: 83671 | O80: 98739 | Q80: A área de | R80: Áreas ocupadas por edifícios, eiras, pátios, caminhos, barragens, albufeiras e ainda jardins, matas e florestas orientadas exclusivamente para fins de proteção do ambiente ou de recreio.
B81: ha | C81: SAU de explorações <5 ha | D81: 731458 | E81: 625118 | F81: 574760 | G81: 527529 | H81: 513791 | I81: 463738 | J81: 401651 | K81: 335945 | L81: 382341 | M81: 325926 | N81: 318159 | O81: 353291 | Q81: A área de | R81: Superfície da exploração que inclui: terras aráveis (limpa e sob-coberto de matas e florestas), horta familiar, culturas permanentes e pastagens permanentes.
B82: ha | C82: SAU de explorações 5 a 50 ha | D82: 1090803 | E82: 1133878 | F82: 1126281 | G82: 1070249 | H82: 928258 | I82: 891107 | J82: 860460 | K82: 805855 | L82: 777505 | M82: 797420 | N82: 798835 | O82: 823120 | Q82: A área de | R82: Superfície da exploração que inclui: terras aráveis (limpa e sob-coberto de matas e florestas), horta familiar, culturas permanentes e pastagens permanentes.
B83: ha | C83: SAU de explorações > 50 ha | D83: 2057316 | E83: 2062323 | F83: 2099337 | G83: 2102382 | H83: 2294091 | I83: 2223188 | J83: 2290236 | K83: 2215219 | L83: 2382459 | M83: 2394395 | N83: 2396012 | O83: 2662297 | Q83: A área de | R83: Superfície da exploração que inclui: terras aráveis (limpa e sob-coberto de matas e florestas), horta familiar, culturas permanentes e pastagens permanentes.
B84: ha | C84: Terras aráveis | D84: 2330327 | E84: 2258395 | F84: 2111584 | G84: 2082578 | H84: 1725887 | I84: 1513900 | J84: 1228939 | K84: 1066583 | L84: 1158805 | M84: 1081311 | N84: 1019186 | O84: 1007264 | Q84: A área de | R84: Terras cultivadas destinadas à produção vegetal, as terras retiradas da produção, ou que sejam mantidas em boas condições agrícolas e ambientais nos termos do artigo 5º do Regulamento (CE) n.º 1782/2003, e as terras ocupadas por estufas ou cobertas por estruturas fixas ou móveis.
B85: ha | C85: Horta familiar | D85: 31765 | E85: 29826 | F85: 27176 | G85: 25574 | H85: 20965 | I85: 19274 | J85: 20712 | K85: 17830 | L85: 18991 | M85: 14473 | N85: 15690 | O85: 15719 | Q85: A área de | R85: Superfície normalmente inferior a 20 ares, reservada à cultura de produtos tais como hortícolas, frutos e flores destinados fundamentalmente ao autoconsumo e não para venda.
B86: ha | C86: Culturas permanentes | D86: 780966 | E86: 748594 | F86: 739153 | G86: 700068 | H86: 705232 | I86: 676598 | J86: 643520 | K86: 592393 | L86: 686221 | M86: 704302 | N86: 700353 | O86: 855767 | Q86: A área de | R86: Culturas que ocupam a terra durante um longo período e fornecem repetidas colheitas, não entrando em rotações culturais. Não incluem os prados e pastagens permanentes. No caso das árvores de fruto só são considerados os povoamentos regulares, com densidade mínima de 100 árvores, ou de 45 no caso de oliveiras, figueiras e frutos secos.
B87: ha | C87: Pastagens permanentes | D87: 736521 | E87: 784504 | F87: 922465 | G87: 891940 | H87: 1284056 | I87: 1368262 | J87: 1659175 | K87: 1680214 | L87: 1678288 | M87: 1717653 | N87: 1777776 | O87: 1959958 | Q87: A área de | R87: Plantas semeadas ou espontâneas, em geral herbáceas, destinadas a serem comidas pelo gado no local em que vegetam, mas que acessoriamente podem ser cortadas em determinados períodos do ano. Não estão incluídas numa rotação e ocupam o solo por um período superior a 5 anos.
B88: ha | C88: Pastagens Pobres | D88: 350343 | E88: 300950 | F88: 323422 | G88: 373744 | H88: 879592 | I88: 1048207 | J88: 1253239 | K88: 1274245 | L88: 1331198 | M88: 1280628 | N88: 1391293 | O88: 1455897 | Q88: A área de
B89: ha | C89: Cultura temporárias - Total | D89: 1869929 | E89: 1667685 | F89: 1600085 | G89: 1483750 | H89: 1378415 | I89: 1177310 | J89: 992324 | K89: 859525 | L89: 923537 | M89: 840993 | N89: 853885 | O89: 843477 | Q89: A área de | R89: Culturas cujo ciclo vegetativo não excede um ano (as anuais) e também as que são ressemeadas com intervalos que não excedem cinco anos (morangos, espargos, prados temporários, etc.).
B90: ha | C90: Cultura temporárias - Cereais para grão | D90: 896507 | E90: 702538 | F90: 675457 | G90: 649423 | H90: 601003 | I90: 479372 | J90: 383912 | K90: 303307 | L90: 345556 | M90: 305390 | N90: 254957 | O90: 234530 | Q90: A área de | R90: Cereais semeados com a intenção de obter grão após maturação completa, independentemente do destino da cultura.
B91: ha | C91: Cultura temporárias - Leguminosas secas para grão | D91: 80711 | E91: 41902 | F91: 38484 | G91: 28508 | H91: 25246 | I91: 21684 | J91: 13858 | K91: 15467 | L91: 13152 | M91: 9257 | N91: 18043 | O91: 18666 | Q91: A área de | R91: Leguminosas cultivadas para colheita do grão após maturação completa, quer se destinem à alimentação humana ou à alimentação animal.
B92: ha | C92: Cultura temporárias - Prados temporários | D92: 73865 | E92: 47210 | F92: 45348 | G92: 43112 | H92: 37246 | I92: 45280 | J92: 49219 | K92: 64718 | L92: 31652 | M92: 35532 | N92: 91874 | O92: 105802 | Q92: A área de | R92: Plantas herbáceas semeadas, destinadas a serem comidas pelo gado no local onde vegetam, integradas numa rotação, ocupando o solo por um período geralmente não superior a 5 anos. Acessoriamente podem ser cortados em determinados períodos do ano.
B93: ha | C93: Cultura temporárias - Culturas forrageiras | D93: 565460 | E93: 641601 | F93: 623571 | G93: 589063 | H93: 528049 | I93: 487696 | J93: 466300 | K93: 389993 | L93: 442320 | M93: 414201 | N93: 406626 | O93: 406264 | Q93: A área de | R93: Culturas destinadas ao corte para dar ao gado e que são colhidas antes de completarem o seu ciclo vegetativo (maturação), de modo a serem melhor digeridas pelos animais. Podem ser consumidas pelo gado em verde, depois de conservadas como feno ou silagem ou secas ao Sol ou desidratadas artificialmente.
B94: ha | C94: Cultura temporárias - Batata | D94: 103652 | E94: 81496 | F94: 77462 | G94: 55454 | H94: 47313 | I94: 36561 | J94: 24356 | K94: 20685 | L94: 17331 | M94: 11879 | N94: 10953 | O94: 12586 | Q94: A área de
B95: ha | C95: Cultura temporárias - Beterraba sacarina | D95: 39 | E95: 0 | F95: 0 | G95: 0 | H95: 7551 | I95: 5115 | J95: 7012 | K95: 2108 | L95: 0 | M95: 0 | Q95: A área de
B96: ha | C96: Cultura temporárias - Culturas industriais | D96: 63960 | E96: 83433 | F96: 76965 | G96: 57082 | H96: 74400 | I96: 50964 | J96: 8880 | K96: 17473 | L96: 24764 | M96: 19007 | N96: 19837 | O96: 10507 | Q96: A área de | R96: Culturas que se destinam a transformação industrial tais como o tabaco, lúpulo, colza, girassol, soja, plantas aromáticas e cana-de-açúcar entre outras. Não inclui o tomate para a indústria.
B97: ha | C97: Cultura temporárias - Culturas hortícolas | D97: 61709 | E97: 51305 | F97: 54492 | G97: 50161 | H97: 49708 | I97: 42286 | J97: 36000 | K97: 37519 | L97: 46367 | M97: 41205 | N97: 47268 | O97: 50509 | Q97: A área de | R97: Culturas hortícolas
B98: ha | C98: Cultura temporárias - Flores e plantas ornamentais | D98: 633 | E98: 841 | F98: 813 | G98: 1077 | H98: 1004 | I98: 1195 | J98: 1375 | K98: 1614 | L98: 1525 | M98: 2588 | N98: 1265 | O98: 1828 | Q98: A área de | R98: Espécies florícolas e outras plantas ornamentais, quer sejam de interior quer de exterior, independentemente de serem ou não utilizadas para a produção de flor ou de folhagem de corte.
B99: ha | C99: Cultura temporárias - Outras culturas temporárias | D99: 23393 | E99: 17358 | F99: 7491 | G99: 9870 | H99: 6889 | I99: 7157 | J99: 1413 | K99: 6641 | L99: 870 | M99: 1934 | N99: 3063 | O99: 2786 | Q99: A área de
B100: ha | C100: Pousio | D100: 830303 | E100: 921836 | F100: 809120 | G100: 858969 | H100: 562646 | I100: 517973 | J100: 373654 | K100: 325044 | L100: 341465 | M100: 333031 | N100: 251744 | O100: 224368 | Q100: A área de | R100: Terras incluídas no afolhamento ou rotação, trabalhadas ou não, não fornecendo colheitas durante toda a campanha, tendo em vista o seu melhoramento. Podem apresentar-se sob as formas de: a) terras sem qualquer cultura; b) terras com uma vegetação espontânea, em certos casos utilizada pelos animais ou enterrada; c) terras semeadas tendo em vista a exclusiva produção de matéria verde para ser enterrada e aumentar a fertilidade do solo.
B101: ha | C101: Superfície cultivada | D101: 2706251 | E101: 2605408 | F101: 2674149 | G101: 2476349 | H101: 2301116 | I101: 2018352 | J101: 1927642 | K101: 1765941 | L101: 1885599 | M101: 1916818 | N101: 1880105 | O101: 2158443 | Q101: A área de
B102: ha | C102: Culturas Permanentes - Total | D102: 780966 | E102: 748595 | F102: 739153 | G102: 700067 | H102: 705232 | I102: 676599 | J102: 643519 | K102: 592392 | L102: 686221 | M102: 704303 | N102: 700351 | O102: 855767 | Q102: A área de | R102: Culturas que ocupam a terra durante um longo período e fornecem repetidas colheitas, não entrando em rotações culturais. Não incluem os prados e pastagens permanentes. No caso das árvores de fruto só são considerados os povoamentos regulares, com densidade mínima de 100 árvores, ou de 45 no caso de oliveiras, figueiras e frutos secos.
B103: ha | C103: Culturas Permanentes - Frutos frescos (excepto citrinos) | D103: 75715 | E103: 76218 | F103: 70493 | G103: 62439 | H103: 52342 | I103: 46465 | J103: 40230 | K103: 36800 | L103: 39746 | M103: 42667 | N103: 46515 | O103: 51292 | Q103: A área de
B104: ha | C104: Culturas Permanentes - Citrinos | D104: 25598 | E104: 25089 | F104: 23890 | G104: 23557 | H104: 22428 | I104: 19802 | J104: 19101 | K104: 18083 | L104: 16389 | M104: 17424 | N104: 17709 | O104: 19146 | Q104: A área de
B105: ha | C105: Culturas Permanentes - Frutos sub-tropicais | D105: 1042 | E105: 1297 | F105: 1122 | G105: 1094 | H105: 1197 | I105: 1038 | J105: 1390 | K105: 1469 | L105: 1764 | M105: 2412 | N105: 3525 | O105: 6145 | Q105: A área de
B106: ha | C106: Culturas Permanentes - Frutos de casca rija | D106: 73738 | E106: 69964 | F106: 71345 | G106: 74698 | H106: 80281 | I106: 72820 | J106: 70951 | K106: 68877 | L106: 114980 | M106: 139750 | N106: 142523 | O106: 228487 | Q106: A área de
B107: ha | C107: Culturas Permanentes - Olival | D107: 340514 | E107: 321675 | F107: 330337 | G107: 308731 | H107: 335028 | I107: 324061 | J107: 317046 | K107: 292162 | L107: 335841 | M107: 340284 | N107: 325755 | O107: 377234 | Q107: A área de
B108: ha | C108: Culturas Permanentes - Vinha | D108: 262025 | E108: 252015 | F108: 239722 | G108: 227375 | H108: 211821 | I108: 210314 | J108: 192846 | K108: 172765 | L108: 175773 | M108: 160424 | N108: 160674 | O108: 171111 | Q108: A área de
B109: ha | C109: Culturas Permanentes - Outras culturas permanentes | D109: 2334 | E109: 2337 | F109: 2244 | G109: 2173 | H109: 2135 | I109: 2099 | J109: 1955 | K109: 2236 | L109: 1728 | M109: 1342 | N109: 3650 | O109: 2351 | Q109: A área de
B110: ha | C110: Prados E Pastagens Permanentes | D110: 754825 | E110: 808586 | F110: 950879 | G110: 919058 | H110: 1331033 | I110: 1419417 | J110: 1706263 | K110: 1723221 | L110: 1721587 | M110: 1773304 | N110: 1828714 | O110: 2003795 | Q110: A área de | R110: Plantas semeadas ou espontâneas, em geral herbáceas, destinadas a serem comidas pelo gado no local em que vegetam, mas que acessoriamente podem ser cortadas em determinados períodos do ano. Não estão incluídas numa rotação e ocupam o solo por um período superior a 5 anos.
B111: Nº de Cabeças | C111: Cabeças normais - Total | D111: 2244750 | E111: 2172008 | F111: 2153381 | G111: 2137756 | H111: 2326716 | I111: 2141186 | J111: 1870284 | K111: 1818513 | L111: 1986998 | M111: 1821369 | N111: 2003127 | O111: 2267450 | R111: Cabeça normal (CN)», a unidade padrão de equivalência usada para comparar e agregar números de animais de diferentes espécies ou categorias, tendo em consideração a espécie animal, a idade, o peso vivo e a vocação produtiva, relativamente às necessidades alimentares e à produção de efluentes pecuários
B112: Nº de Cabeças | C112: Cabeças normais - bovinos | D112: 869750 | E112: 782593 | F112: 858047 | G112: 825150 | H112: 845530 | I112: 835827 | J112: 783377 | K112: 776740 | L112: 840627 | M112: 816716 | N112: 917913 | O112: 30384
B113: Nº de Cabeças | C113: Cabeças normais - ovinos | D113: 291204 | E113: 276866 | F113: 276623 | G113: 272575 | H113: 291772 | I113: 267620 | J113: 252600 | K113: 233457 | L113: 221117 | M113: 205730 | N113: 219001 | O113: 906929
B114: Nº de Cabeças | C114: Cabeças normais - caprinos | D114: 69747 | E114: 59248 | F114: 56611 | G114: 53442 | H114: 51902 | I114: 42583 | J114: 43191 | K114: 37950 | L114: 40563 | M114: 36943 | N114: 37850 | O114: 217175
B115: Nº de Cabeças | C115: Cabeças normais - aves | D115: 326654 | E115: 332315 | F115: 310583 | G115: 323692 | H115: 478407 | I115: 423382 | J115: 301785 | K115: 311728 | L115: 392820 | M115: 301723 | N115: 368668 | O115: 35946
B116: Nº de Cabeças | C116: Cabeças normais - suínos | D116: 565212 | E116: 624125 | F116: 562408 | G116: 581231 | H116: 579978 | I116: 504746 | J116: 437229 | K116: 414078 | L116: 444066 | M116: 420122 | N116: 425140 | O116: 566045
B117: Nº de Cabeças | C117: Cabeças normais - equidios | D117: 112690 | E117: 88753 | F117: 81551 | G117: 75016 | H117: 72435 | I117: 60874 | J117: 46866 | K117: 39804 | L117: 42594 | M117: 36843 | N117: 32460 | O117: 507671
B118: Nº de Cabeças | C118: Cabeças normais - coelhos | D118: 9493 | E118: 8108 | F118: 7558 | G118: 6650 | H118: 6692 | I118: 6154 | J118: 5236 | K118: 4756 | L118: 5211 | M118: 3292 | N118: 2095 | O118: 3300
B119: ha | C119: Superfície Irrigável | D119: 871590 | E119: 826628 | F119: 789727 | G119: 791355 | H119: 787236 | I119: n.d | J119: 613209 | K119: 580164 | L119: 536127 | M119: 547119 | N119: 543745 | O119: 626820 | R119: Superfície máxima da exploração que no decurso do ano agrícola, poderia, se necessário, ser irrigada por meio de instalações técnicas próprias da exploração e por uma quantidade de água normalmente disponível.
B120: UTA | C120: Volume De Trabalho | D120: 810005 | E120: 576661 | F120: 551197 | G120: 492999 | H120: 497537 | I120: 431521 | J120: 376370 | K120: 319369 | L120: 341502 | M120: 304677 | N120: 295316 | O120: 293236 | Q120: O | R120: Corresponde ao trabalho efetivamente aplicado na produção de produtos agrícolas e das atividades não agrícolas não separáveis das unidades agrícolas que compõem o Ramo. Por definição, pode ser dividido em Assalariado e Não - assalariado, e é expresso em unidades de trabalho ano (UTA), correspondendo estas à prestação, medida em tempo de trabalho, de uma pessoa que efetua, a tempo inteiro e durante todo o ano, atividades agrícolas numa unidade agrícola.
B121: UTA | C121: Tipo de Mão-de-Obra - Agrícola familiar | D121: 687485 | E121: 484712 | F121: 460220 | G121: 406351 | H121: 408224 | I121: 352376 | J121: 309759 | K121: 260110 | L121: 272783 | M121: 230012 | N121: 212771 | O121: 196990 | Q121: O Volume de trabalho de | R121: Pessoas pertencentes ao agregado doméstico do produtor que trabalham na exploração, bem como os membros da família do produtor que não pertencendo ao seu agregado doméstico trabalham regularmente na exploração.
B122: UTA | C122: Tipo de Mão-de-Obra - Produtor | D122: 311206 | E122: 231524 | F122: 221960 | G122: 200648 | H122: 206241 | I122: 180870 | J122: 163899 | K122: 138618 | L122: 147342 | M122: 123072 | N122: 116335 | O122: 109949 | Q122: O Volume de trabalho de | R122: Responsável jurídico e económico da exploração, isto é, a pessoa física ou moral por conta e em nome da qual a exploração produz, retira os benefícios e suporta as perdas eventuais, tomando as decisões de fundo relativas ao sistema de produção, investimentos, empréstimos, etc.
B123: UTA | C123: Tipo de Mão-de-Obra - Agrícola não familiar - Total | D123: 122520 | E123: 91948 | F123: 90977 | G123: 86647 | H123: 89313 | I123: 79145 | J123: 66611 | K123: 59258 | L123: 68718 | M123: 74664 | N123: 82545 | O123: 96246 | Q123: O Volume de trabalho de | R123: Pessoas remuneradas pela exploração e ocupadas nos trabalhos agrícolas da exploração que não sejam nem o produtor nem membros da sua família.
B124: UTA | C124: Tipo de Mão-de-Obra - Agrícola não familiar - Permanente | D124: 58932 | E124: 46524 | F124: 44232 | G124: 41976 | H124: 43962 | I124: 40758 | J124: 38402 | K124: 35820 | L124: 38960 | M124: 46010 | N124: 52488 | O124: 57110 | Q124: O Volume de trabalho de | R124: Pessoas remuneradas pela exploração e ocupadas nos trabalhos agrícolas da exploração que não sejam nem o produtor nem membros da sua família.
B125: UTA | C125: Tipo de Mão-de-Obra - Agrícola não familiar - Eventual | D125: 60565 | E125: 43112 | F125: 44590 | G125: 42655 | H125: 42525 | I125: 35967 | J125: 26351 | K125: 21677 | L125: 26000 | M125: 23795 | N125: 26093 | O125: 28990 | Q125: O Volume de trabalho de | R125: Pessoas remuneradas pela exploração e ocupadas nos trabalhos agrícolas da exploração que não sejam nem o produtor nem membros da sua família.
B126: Nº de Pessoas | C126: População Agrícola (Nº) | D126: 1799736 | E126: 1408613 | F126: 1261088 | G126: 1133401 | H126: 1123418 | I126: 935316 | J126: 787102 | K126: 656296 | L126: 709928 | M126: 604926 | N126: 564670 | O126: 599497 | Q126: A | R126: Conjunto de pessoas que fazem parte do agregado doméstico do produtor (singular) quer trabalhem ou não na exploração, bem como de outros membros da família que não pertencendo ao agregado doméstico, participam regularmente nos trabalhos agrícolas da exploração.
B127: Nº de Pessoas | C127: Produtores Agrícolas (Nº) - Homem | D127: 462535 | E127: 368061 | F127: 335627 | G127: 306245 | H127: 289291 | I127: 248858 | J127: 216600 | K127: 180885 | L127: 186194 | M127: 156995 | N127: 147962 | O127: 168459 | Q127: OS | R127: Conjunto de pessoas que fazem parte do agregado doméstico do produtor (singular) quer trabalhem ou não na exploração, bem como de outros membros da família que não pertencendo ao agregado doméstico, participam regularmente nos trabalhos agrícolas da exploração.
B128: Nº de Pessoas | C128: Produtores Agrícolas (Nº) - Mulher | D128: 83534 | E128: 73350 | F128: 71413 | G128: 70052 | H128: 86647 | I128: 75665 | J128: 73896 | K128: 64395 | L128: 84313 | M128: 72973 | N128: 75543 | O128: 82156 | Q128: OS | R128: Conjunto de pessoas que fazem parte do agregado doméstico do produtor (singular) quer trabalhem ou não na exploração, bem como de outros membros da família que não pertencendo ao agregado doméstico, participam regularmente nos trabalhos agrícolas da exploração.
B129: Nº de Pessoas | C129: Produtores Agrícolas (Nº) - 15 a 44 anos | D129: 107122 | E129: 72074 | F129: 62146 | G129: 51852 | H129: 55538 | I129: 35871 | J129: 29417 | K129: 21858 | L129: 24403 | M129: 17842 | N129: 14914 | O129: 24151 | Q129: OS | R129: Conjunto de pessoas que fazem parte do agregado doméstico do produtor (singular) quer trabalhem ou não na exploração, bem como de outros membros da família que não pertencendo ao agregado doméstico, participam regularmente nos trabalhos agrícolas da exploração.
B130: Nº de Pessoas | C130: Produtores Agrícolas (Nº) - 45 a 64 anos | D130: 282161 | E130: 222105 | F130: 201020 | G130: 181582 | H130: 176575 | I130: 134653 | J130: 120906 | K130: 102461 | L130: 112932 | M130: 88447 | N130: 83576 | O130: 90767 | Q130: OS | R130: Conjunto de pessoas que fazem parte do agregado doméstico do produtor (singular) quer trabalhem ou não na exploração, bem como de outros membros da família que não pertencendo ao agregado doméstico, participam regularmente nos trabalhos agrícolas da exploração.
B131: Nº de Pessoas | C131: Produtores Agrícolas (Nº) - 65 e mais anos | D131: 156786 | E131: 147232 | F131: 143874 | G131: 142863 | H131: 143825 | I131: 154000 | J131: 140172 | K131: 120960 | L131: 133172 | M131: 123680 | N131: 125015 | O131: 135697 | Q131: OS | R131: Conjunto de pessoas que fazem parte do agregado doméstico do produtor (singular) quer trabalhem ou não na exploração, bem como de outros membros da família que não pertencendo ao agregado doméstico, participam regularmente nos trabalhos agrícolas da exploração.
B132: Nº de Pessoas | C132: Produtores Agrícolas - Escolaridade - Nenhum | D132: 255187 | E132: 190085 | F132: 165348 | G132: 146863 | H132: 129360 | I132: 105666 | J132: 84731 | K132: 61900 | L132: 60040 | M132: 43102 | N132: 36127 | O132: 26704 | Q132: OS
B133: Nº de Pessoas | C133: Produtores Agrícolas - Escolaridade - Básico | D133: 268772 | E133: 231253 | F133: 228016 | G133: 215583 | H133: 228474 | I133: 201224 | J133: 188739 | K133: 168350 | L133: 186768 | M133: 159711 | N133: 158991 | O133: 174793 | Q133: OS
B134: Nº de Pessoas | C134: Produtores Agrícolas - Escolaridade - Secundário/Pós-secundário | D134: 16041 | E134: 13567 | F134: 6143 | G134: 6635 | H134: 8230 | I134: 7980 | J134: 7338 | K134: 6476 | L134: 11361 | M134: 13784 | N134: 14755 | O134: 25017 | Q134: OS
B135: Nº de Pessoas | C135: Produtores Agrícolas - Escolaridade - Superior | D135: 6069 | E135: 6507 | F135: 7533 | G135: 7216 | H135: 9874 | I135: 9653 | J135: 9687 | K135: 8554 | L135: 12338 | M135: 13372 | N135: 13633 | O135: 24101 | Q135: OS

Sheet Evolução regional (hidden)
B1: Evolução Estrutural Regional das Explorações Agrícolas
B3: Escolha variável e região 1 | I3: Escolha variável e região 2
B7: =+"Evolução comparativa em valor absoluto" -> Evolução comparativa em valor absoluto
B30: =+"Evolução comparativa em Índice (IND100=1989)" -> Evolução comparativa em Índice (IND100=1989)
S47: Fonte
T49: Recenseamento Agrícola 1989, 1999, 2009
T50: Inquérito à Estrutura das Explorações Agrícolas 1993, 1995, 1997, 2003, 2005, 2007, 2013, 2016
D98: 1989 | E98: 1993 | F98: 1995 | G98: 1997 | H98: 1999 | I98: 2003 | J98: 2005 | K98: 2007 | L98: 2009 | M98: 2013 | N98: 2016 | O98: 2019
C99: =+Sheet1!D2& " - " &Sheet1!E2 -> Superfície Agrícola Útil (Ha) - Beira Litoral | D99: =+SUMIF(Sheet1!$Q$4:$Q$51,Sheet1!$D$1&Sheet1!$E$1,Sheet1!D4:D51) -> 231458 | E99: =+SUMIF(Sheet1!$Q$4:$Q$51,Sheet1!$D$1&Sheet1!$E$1,Sheet1!E4:E51) -> 220532 | F99: =+SUMIF(Sheet1!$Q$4:$Q$51,Sheet1!$D$1&Sheet1!$E$1,Sheet1!F4:F51) -> 205702 | G99: =+SUMIF(Sheet1!$Q$4:$Q$51,Sheet1!$D$1&Sheet1!$E$1,Sheet1!G4:G51) -> 179896 | H99: =+SUMIF(Sheet1!$Q$4:$Q$51,Sheet1!$D$1&Sheet1!$E$1,Sheet1!H4:H51) -> 169779 | I99: =+SUMIF(Sheet1!$Q$4:$Q$51,Sheet1!$D$1&Sheet1!$E$1,Sheet1!I4:I51) -> 154781 | J99: =+SUMIF(Sheet1!$Q$4:$Q$51,Sheet1!$D$1&Sheet1!$E$1,Sheet1!J4:J51) -> 151949 | K99: =+SUMIF(Sheet1!$Q$4:$Q$51,Sheet1!$D$1&Sheet1!$E$1,Sheet1!K4:K51) -> 135986 | L99: =+SUMIF(Sheet1!$Q$4:$Q$51,Sheet1!$D$1&Sheet1!$E$1,Sheet1!L4:L51) -> 125436 | M99: =+SUMIF(Sheet1!$Q$4:$Q$51,Sheet1!$D$1&Sheet1!$E$1,Sheet1!M4:M51) -> 117387 | N99: =+SUMIF(Sheet1!$Q$4:$Q$51,Sheet1!$D$1&Sheet1!$E$1,Sheet1!N4:N51) -> 122929 | O99: =+SUMIF(Sheet1!$Q$4:$Q$51,Sheet1!$D$1&Sheet1!$E$1,Sheet1!O4:O51) -> 129848
C100: =+Sheet1!H2& " - " &Sheet1!I2 -> Superfície Agrícola Útil (Ha) - Trás-os-Montes | D100: =+SUMIF(Sheet1!$Q$4:$Q$51,Sheet1!$H$1&Sheet1!$I$1,Sheet1!D4:D51) -> 489133 | E100: =+SUMIF(Sheet1!$Q$4:$Q$51,Sheet1!$H$1&Sheet1!$I$1,Sheet1!E4:E51) -> 493229 | F100: =+SUMIF(Sheet1!$Q$4:$Q$51,Sheet1!$H$1&Sheet1!$I$1,Sheet1!F4:F51) -> 495965 | G100: =+SUMIF(Sheet1!$Q$4:$Q$51,Sheet1!$H$1&Sheet1!$I$1,Sheet1!G4:G51) -> 462230 | H100: =+SUMIF(Sheet1!$Q$4:$Q$51,Sheet1!$H$1&Sheet1!$I$1,Sheet1!H4:H51) -> 457881 | I100: =+SUMIF(Sheet1!$Q$4:$Q$51,Sheet1!$H$1&Sheet1!$I$1,Sheet1!I4:I51) -> 467158 | J100: =+SUMIF(Sheet1!$Q$4:$Q$51,Sheet1!$H$1&Sheet1!$I$1,Sheet1!J4:J51) -> 473530 | K100: =+SUMIF(Sheet1!$Q$4:$Q$51,Sheet1!$H$1&Sheet1!$I$1,Sheet1!K4:K51) -> 474617 | L100: =+SUMIF(Sheet1!$Q$4:$Q$51,Sheet1!$H$1&Sheet1!$I$1,Sheet1!L4:L51) -> 432873 | M100: =+SUMIF(Sheet1!$Q$4:$Q$51,Sheet1!$H$1&Sheet1!$I$1,Sheet1!M4:M51) -> 432056 | N100: =+SUMIF(Sheet1!$Q$4:$Q$51,Sheet1!$H$1&Sheet1!$I$1,Sheet1!N4:N51) -> 454719 | O100: =+SUMIF(Sheet1!$Q$4:$Q$51,Sheet1!$H$1&Sheet1!$I$1,Sheet1!O4:O51) -> 450701
D104: 1989 | E104: 1993 | F104: 1995 | G104: 1997 | H104: 1999 | I104: 2003 | J104: 2005 | K104: 2007 | L104: 2009 | M104: 2013 | N104: 2016 | O104: 2019
C105: =+C99 & " (IND100 = 1989)" -> Superfície Agrícola Útil (Ha) - Beira Litoral (IND100 = 1989) | D105: =+D99/$D99*100 -> 100 | E105: 95.27948915 | F105: 88.8722792 | G105: 77.72295622 | H105: 73.35196882 | I105: 66.87217551 | J105: 65.6486274 | K105: 58.75191179 | L105: 54.19384942 | M105: 50.71632866 | N105: 53.11071555 | O105: =+O99/$D99*100 -> 56.10002679
C106: =+C100 & " (IND100 = 1989)" -> Superfície Agrícola Útil (Ha) - Trás-os-Montes (IND100 = 1989) | D106: =+D100/$D100*100 -> 100 | E106: 100.8374001 | F106: 101.3967571 | G106: 94.49985996 | H106: 93.61073573 | I106: 95.50735689 | J106: 96.81007006 | K106: 97.03230001 | L106: 88.49801588 | M106: 88.33098564 | N106: 92.96428579 | O106: =+O100/$D100*100 -> 92.14283232
